Department,Entity,Date of Payment,Expense Type,Expense Area,Suppliers,Transaction Number,Amount
United Kingdom Atomic Energy Authority,United Kingdom Atomic Energy Authority,20/01/2014,PLANT SPARES,FUSION,A W CLARKE,5100298845,490
United Kingdom Atomic Energy Authority,United Kingdom Atomic Energy Authority,20/01/2014,PLANT SPARES,FUSION,A W CLARKE,5100298846,9094.8
United Kingdom Atomic Energy Authority,United Kingdom Atomic Energy Authority,06/01/2014,PLANT & EQUIPMENT,FUSION,AALCO LIMITED,5100298151,21
United Kingdom Atomic Energy Authority,United Kingdom Atomic Energy Authority,06/01/2014,PLANT & EQUIPMENT,FUSION,AALCO LIMITED,5100298180,46
United Kingdom Atomic Energy Authority,United Kingdom Atomic Energy Authority,06/01/2014,PLANT & EQUIPMENT,FUSION,AALCO LIMITED,5100298182,15.75
United Kingdom Atomic Energy Authority,United Kingdom Atomic Energy Authority,06/01/2014,PLANT & EQUIPMENT,FUSION,AALCO LIMITED,5100298183,17.9
United Kingdom Atomic Energy Authority,United Kingdom Atomic Energy Authority,06/01/2014,PLANT & EQUIPMENT,FUSION,AALCO LIMITED,5100298185,39
United Kingdom Atomic Energy Authority,United Kingdom Atomic Energy Authority,06/01/2014,PLANT & EQUIPMENT,FUSION,AALCO LIMITED,5100298189,63.65
United Kingdom Atomic Energy Authority,United Kingdom Atomic Energy Authority,06/01/2014,PLANT & EQUIPMENT,FUSION,AALCO LIMITED,5100298190,36.5
United Kingdom Atomic Energy Authority,United Kingdom Atomic Energy Authority,06/01/2014,PLANT & EQUIPMENT,FUSION,AALCO LIMITED,5100298192,100
United Kingdom Atomic Energy Authority,United Kingdom Atomic Energy Authority,06/01/2014,PLANT & EQUIPMENT,FUSION,AALCO LIMITED,5100298194,195
United Kingdom Atomic Energy Authority,United Kingdom Atomic Energy Authority,06/01/2014,PLANT & EQUIPMENT,FUSION,AALCO LIMITED,5100298197,164.75
United Kingdom Atomic Energy Authority,United Kingdom Atomic Energy Authority,06/01/2014,PLANT & EQUIPMENT,FUSION,AALCO LIMITED,5100298199,162.75
United Kingdom Atomic Energy Authority,United Kingdom Atomic Energy Authority,13/01/2014,PLANT & EQUIPMENT,FUSION,AALCO LIMITED,5100298428,110
United Kingdom Atomic Energy Authority,United Kingdom Atomic Energy Authority,13/01/2014,PLANT & EQUIPMENT,FUSION,AALCO LIMITED,5100298543,700.8
United Kingdom Atomic Energy Authority,United Kingdom Atomic Energy Authority,08/01/2014,MATERIALS & SPARES,FUSION,ACRONA ENGINEERING LTD,5100298374,800.88
United Kingdom Atomic Energy Authority,United Kingdom Atomic Energy Authority,15/01/2014,CONSUMABLES,FUSION,AGATE PRODUCTS LTD,5100297248,1979
United Kingdom Atomic Energy Authority,United Kingdom Atomic Energy Authority,15/01/2014,CONSUMABLES,FUSION,AGATE PRODUCTS LTD,5100298542,892
United Kingdom Atomic Energy Authority,United Kingdom Atomic Energy Authority,22/01/2014,CONSUMABLES,FUSION,AGATE PRODUCTS LTD,5100298683,1120
United Kingdom Atomic Energy Authority,United Kingdom Atomic Energy Authority,20/01/2014,GASES,FUSION,AIR PRODUCTS PLC,5100298838,411.25
United Kingdom Atomic Energy Authority,United Kingdom Atomic Energy Authority,21/01/2014,GASES,FUSION,AIR PRODUCTS PLC,5100298998,-411.25
United Kingdom Atomic Energy Authority,United Kingdom Atomic Energy Authority,21/01/2014,GASES,FUSION,AIR PRODUCTS PLC,5100298999,350
United Kingdom Atomic Energy Authority,United Kingdom Atomic Energy Authority,06/01/2014,MATERIALS & SPARES,FUSION,ALPHA ENGINEERING SUPPLIES,5100298339,77.95
United Kingdom Atomic Energy Authority,United Kingdom Atomic Energy Authority,20/01/2014,PLANT & EQUIPMENT,FUSION,ALPHA LABORATORIES,5100298824,917
United Kingdom Atomic Energy Authority,United Kingdom Atomic Energy Authority,20/01/2014,MATERIALS & SPARES,FUSION,ALPHA PACKAGING,5100298634,117
United Kingdom Atomic Energy Authority,United Kingdom Atomic Energy Authority,20/01/2014,MATERIALS & SPARES,FUSION,ALPHA PACKAGING,5100298636,68.97
United Kingdom Atomic Energy Authority,United Kingdom Atomic Energy Authority,06/01/2014,PLANT & EQUIPMENT,FUSION,AMAZON FILTERS LTD,5100297935,1009.2
United Kingdom Atomic Energy Authority,United Kingdom Atomic Energy Authority,15/01/2014,PLANT SPARES,FUSION,AMETEK ADVANCE MEASUREMENT,5100298149,11234
United Kingdom Atomic Energy Authority,United Kingdom Atomic Energy Authority,20/01/2014,MATERIALS & SPARES,FUSION,Amodil Supplies Ltd,5100298764,22250
United Kingdom Atomic Energy Authority,United Kingdom Atomic Energy Authority,20/01/2014,MATERIALS & SPARES,FUSION,Amodil Supplies Ltd,5100298765,7050
United Kingdom Atomic Energy Authority,United Kingdom Atomic Energy Authority,20/01/2014,MATERIALS & SPARES,FUSION,Amodil Supplies Ltd,5100298766,9200
United Kingdom Atomic Energy Authority,United Kingdom Atomic Energy Authority,13/01/2014,SOFTWARE,FUSION,AMTECH POWER SOFTWARE,5100298454,6579.5
United Kingdom Atomic Energy Authority,United Kingdom Atomic Energy Authority,13/01/2014,SOFTWARE,FUSION,AMTECH POWER SOFTWARE,5100298455,3000
United Kingdom Atomic Energy Authority,United Kingdom Atomic Energy Authority,13/01/2014,MATERIALS & SPARES,FUSION,ANIXTER (UK) LTD,5100298447,197
United Kingdom Atomic Energy Authority,United Kingdom Atomic Energy Authority,13/01/2014,MATERIALS & SPARES,FUSION,ANIXTER (UK) LTD,5100298547,472
United Kingdom Atomic Energy Authority,United Kingdom Atomic Energy Authority,06/01/2014,MATERIALS & SPARES,FUSION,ANIXTER (UK) LTD,5100298208,2093
United Kingdom Atomic Energy Authority,United Kingdom Atomic Energy Authority,06/01/2014,OPERATING LEASE,FUSION,ANNODATA BUSINESS COMMUNICATIONS,5100298376,2070
United Kingdom Atomic Energy Authority,United Kingdom Atomic Energy Authority,06/01/2014,OPERATING LEASE,FUSION,ANNODATA BUSINESS COMMUNICATIONS,5100298378,1184.45
United Kingdom Atomic Energy Authority,United Kingdom Atomic Energy Authority,15/01/2014,SOFTWARE,FUSION,APPLIED CAE,5100298568,1453
United Kingdom Atomic Energy Authority,United Kingdom Atomic Energy Authority,20/01/2014,PLANT SPARES,FUSION,Aquila Nuclear Engineering Ltd,5100298798,37882
United Kingdom Atomic Energy Authority,United Kingdom Atomic Energy Authority,06/01/2014,PERSONAL PROTECTIVE EQUIPMENT,SUPPORT SERVICES,ARCO LTD,5100298325,260.55
United Kingdom Atomic Energy Authority,United Kingdom Atomic Energy Authority,20/01/2014,PERSONAL PROTECTIVE EQUIPMENT,SUPPORT SERVICES,ARCO LTD,5100298829,206.53
United Kingdom Atomic Energy Authority,United Kingdom Atomic Energy Authority,20/01/2014,PERSONAL PROTECTIVE EQUIPMENT,FUSION,ARCO LTD,5100298671,91.59
United Kingdom Atomic Energy Authority,United Kingdom Atomic Energy Authority,20/01/2014,PERSONAL PROTECTIVE EQUIPMENT,FUSION,ARCO LTD,5100298563,381.67
United Kingdom Atomic Energy Authority,United Kingdom Atomic Energy Authority,06/01/2014,PERSONAL PROTECTIVE EQUIPMENT,FUSION,ARCO LTD,5100298213,205.89
United Kingdom Atomic Energy Authority,United Kingdom Atomic Energy Authority,08/01/2014,PERSONAL PROTECTIVE EQUIPMENT,FUSION,ARCO LTD,5100298164,29.1
United Kingdom Atomic Energy Authority,United Kingdom Atomic Energy Authority,08/01/2014,PERSONAL PROTECTIVE EQUIPMENT,FUSION,ARCO LTD,5100298168,101.52
United Kingdom Atomic Energy Authority,United Kingdom Atomic Energy Authority,08/01/2014,PERSONAL PROTECTIVE EQUIPMENT,FUSION,ARCO LTD,5100298210,62.04
United Kingdom Atomic Energy Authority,United Kingdom Atomic Energy Authority,20/01/2014,PERSONAL PROTECTIVE EQUIPMENT,FUSION,ARCO LTD,5100298830,103.68
United Kingdom Atomic Energy Authority,United Kingdom Atomic Energy Authority,08/01/2014,PERSONAL PROTECTIVE EQUIPMENT,FUSION,ARCO LTD,5100297689,25.44
United Kingdom Atomic Energy Authority,United Kingdom Atomic Energy Authority,06/01/2014,PERSONAL PROTECTIVE EQUIPMENT,FUSION,ARCO LTD,5100298165,80.8
United Kingdom Atomic Energy Authority,United Kingdom Atomic Energy Authority,08/01/2014,PERSONAL PROTECTIVE EQUIPMENT,FUSION,ARCO LTD,5100298324,138.75
United Kingdom Atomic Energy Authority,United Kingdom Atomic Energy Authority,08/01/2014,PERSONAL PROTECTIVE EQUIPMENT,FUSION,ARCO LTD,5100298415,-24.64
United Kingdom Atomic Energy Authority,United Kingdom Atomic Energy Authority,22/01/2014,PERSONAL PROTECTIVE EQUIPMENT,FUSION,ARCO LTD,5100298440,93.2
United Kingdom Atomic Energy Authority,United Kingdom Atomic Energy Authority,06/01/2014,PERSONAL PROTECTIVE EQUIPMENT,FUSION,ARCO LTD,5100298322,36.72
United Kingdom Atomic Energy Authority,United Kingdom Atomic Energy Authority,20/01/2014,PERSONAL PROTECTIVE EQUIPMENT,FUSION,ARCO LTD,5100298670,36.72
United Kingdom Atomic Energy Authority,United Kingdom Atomic Energy Authority,13/01/2014,DESIGN & CONSTRUCTION,FUSION,ARMFIBRE LTD,5100298606,7823.5
United Kingdom Atomic Energy Authority,United Kingdom Atomic Energy Authority,13/01/2014,PLANT & EQUIPMENT,FUSION,ARVAL UK LIMITED,5100298562,271.62
United Kingdom Atomic Energy Authority,United Kingdom Atomic Energy Authority,13/01/2014,CATERING,FUSION,AVENANCE PLC,5100298476,614.43
United Kingdom Atomic Energy Authority,United Kingdom Atomic Energy Authority,13/01/2014,CATERING,FUSION,AVENANCE PLC,5100298477,513.65
United Kingdom Atomic Energy Authority,United Kingdom Atomic Energy Authority,13/01/2014,CATERING,PROPERTY,AVENANCE PLC,5100298469,16.66
United Kingdom Atomic Energy Authority,United Kingdom Atomic Energy Authority,13/01/2014,CATERING,PROPERTY,AVENANCE PLC,5100298471,6795.25
United Kingdom Atomic Energy Authority,United Kingdom Atomic Energy Authority,13/01/2014,CATERING,PROPERTY,AVENANCE PLC,5100298474,3683.81
United Kingdom Atomic Energy Authority,United Kingdom Atomic Energy Authority,13/01/2014,CATERING,PROPERTY,AVENANCE PLC,5100298475,442.19
United Kingdom Atomic Energy Authority,United Kingdom Atomic Energy Authority,13/01/2014,CATERING,PROPERTY,AVENANCE PLC,5100298478,186.25
United Kingdom Atomic Energy Authority,United Kingdom Atomic Energy Authority,08/01/2014,TREATED WATER,FUSION,B & V WATER TREATMENT,5100298289,1234.88
United Kingdom Atomic Energy Authority,United Kingdom Atomic Energy Authority,06/01/2014,REPAIRS & MAINTENANCE,FUSION,BATT CABLES PLC,5100298265,374
United Kingdom Atomic Energy Authority,United Kingdom Atomic Energy Authority,20/01/2014,PLANT SPARES,FUSION,BATT CABLES PLC,5100298763,80
United Kingdom Atomic Energy Authority,United Kingdom Atomic Energy Authority,13/01/2014,PLANT SPARES,FUSION,BD Nuclear Ltd,5100298399,40678.74
United Kingdom Atomic Energy Authority,United Kingdom Atomic Energy Authority,06/01/2014,PROFESSIONAL SERVICES,SUPPORT SERVICES,BDO LLP,5100298095,4030.4
United Kingdom Atomic Energy Authority,United Kingdom Atomic Energy Authority,06/01/2014,PROFESSIONAL SERVICES,PROPERTY,BDO LLP,5100297405,14185.25
United Kingdom Atomic Energy Authority,United Kingdom Atomic Energy Authority,20/01/2014,PLANT SPARES,FUSION,Beacon Group International Ltd,5100298747,142.46
United Kingdom Atomic Energy Authority,United Kingdom Atomic Energy Authority,20/01/2014,PLANT & EQUIPMENT,FUSION,BELLEVILLE SPRINGS LTD,5100298641,466.2
United Kingdom Atomic Energy Authority,United Kingdom Atomic Energy Authority,08/01/2014,PLANT SPARES,FUSION,BENTLEY SYSTEMS,5100298331,3552.36
United Kingdom Atomic Energy Authority,United Kingdom Atomic Energy Authority,20/01/2014,REPAIRS & MAINTENANCE,FUSION,BG COUNTERS LTD,5100298704,6495.12
United Kingdom Atomic Energy Authority,United Kingdom Atomic Energy Authority,13/01/2014,CLEANING,FUSION,BIFFA RECYCLING,5100298520,860
United Kingdom Atomic Energy Authority,United Kingdom Atomic Energy Authority,13/01/2014,CLEANING,FUSION,BIFFA RECYCLING,5100298522,12
United Kingdom Atomic Energy Authority,United Kingdom Atomic Energy Authority,13/01/2014,CLEANING,FUSION,BIFFA RECYCLING,5100298523,14
United Kingdom Atomic Energy Authority,United Kingdom Atomic Energy Authority,13/01/2014,CLEANING,FUSION,BIFFA RECYCLING,5100298524,542
United Kingdom Atomic Energy Authority,United Kingdom Atomic Energy Authority,13/01/2014,CLEANING,FUSION,BIFFA RECYCLING,5100298526,14
United Kingdom Atomic Energy Authority,United Kingdom Atomic Energy Authority,13/01/2014,CLEANING,FUSION,BIFFA RECYCLING,5100298527,231.01
United Kingdom Atomic Energy Authority,United Kingdom Atomic Energy Authority,13/01/2014,CLEANING,FUSION,BIFFA RECYCLING,5100298530,14
United Kingdom Atomic Energy Authority,United Kingdom Atomic Energy Authority,13/01/2014,CLEANING,FUSION,BIFFA RECYCLING,5100298531,14
United Kingdom Atomic Energy Authority,United Kingdom Atomic Energy Authority,13/01/2014,CLEANING,FUSION,BIFFA RECYCLING,5100298532,186.52
United Kingdom Atomic Energy Authority,United Kingdom Atomic Energy Authority,13/01/2014,CLEANING,FUSION,BIFFA RECYCLING,5100298533,14
United Kingdom Atomic Energy Authority,United Kingdom Atomic Energy Authority,13/01/2014,CLEANING,FUSION,BIFFA RECYCLING,5100298534,14
United Kingdom Atomic Energy Authority,United Kingdom Atomic Energy Authority,13/01/2014,CLEANING,FUSION,BIFFA RECYCLING,5100298535,14
United Kingdom Atomic Energy Authority,United Kingdom Atomic Energy Authority,13/01/2014,CLEANING,FUSION,BIFFA RECYCLING,5100298536,14
United Kingdom Atomic Energy Authority,United Kingdom Atomic Energy Authority,13/01/2014,HIRED STAFF,FUSION,BLACK DIAMOND UMBRELLA LTD,5100298503,1422.92
United Kingdom Atomic Energy Authority,United Kingdom Atomic Energy Authority,13/01/2014,HIRED STAFF,FUSION,BLACK DIAMOND UMBRELLA LTD,5100298504,1165.13
United Kingdom Atomic Energy Authority,United Kingdom Atomic Energy Authority,13/01/2014,HIRED STAFF,FUSION,BLACK DIAMOND UMBRELLA LTD,5100298505,1165.13
United Kingdom Atomic Energy Authority,United Kingdom Atomic Energy Authority,13/01/2014,HIRED STAFF,FUSION,BLACK DIAMOND UMBRELLA LTD,5100298507,1009.5
United Kingdom Atomic Energy Authority,United Kingdom Atomic Energy Authority,13/01/2014,HIRED STAFF,FUSION,BLACK DIAMOND UMBRELLA LTD,5100298508,1129.1
United Kingdom Atomic Energy Authority,United Kingdom Atomic Energy Authority,13/01/2014,HIRED STAFF,FUSION,BLACK DIAMOND UMBRELLA LTD,5100298510,1009.5
United Kingdom Atomic Energy Authority,United Kingdom Atomic Energy Authority,13/01/2014,HIRED STAFF,FUSION,BLACK DIAMOND UMBRELLA LTD,5100298511,1009.5
United Kingdom Atomic Energy Authority,United Kingdom Atomic Energy Authority,13/01/2014,HIRED STAFF,FUSION,BLACK DIAMOND UMBRELLA LTD,5100298512,331.65
United Kingdom Atomic Energy Authority,United Kingdom Atomic Energy Authority,13/01/2014,HIRED STAFF,FUSION,BLACK DIAMOND UMBRELLA LTD,5100298513,1079.56
United Kingdom Atomic Energy Authority,United Kingdom Atomic Energy Authority,13/01/2014,HIRED STAFF,FUSION,BLACK DIAMOND UMBRELLA LTD,5100298514,829.13
United Kingdom Atomic Energy Authority,United Kingdom Atomic Energy Authority,13/01/2014,HIRED STAFF,FUSION,BLACK DIAMOND UMBRELLA LTD,5100298516,829.13
United Kingdom Atomic Energy Authority,United Kingdom Atomic Energy Authority,13/01/2014,HIRED STAFF,FUSION,BLACK DIAMOND UMBRELLA LTD,5100298517,4256.86
United Kingdom Atomic Energy Authority,United Kingdom Atomic Energy Authority,13/01/2014,HIRED STAFF,FUSION,BLACK DIAMOND UMBRELLA LTD,5100298518,4856.68
United Kingdom Atomic Energy Authority,United Kingdom Atomic Energy Authority,08/01/2014,BOOKS & PUBLICATIONS,FUSION,BLACKWELL UK LTD,5100298458,101
United Kingdom Atomic Energy Authority,United Kingdom Atomic Energy Authority,13/01/2014,BOOKS & PUBLICATIONS,FUSION,BLACKWELL UK LTD,5100298456,9.99
United Kingdom Atomic Energy Authority,United Kingdom Atomic Energy Authority,13/01/2014,BOOKS & PUBLICATIONS,FUSION,BLACKWELL UK LTD,5100298457,88.97
United Kingdom Atomic Energy Authority,United Kingdom Atomic Energy Authority,13/01/2014,BOOKS & PUBLICATIONS,FUSION,BLACKWELL UK LTD,5100298459,358.52
United Kingdom Atomic Energy Authority,United Kingdom Atomic Energy Authority,13/01/2014,CONSUMABLES,FUSION,B-LINE BUSINESS SUPPLIES LTD,5100298414,99.5
United Kingdom Atomic Energy Authority,United Kingdom Atomic Energy Authority,20/01/2014,LAUNDRY,FUSION,BLUEBELL LAUNDRY,5100298685,129.15
United Kingdom Atomic Energy Authority,United Kingdom Atomic Energy Authority,08/01/2014,PROFESSIONAL SERVICES,FUSION,BNS NUCLEAR SERVICES,5100298147,59376.4
United Kingdom Atomic Energy Authority,United Kingdom Atomic Energy Authority,08/01/2014,GASES,FUSION,BOC LTD,5100298171,52.44
United Kingdom Atomic Energy Authority,United Kingdom Atomic Energy Authority,08/01/2014,GASES,FUSION,BOC LTD,5100298175,115.26
United Kingdom Atomic Energy Authority,United Kingdom Atomic Energy Authority,06/01/2014,GASES,FUSION,BOC LTD,5100298316,98.58
United Kingdom Atomic Energy Authority,United Kingdom Atomic Energy Authority,22/01/2014,GASES,FUSION,BOC LTD,5100298981,246.78
United Kingdom Atomic Energy Authority,United Kingdom Atomic Energy Authority,22/01/2014,GASES,FUSION,BOC LTD,5100298653,91.12
United Kingdom Atomic Energy Authority,United Kingdom Atomic Energy Authority,22/01/2014,GASES,FUSION,BOC LTD,5100298773,39
United Kingdom Atomic Energy Authority,United Kingdom Atomic Energy Authority,20/01/2014,GASES,FUSION,BOC LTD,5100293557,204.43
United Kingdom Atomic Energy Authority,United Kingdom Atomic Energy Authority,06/01/2014,GASES,FUSION,BOC LTD,5100298173,53.19
United Kingdom Atomic Energy Authority,United Kingdom Atomic Energy Authority,06/01/2014,GASES,FUSION,BOC LTD,5100298314,204.43
United Kingdom Atomic Energy Authority,United Kingdom Atomic Energy Authority,06/01/2014,GASES,FUSION,BOC LTD,5100298315,2925
United Kingdom Atomic Energy Authority,United Kingdom Atomic Energy Authority,20/01/2014,GASES,FUSION,BOC LTD,5100298659,204.49
United Kingdom Atomic Energy Authority,United Kingdom Atomic Energy Authority,20/01/2014,GASES,FUSION,BOC LTD,5100298681,1166.84
United Kingdom Atomic Energy Authority,United Kingdom Atomic Energy Authority,20/01/2014,GASES,FUSION,BOC LTD,5100298708,44.86
United Kingdom Atomic Energy Authority,United Kingdom Atomic Energy Authority,20/01/2014,GASES,FUSION,BOC LTD,5100298709,2494.42
United Kingdom Atomic Energy Authority,United Kingdom Atomic Energy Authority,20/01/2014,GASES,FUSION,BOC LTD,5100298774,121.52
United Kingdom Atomic Energy Authority,United Kingdom Atomic Energy Authority,20/01/2014,GASES,FUSION,BOC LTD,5100298778,-76.37
United Kingdom Atomic Energy Authority,United Kingdom Atomic Energy Authority,20/01/2014,GASES,FUSION,BOC LTD,5100298651,178.69
United Kingdom Atomic Energy Authority,United Kingdom Atomic Energy Authority,20/01/2014,GASES,FUSION,BOC LTD,5100298656,25.06
United Kingdom Atomic Energy Authority,United Kingdom Atomic Energy Authority,08/01/2014,GASES,FUSION,BOC LTD,5100297773,5850
United Kingdom Atomic Energy Authority,United Kingdom Atomic Energy Authority,20/01/2014,GASES,FUSION,BOC LTD,5100298658,181.11
United Kingdom Atomic Energy Authority,United Kingdom Atomic Energy Authority,20/01/2014,GASES,FUSION,BOC LTD,5100298661,54.72
United Kingdom Atomic Energy Authority,United Kingdom Atomic Energy Authority,20/01/2014,GASES,FUSION,BOC LTD,5100298775,42.47
United Kingdom Atomic Energy Authority,United Kingdom Atomic Energy Authority,22/01/2014,GASES,FUSION,BOC LTD,5100298654,218.72
United Kingdom Atomic Energy Authority,United Kingdom Atomic Energy Authority,20/01/2014,GASES,FUSION,BOC LTD,5100293558,255.6
United Kingdom Atomic Energy Authority,United Kingdom Atomic Energy Authority,20/01/2014,GASES,FUSION,BOC LTD,5100298660,71.75
United Kingdom Atomic Energy Authority,United Kingdom Atomic Energy Authority,22/01/2014,GASES,FUSION,BOC LTD,5100298982,243.05
United Kingdom Atomic Energy Authority,United Kingdom Atomic Energy Authority,20/01/2014,GASES,FUSION,BOC LTD,5100298657,126.51
United Kingdom Atomic Energy Authority,United Kingdom Atomic Energy Authority,20/01/2014,GASES,FUSION,BOC LTD,5100298772,31.2
United Kingdom Atomic Energy Authority,United Kingdom Atomic Energy Authority,15/01/2014,PROFESSIONAL SERVICES,FUSION,BODYCOTE HEAT LTD,5100297953,656
United Kingdom Atomic Energy Authority,United Kingdom Atomic Energy Authority,15/01/2014,PROFESSIONAL SERVICES,FUSION,BODYCOTE HEAT LTD,5100297954,245.75
United Kingdom Atomic Energy Authority,United Kingdom Atomic Energy Authority,15/01/2014,PROFESSIONAL SERVICES,FUSION,BODYCOTE HEAT LTD,5100297955,245.75
United Kingdom Atomic Energy Authority,United Kingdom Atomic Energy Authority,06/01/2014,CONSUMABLES,FUSION,BOXER MACHINE TOOLS SERVICES,5100298321,250
United Kingdom Atomic Energy Authority,United Kingdom Atomic Energy Authority,03/01/2014,,,Boyes Turner LLP,1900059266,3500
United Kingdom Atomic Energy Authority,United Kingdom Atomic Energy Authority,13/01/2014,,,Boyes Turner LLP,1900059296,1750
United Kingdom Atomic Energy Authority,United Kingdom Atomic Energy Authority,13/01/2014,PLANT SPARES,FUSION,BRITE PRECISION,5100298585,4518
United Kingdom Atomic Energy Authority,United Kingdom Atomic Energy Authority,06/01/2014,PLANT SPARES,FUSION,BRITE PRECISION,5100298041,2890
United Kingdom Atomic Energy Authority,United Kingdom Atomic Energy Authority,20/01/2014,UTILITIES/ELECTRICITY,PROPERTY,BRITISH GAS BUSINESS,5100298722,893.46
United Kingdom Atomic Energy Authority,United Kingdom Atomic Energy Authority,20/01/2014,UTILITIES/ELECTRICITY,PROPERTY,BRITISH GAS BUSINESS,5100298723,399.54
United Kingdom Atomic Energy Authority,United Kingdom Atomic Energy Authority,20/01/2014,UTILITIES/ELECTRICITY,PROPERTY,BRITISH GAS BUSINESS,5100298724,45.59
United Kingdom Atomic Energy Authority,United Kingdom Atomic Energy Authority,20/01/2014,UTILITIES/ELECTRICITY,PROPERTY,BRITISH GAS BUSINESS,5100298725,352.38
United Kingdom Atomic Energy Authority,United Kingdom Atomic Energy Authority,20/01/2014,UTILITIES/ELECTRICITY,PROPERTY,BRITISH GAS BUSINESS,5100298726,386.12
United Kingdom Atomic Energy Authority,United Kingdom Atomic Energy Authority,20/01/2014,UTILITIES/ELECTRICITY,PROPERTY,BRITISH GAS BUSINESS,5100298727,63.45
United Kingdom Atomic Energy Authority,United Kingdom Atomic Energy Authority,20/01/2014,UTILITIES/ELECTRICITY,PROPERTY,BRITISH GAS BUSINESS,5100298728,86.14
United Kingdom Atomic Energy Authority,United Kingdom Atomic Energy Authority,20/01/2014,UTILITIES/ELECTRICITY,PROPERTY,BRITISH GAS BUSINESS,5100298729,746.85
United Kingdom Atomic Energy Authority,United Kingdom Atomic Energy Authority,08/01/2014,CONSUMABLES,FUSION,BRITISH SALT LTD,5100298335,2161.49
United Kingdom Atomic Energy Authority,United Kingdom Atomic Energy Authority,08/01/2014,PROFESSIONAL SERVICES,PROPERTY,BSP CONSULTING,5100298281,705
United Kingdom Atomic Energy Authority,United Kingdom Atomic Energy Authority,06/01/2014,MATERIALS & SPARES,FUSION,BSS OXFORD,5100298038,245.03
United Kingdom Atomic Energy Authority,United Kingdom Atomic Energy Authority,20/01/2014,MATERIALS & SPARES,FUSION,BSS OXFORD,5100298828,926.68
United Kingdom Atomic Energy Authority,United Kingdom Atomic Energy Authority,06/01/2014,MATERIALS & SPARES,FUSION,BSS OXFORD,5100298040,81.52
United Kingdom Atomic Energy Authority,United Kingdom Atomic Energy Authority,06/01/2014,PERSONAL PROTECTIVE EQUIPMENT,FUSION,BUCK & HICKMAN LTD,5100298302,365.62
United Kingdom Atomic Energy Authority,United Kingdom Atomic Energy Authority,06/01/2014,PERSONAL PROTECTIVE EQUIPMENT,FUSION,BUCK & HICKMAN LTD,5100298303,15
United Kingdom Atomic Energy Authority,United Kingdom Atomic Energy Authority,06/01/2014,MATERIALS & SPARES,FUSION,BUDGET FORKTRUCKS LTD,5100298146,390
United Kingdom Atomic Energy Authority,United Kingdom Atomic Energy Authority,13/01/2014,MATERIALS & SPARES,FUSION,BUDGET FORKTRUCKS LTD,5100298549,758
United Kingdom Atomic Energy Authority,United Kingdom Atomic Energy Authority,06/01/2014,MATERIALS & SPARES,FUSION,BUDGET FORKTRUCKS LTD,5100298143,342.33
United Kingdom Atomic Energy Authority,United Kingdom Atomic Energy Authority,08/01/2014,MATERIALS & SPARES,FUSION,BUDGET FORKTRUCKS LTD,5100298144,312
United Kingdom Atomic Energy Authority,United Kingdom Atomic Energy Authority,06/01/2014,MATERIALS & SPARES,FUSION,BUDGET FORKTRUCKS LTD,5100298135,342.33
United Kingdom Atomic Energy Authority,United Kingdom Atomic Energy Authority,08/01/2014,MATERIALS & SPARES,FUSION,BUDGET FORKTRUCKS LTD,5100298140,909
United Kingdom Atomic Energy Authority,United Kingdom Atomic Energy Authority,08/01/2014,MATERIALS & SPARES,FUSION,BUDGET FORKTRUCKS LTD,5100298257,180
United Kingdom Atomic Energy Authority,United Kingdom Atomic Energy Authority,06/01/2014,MATERIALS & SPARES,PROPERTY,BUDGET FORKTRUCKS LTD,5100298145,268.67
United Kingdom Atomic Energy Authority,United Kingdom Atomic Energy Authority,20/01/2014,CATERING SUPPLIES,SUPPORT SERVICES,BWT UK LTD,5100298564,542.65
United Kingdom Atomic Energy Authority,United Kingdom Atomic Energy Authority,13/01/2014,TRAINING COURSE FEES,SUPPORT SERVICES,CANON FIRE PROTECTION,5100297755,540
United Kingdom Atomic Energy Authority,United Kingdom Atomic Energy Authority,13/01/2014,TRAVEL,SUPPORT SERVICES,CAPITA BUSINESS TRAVEL,5100298462,-146.29
United Kingdom Atomic Energy Authority,United Kingdom Atomic Energy Authority,13/01/2014,TRAVEL,SUPPORT SERVICES,CAPITA BUSINESS TRAVEL,5100298463,940.27
United Kingdom Atomic Energy Authority,United Kingdom Atomic Energy Authority,06/01/2014,CONSUMABLES,FUSION,CARILLON INDUSTRIAL SERVICES LTD,5100298092,9.67
United Kingdom Atomic Energy Authority,United Kingdom Atomic Energy Authority,06/01/2014,CONSUMABLES,FUSION,CARILLON INDUSTRIAL SERVICES LTD,5100298093,58.01
United Kingdom Atomic Energy Authority,United Kingdom Atomic Energy Authority,06/01/2014,CONSUMABLES,FUSION,CARILLON INDUSTRIAL SERVICES LTD,5100298094,149.75
United Kingdom Atomic Energy Authority,United Kingdom Atomic Energy Authority,16/01/2014,OTHER EXTERNAL COSTS,FUSION,Caspian Media Ltd,1900059328,1748
United Kingdom Atomic Energy Authority,United Kingdom Atomic Energy Authority,20/01/2014,MATERIALS & SPARES,FUSION,CBL ELECTRIC VEHICLES LTD,5100298584,390.32
United Kingdom Atomic Energy Authority,United Kingdom Atomic Energy Authority,15/01/2014,CONSUMABLES,FUSION,CERAMIC SEALS LTD,5100298487,282.4
United Kingdom Atomic Energy Authority,United Kingdom Atomic Energy Authority,16/01/2014,TRAINING COURSE FEES,FUSION,Chartered Institute of Public Relations,1900059313,950
United Kingdom Atomic Energy Authority,United Kingdom Atomic Energy Authority,06/01/2014,MATERIALS: HAZARDOUS,FUSION,CHEMTECH WASTE MANAGEMENT,5100298178,1760
United Kingdom Atomic Energy Authority,United Kingdom Atomic Energy Authority,06/01/2014,LAUNDRY,FUSION,CLEAN LINEN SERVICES LTD,5100298384,64.72
United Kingdom Atomic Energy Authority,United Kingdom Atomic Energy Authority,15/01/2014,REPAIRS & MAINTENANCE,FUSION,CLEANLASER,5100298103,2655.18
United Kingdom Atomic Energy Authority,United Kingdom Atomic Energy Authority,20/01/2014,CATERING,PROPERTY,CLEANSING SERVICE GROUP LTD,5100298595,74.3
United Kingdom Atomic Energy Authority,United Kingdom Atomic Energy Authority,20/01/2014,CATERING,PROPERTY,CLEANSING SERVICE GROUP LTD,5100298596,54.6
United Kingdom Atomic Energy Authority,United Kingdom Atomic Energy Authority,15/01/2014,PROFESSIONAL SERVICES,SUPPORT SERVICES,CLYDE & CO LLP,5100298550,386
United Kingdom Atomic Energy Authority,United Kingdom Atomic Energy Authority,20/01/2014,PROFESSIONAL SERVICES,SUPPORT SERVICES,CLYDE & CO LLP,5100298662,200
United Kingdom Atomic Energy Authority,United Kingdom Atomic Energy Authority,20/01/2014,PROFESSIONAL SERVICES,SUPPORT SERVICES,CLYDE & CO LLP,5100298748,1046.5
United Kingdom Atomic Energy Authority,United Kingdom Atomic Energy Authority,06/01/2014,UTILITIES/GAS,PROPERTY,COFELY LTD,5100298306,20044.73
United Kingdom Atomic Energy Authority,United Kingdom Atomic Energy Authority,06/01/2014,UTILITIES/GAS,PROPERTY,COFELY LTD,5100298308,26582.5
United Kingdom Atomic Energy Authority,United Kingdom Atomic Energy Authority,22/01/2014,UTILITIES/GAS,PROPERTY,COFELY LTD,5100298847,63856.42
United Kingdom Atomic Energy Authority,United Kingdom Atomic Energy Authority,22/01/2014,UTILITIES/GAS,PROPERTY,COFELY LTD,5100298848,3878.41
United Kingdom Atomic Energy Authority,United Kingdom Atomic Energy Authority,15/01/2014,MATERIALS & SPARES,FUSION,COMMISSARIAT L ENERGIE ATOMIQUE CEA,5100297958,7006.19
United Kingdom Atomic Energy Authority,United Kingdom Atomic Energy Authority,20/01/2014,PLANT SPARES,FUSION,CONDEC INDUSTRIAL MAINTENANCE,5100298714,1855
United Kingdom Atomic Energy Authority,United Kingdom Atomic Energy Authority,13/01/2014,PLANT SPARES,FUSION,CONDEC INDUSTRIAL MAINTENANCE,5100298480,9460
United Kingdom Atomic Energy Authority,United Kingdom Atomic Energy Authority,20/01/2014,PLANT SPARES,FUSION,CONDEC INDUSTRIAL MAINTENANCE,5100298589,880
United Kingdom Atomic Energy Authority,United Kingdom Atomic Energy Authority,22/01/2014,PROFESSIONAL SERVICES,PROPERTY,CONNAUGHT COMPLIANCE SERVICES LTD,5100298938,912
United Kingdom Atomic Energy Authority,United Kingdom Atomic Energy Authority,22/01/2014,PROFESSIONAL SERVICES,PROPERTY,CONNAUGHT COMPLIANCE SERVICES LTD,5100298939,380
United Kingdom Atomic Energy Authority,United Kingdom Atomic Energy Authority,22/01/2014,PROFESSIONAL SERVICES,PROPERTY,CONNAUGHT COMPLIANCE SERVICES LTD,5100298940,190
United Kingdom Atomic Energy Authority,United Kingdom Atomic Energy Authority,22/01/2014,PROFESSIONAL SERVICES,PROPERTY,CONNAUGHT COMPLIANCE SERVICES LTD,5100298941,190
United Kingdom Atomic Energy Authority,United Kingdom Atomic Energy Authority,22/01/2014,PROFESSIONAL SERVICES,PROPERTY,CONNAUGHT COMPLIANCE SERVICES LTD,5100298942,380
United Kingdom Atomic Energy Authority,United Kingdom Atomic Energy Authority,20/01/2014,MATERIALS & SPARES,FUSION,CPC PLC,5100298588,62.37
United Kingdom Atomic Energy Authority,United Kingdom Atomic Energy Authority,13/01/2014,MATERIALS & SPARES,FUSION,CPC PLC,5100298090,262.06
United Kingdom Atomic Energy Authority,United Kingdom Atomic Energy Authority,06/01/2014,MATERIALS & SPARES,FUSION,CPC PLC,5100298305,152.52
United Kingdom Atomic Energy Authority,United Kingdom Atomic Energy Authority,13/01/2014,MATERIALS & SPARES,FUSION,CPC PLC,5100298586,0.45
United Kingdom Atomic Energy Authority,United Kingdom Atomic Energy Authority,06/01/2014,MATERIALS & SPARES,FUSION,CPC PLC,5100298383,153.09
United Kingdom Atomic Energy Authority,United Kingdom Atomic Energy Authority,13/01/2014,MATERIALS & SPARES,FUSION,CPC PLC,5100298587,9.66
United Kingdom Atomic Energy Authority,United Kingdom Atomic Energy Authority,06/01/2014,REPAIRS & MAINTENANCE,FUSION,CRANE CARE LTD,5100298084,690
United Kingdom Atomic Energy Authority,United Kingdom Atomic Energy Authority,06/01/2014,REPAIRS & MAINTENANCE,FUSION,CRANE CARE LTD,5100298282,400
United Kingdom Atomic Energy Authority,United Kingdom Atomic Energy Authority,09/01/2014,OTHER STAFF COSTS,FUSION,Cranleigh Recruitment,1900059284,9144
United Kingdom Atomic Energy Authority,United Kingdom Atomic Energy Authority,06/01/2014,MATERIALS & SPARES,FUSION,CROMWELL LTD,5100298291,105.71
United Kingdom Atomic Energy Authority,United Kingdom Atomic Energy Authority,13/01/2014,MATERIALS & SPARES,FUSION,CROMWELL LTD,5100298442,161.2
United Kingdom Atomic Energy Authority,United Kingdom Atomic Energy Authority,06/01/2014,MATERIALS & SPARES,FUSION,CROMWELL LTD,5100298292,7.88
United Kingdom Atomic Energy Authority,United Kingdom Atomic Energy Authority,13/01/2014,MATERIALS & SPARES,FUSION,CROMWELL LTD,5100298441,810.3
United Kingdom Atomic Energy Authority,United Kingdom Atomic Energy Authority,13/01/2014,MATERIALS & SPARES,FUSION,CROMWELL LTD,5100298293,386.35
United Kingdom Atomic Energy Authority,United Kingdom Atomic Energy Authority,20/01/2014,PROFESSIONAL SERVICES,SUPPORT SERVICES,CSS WORKSAFE,5100298560,750
United Kingdom Atomic Energy Authority,United Kingdom Atomic Energy Authority,20/01/2014,BUILDING REPAIRS,FUSION,D CLOUGH LTD,5100298479,2002.95
United Kingdom Atomic Energy Authority,United Kingdom Atomic Energy Authority,20/01/2014,BUILDING REPAIRS,FUSION,D CLOUGH LTD,5100298759,-2002.95
United Kingdom Atomic Energy Authority,United Kingdom Atomic Energy Authority,20/01/2014,BUILDING REPAIRS,FUSION,D CLOUGH LTD,5100298760,2002.95
United Kingdom Atomic Energy Authority,United Kingdom Atomic Energy Authority,16/01/2014,OTHER EXTERNAL COSTS,FUSION,DDR Ltd,1900059329,1046.4
United Kingdom Atomic Energy Authority,United Kingdom Atomic Energy Authority,08/01/2014,IT EQUIPMENT NON CAPITAL,FUSION,Dell Products,5100298460,3999
United Kingdom Atomic Energy Authority,United Kingdom Atomic Energy Authority,06/01/2014,PROFESSIONAL SERVICES,FUSION,DESIGNRULE LTD,5100298261,100
United Kingdom Atomic Energy Authority,United Kingdom Atomic Energy Authority,20/01/2014,OTHER EXTERNAL COSTS,FUSION,DHL International,1900059345,55.39
United Kingdom Atomic Energy Authority,United Kingdom Atomic Energy Authority,06/01/2014,MATERIALS & SPARES,FUSION,DURBIN METAL INDUSTRIES LTD,5100298081,34
United Kingdom Atomic Energy Authority,United Kingdom Atomic Energy Authority,06/01/2014,MATERIALS & SPARES,FUSION,DURBIN METAL INDUSTRIES LTD,5100298155,424.5
United Kingdom Atomic Energy Authority,United Kingdom Atomic Energy Authority,06/01/2014,MATERIALS & SPARES,FUSION,DURBIN METAL INDUSTRIES LTD,5100298290,32.5
United Kingdom Atomic Energy Authority,United Kingdom Atomic Energy Authority,13/01/2014,UTILITIES/ELECTRICITY,FUSION,EDF ENERGY,5100298500,321521.24
United Kingdom Atomic Energy Authority,United Kingdom Atomic Energy Authority,13/01/2014,UTILITIES/ELECTRICITY,FUSION,EDF ENERGY,5100298501,92641.08
United Kingdom Atomic Energy Authority,United Kingdom Atomic Energy Authority,15/01/2014,UTILITIES/ELECTRICITY,PROPERTY,EDF ENERGY,5100298492,1353.21
United Kingdom Atomic Energy Authority,United Kingdom Atomic Energy Authority,15/01/2014,UTILITIES/ELECTRICITY,PROPERTY,EDF ENERGY,5100298493,22366.23
United Kingdom Atomic Energy Authority,United Kingdom Atomic Energy Authority,15/01/2014,UTILITIES/ELECTRICITY,PROPERTY,EDF ENERGY,5100298494,783.57
United Kingdom Atomic Energy Authority,United Kingdom Atomic Energy Authority,15/01/2014,UTILITIES/ELECTRICITY,PROPERTY,EDF ENERGY,5100298495,3067.94
United Kingdom Atomic Energy Authority,United Kingdom Atomic Energy Authority,15/01/2014,UTILITIES/ELECTRICITY,PROPERTY,EDF ENERGY,5100298496,20500.21
United Kingdom Atomic Energy Authority,United Kingdom Atomic Energy Authority,15/01/2014,UTILITIES/ELECTRICITY,PROPERTY,EDF ENERGY,5100298497,483.86
United Kingdom Atomic Energy Authority,United Kingdom Atomic Energy Authority,15/01/2014,UTILITIES/ELECTRICITY,PROPERTY,EDF ENERGY,5100298498,38076.22
United Kingdom Atomic Energy Authority,United Kingdom Atomic Energy Authority,06/01/2014,PLANT & EQUIPMENT,FUSION,EDMUNDSON ELECTRICALS LTD,5100298241,406.65
United Kingdom Atomic Energy Authority,United Kingdom Atomic Energy Authority,06/01/2014,PLANT & EQUIPMENT,FUSION,EDMUNDSON ELECTRICALS LTD,5100298298,86.11
United Kingdom Atomic Energy Authority,United Kingdom Atomic Energy Authority,15/01/2014,PLANT & EQUIPMENT,FUSION,EDMUNDSON ELECTRICALS LTD,5100296211,1411.77
United Kingdom Atomic Energy Authority,United Kingdom Atomic Energy Authority,15/01/2014,PLANT & EQUIPMENT,FUSION,EDMUNDSON ELECTRICALS LTD,5100296508,146.36
United Kingdom Atomic Energy Authority,United Kingdom Atomic Energy Authority,15/01/2014,PLANT & EQUIPMENT,FUSION,EDMUNDSON ELECTRICALS LTD,5100296807,33.06
United Kingdom Atomic Energy Authority,United Kingdom Atomic Energy Authority,15/01/2014,PLANT & EQUIPMENT,FUSION,EDMUNDSON ELECTRICALS LTD,5100297005,99.18
United Kingdom Atomic Energy Authority,United Kingdom Atomic Energy Authority,13/01/2014,PLANT & EQUIPMENT,FUSION,EDMUNDSON ELECTRICALS LTD,5100298439,2538.06
United Kingdom Atomic Energy Authority,United Kingdom Atomic Energy Authority,06/01/2014,PLANT & EQUIPMENT,FUSION,EDMUNDSON ELECTRICALS LTD,5100298296,1108.71
United Kingdom Atomic Energy Authority,United Kingdom Atomic Energy Authority,20/01/2014,PLANT & EQUIPMENT,FUSION,EDMUNDSON ELECTRICALS LTD,5100298676,97.08
United Kingdom Atomic Energy Authority,United Kingdom Atomic Energy Authority,20/01/2014,PLANT & EQUIPMENT,FUSION,EDMUNDSON ELECTRICALS LTD,5100298680,510.2
United Kingdom Atomic Energy Authority,United Kingdom Atomic Energy Authority,15/01/2014,PLANT & EQUIPMENT,FUSION,EDMUNDSON ELECTRICALS LTD,5100296810,11.68
United Kingdom Atomic Energy Authority,United Kingdom Atomic Energy Authority,06/01/2014,PLANT & EQUIPMENT,FUSION,EDMUNDSON ELECTRICALS LTD,5100298299,20.92
United Kingdom Atomic Energy Authority,United Kingdom Atomic Energy Authority,06/01/2014,PLANT & EQUIPMENT,FUSION,EDMUNDSON ELECTRICALS LTD,5100298300,565.13
United Kingdom Atomic Energy Authority,United Kingdom Atomic Energy Authority,20/01/2014,PLANT & EQUIPMENT,FUSION,EDMUNDSON ELECTRICALS LTD,5100298544,37.35
United Kingdom Atomic Energy Authority,United Kingdom Atomic Energy Authority,20/01/2014,PLANT & EQUIPMENT,FUSION,EDMUNDSON ELECTRICALS LTD,5100298546,216.84
United Kingdom Atomic Energy Authority,United Kingdom Atomic Energy Authority,20/01/2014,PLANT & EQUIPMENT,FUSION,EDMUNDSON ELECTRICALS LTD,5100298675,199
United Kingdom Atomic Energy Authority,United Kingdom Atomic Energy Authority,20/01/2014,PLANT & EQUIPMENT,FUSION,EDMUNDSON ELECTRICALS LTD,5100298677,343.03
United Kingdom Atomic Energy Authority,United Kingdom Atomic Energy Authority,15/01/2014,PLANT & EQUIPMENT,FUSION,EDMUNDSON ELECTRICALS LTD,5100298678,-11.68
United Kingdom Atomic Energy Authority,United Kingdom Atomic Energy Authority,08/01/2014,F&F,FUSION,EFG MATTHEWS OFFICE FURNITURE LTD,5100298484,213.9
United Kingdom Atomic Energy Authority,United Kingdom Atomic Energy Authority,06/01/2014,F&F,FUSION,EFG MATTHEWS OFFICE FURNITURE LTD,5100298380,231
United Kingdom Atomic Energy Authority,United Kingdom Atomic Energy Authority,08/01/2014,F&F,FUSION,EFG MATTHEWS OFFICE FURNITURE LTD,5100298486,67.5
United Kingdom Atomic Energy Authority,United Kingdom Atomic Energy Authority,08/01/2014,F&F,PROPERTY,EFG MATTHEWS OFFICE FURNITURE LTD,5100298485,3106.4
United Kingdom Atomic Energy Authority,United Kingdom Atomic Energy Authority,08/01/2014,MATERIALS & SPARES,FUSION,ELECTRICAL OIL SERVICES LTD,5100296779,177.25
United Kingdom Atomic Energy Authority,United Kingdom Atomic Energy Authority,04/01/2014,PROFESSIONAL SUBSCRIPTION,FUSION,EMPLOYEE EXPENSES,100709700,205
United Kingdom Atomic Energy Authority,United Kingdom Atomic Energy Authority,16/01/2014,EFDA TRAVEL EXPENSES,FUSION,EMPLOYEE EXPENSES,100710577,138.26
United Kingdom Atomic Energy Authority,United Kingdom Atomic Energy Authority,16/01/2014,EFDA TRAVEL EXPENSES,FUSION,EMPLOYEE EXPENSES,100710578,91.51
United Kingdom Atomic Energy Authority,United Kingdom Atomic Energy Authority,16/01/2014,EFDA TRAVEL EXPENSES,FUSION,EMPLOYEE EXPENSES,100710583,144.38
United Kingdom Atomic Energy Authority,United Kingdom Atomic Energy Authority,16/01/2014,EFDA TRAVEL EXPENSES,FUSION,EMPLOYEE EXPENSES,100710584,543.67
United Kingdom Atomic Energy Authority,United Kingdom Atomic Energy Authority,16/01/2014,EFDA TRAVEL EXPENSES,FUSION,EMPLOYEE EXPENSES,100710585,528.94
United Kingdom Atomic Energy Authority,United Kingdom Atomic Energy Authority,16/01/2014,EFDA TRAVEL EXPENSES,FUSION,EMPLOYEE EXPENSES,100710586,226.77
United Kingdom Atomic Energy Authority,United Kingdom Atomic Energy Authority,16/01/2014,EFDA TRAVEL EXPENSES,FUSION,EMPLOYEE EXPENSES,100710604,313.48
United Kingdom Atomic Energy Authority,United Kingdom Atomic Energy Authority,04/01/2014,MILEAGE ALLOWANCE,SUPPORT SERVICES,EMPLOYEE EXPENSES,100709701,26.4
United Kingdom Atomic Energy Authority,United Kingdom Atomic Energy Authority,09/01/2014,PROFESSIONAL SUBSCRIPTION,SUPPORT SERVICES,EMPLOYEE EXPENSES,100710435,205
United Kingdom Atomic Energy Authority,United Kingdom Atomic Energy Authority,09/01/2014,PROFESSIONAL SUBSCRIPTION,SUPPORT SERVICES,EMPLOYEE EXPENSES,100710452,162.18
United Kingdom Atomic Energy Authority,United Kingdom Atomic Energy Authority,23/01/2014,MILEAGE ALLOWANCE,SUPPORT SERVICES,EMPLOYEE EXPENSES,100711780,26.55
United Kingdom Atomic Energy Authority,United Kingdom Atomic Energy Authority,09/01/2014,PROFESSIONAL SUBSCRIPTION,SUPPORT SERVICES,EMPLOYEE EXPENSES,100710442,200
United Kingdom Atomic Energy Authority,United Kingdom Atomic Energy Authority,09/01/2014,PROFESSIONAL SUBSCRIPTION,SUPPORT SERVICES,EMPLOYEE EXPENSES,100710447,78
United Kingdom Atomic Energy Authority,United Kingdom Atomic Energy Authority,09/01/2014,MILEAGE ALLOWANCE,SUPPORT SERVICES,EMPLOYEE EXPENSES,100710469,13.5
United Kingdom Atomic Energy Authority,United Kingdom Atomic Energy Authority,09/01/2014,MILEAGE ALLOWANCE,SUPPORT SERVICES,EMPLOYEE EXPENSES,100710470,13.5
United Kingdom Atomic Energy Authority,United Kingdom Atomic Energy Authority,09/01/2014,MILEAGE ALLOWANCE,SUPPORT SERVICES,EMPLOYEE EXPENSES,100710471,13.5
United Kingdom Atomic Energy Authority,United Kingdom Atomic Energy Authority,09/01/2014,MILEAGE ALLOWANCE,SUPPORT SERVICES,EMPLOYEE EXPENSES,100710472,13.5
United Kingdom Atomic Energy Authority,United Kingdom Atomic Energy Authority,09/01/2014,MILEAGE ALLOWANCE,SUPPORT SERVICES,EMPLOYEE EXPENSES,100710473,13.5
United Kingdom Atomic Energy Authority,United Kingdom Atomic Energy Authority,09/01/2014,MILEAGE ALLOWANCE,SUPPORT SERVICES,EMPLOYEE EXPENSES,100710474,13.5
United Kingdom Atomic Energy Authority,United Kingdom Atomic Energy Authority,09/01/2014,MILEAGE ALLOWANCE,SUPPORT SERVICES,EMPLOYEE EXPENSES,100710475,13.5
United Kingdom Atomic Energy Authority,United Kingdom Atomic Energy Authority,09/01/2014,MILEAGE ALLOWANCE,SUPPORT SERVICES,EMPLOYEE EXPENSES,100710476,13.5
United Kingdom Atomic Energy Authority,United Kingdom Atomic Energy Authority,09/01/2014,MILEAGE ALLOWANCE,SUPPORT SERVICES,EMPLOYEE EXPENSES,100710477,13.5
United Kingdom Atomic Energy Authority,United Kingdom Atomic Energy Authority,09/01/2014,MILEAGE ALLOWANCE,SUPPORT SERVICES,EMPLOYEE EXPENSES,100710478,13.5
United Kingdom Atomic Energy Authority,United Kingdom Atomic Energy Authority,16/01/2014,PROFESSIONAL SUBSCRIPTION,SUPPORT SERVICES,EMPLOYEE EXPENSES,100710579,236
United Kingdom Atomic Energy Authority,United Kingdom Atomic Energy Authority,16/01/2014,PROFESSIONAL SUBSCRIPTION,SUPPORT SERVICES,EMPLOYEE EXPENSES,100710581,236
United Kingdom Atomic Energy Authority,United Kingdom Atomic Energy Authority,16/01/2014,PROFESSIONAL SUBSCRIPTION,SUPPORT SERVICES,EMPLOYEE EXPENSES,100710601,139
United Kingdom Atomic Energy Authority,United Kingdom Atomic Energy Authority,16/01/2014,MILEAGE ALLOWANCE,SUPPORT SERVICES,EMPLOYEE EXPENSES,100710603,68.4
United Kingdom Atomic Energy Authority,United Kingdom Atomic Energy Authority,18/01/2014,PROFESSIONAL SUBSCRIPTION,SUPPORT SERVICES,EMPLOYEE EXPENSES,100710677,151
United Kingdom Atomic Energy Authority,United Kingdom Atomic Energy Authority,16/01/2014,MILEAGE ALLOWANCE,FUSION,EMPLOYEE EXPENSES,100710570,99
United Kingdom Atomic Energy Authority,United Kingdom Atomic Energy Authority,16/01/2014,MILEAGE ALLOWANCE,FUSION,EMPLOYEE EXPENSES,100710571,71.55
United Kingdom Atomic Energy Authority,United Kingdom Atomic Energy Authority,18/01/2014,MILEAGE ALLOWANCE,FUSION,EMPLOYEE EXPENSES,100710674,99
United Kingdom Atomic Energy Authority,United Kingdom Atomic Energy Authority,18/01/2014,PROFESSIONAL SUBSCRIPTION,FUSION,EMPLOYEE EXPENSES,100710668,236
United Kingdom Atomic Energy Authority,United Kingdom Atomic Energy Authority,16/01/2014,MILEAGE ALLOWANCE,FUSION,EMPLOYEE EXPENSES,100710589,66.6
United Kingdom Atomic Energy Authority,United Kingdom Atomic Energy Authority,16/01/2014,MILEAGE ALLOWANCE,FUSION,EMPLOYEE EXPENSES,100710596,69.75
United Kingdom Atomic Energy Authority,United Kingdom Atomic Energy Authority,16/01/2014,ROAD TRAVEL,FUSION,EMPLOYEE EXPENSES,100710596,2.5
United Kingdom Atomic Energy Authority,United Kingdom Atomic Energy Authority,16/01/2014,MILEAGE ALLOWANCE,FUSION,EMPLOYEE EXPENSES,100710597,69.75
United Kingdom Atomic Energy Authority,United Kingdom Atomic Energy Authority,16/01/2014,ROAD TRAVEL,FUSION,EMPLOYEE EXPENSES,100710597,2.5
United Kingdom Atomic Energy Authority,United Kingdom Atomic Energy Authority,18/01/2014,TAXIS,FUSION,EMPLOYEE EXPENSES,100710676,41.2
United Kingdom Atomic Energy Authority,United Kingdom Atomic Energy Authority,23/01/2014,MILEAGE ALLOWANCE,FUSION,EMPLOYEE EXPENSES,100711794,66.6
United Kingdom Atomic Energy Authority,United Kingdom Atomic Energy Authority,16/01/2014,PROFESSIONAL SUBSCRIPTION,FUSION,EMPLOYEE EXPENSES,100710600,133
United Kingdom Atomic Energy Authority,United Kingdom Atomic Energy Authority,16/01/2014,PROFESSIONAL SUBSCRIPTION,FUSION,EMPLOYEE EXPENSES,100710582,202.5
United Kingdom Atomic Energy Authority,United Kingdom Atomic Energy Authority,16/01/2014,PROFESSIONAL SUBSCRIPTION,FUSION,EMPLOYEE EXPENSES,100710595,53
United Kingdom Atomic Energy Authority,United Kingdom Atomic Energy Authority,18/01/2014,PROFESSIONAL SUBSCRIPTION,FUSION,EMPLOYEE EXPENSES,100710678,118
United Kingdom Atomic Energy Authority,United Kingdom Atomic Energy Authority,18/01/2014,PROFESSIONAL SUBSCRIPTION,FUSION,EMPLOYEE EXPENSES,100710672,151
United Kingdom Atomic Energy Authority,United Kingdom Atomic Energy Authority,18/01/2014,PROFESSIONAL SUBSCRIPTION,FUSION,EMPLOYEE EXPENSES,100710673,152
United Kingdom Atomic Energy Authority,United Kingdom Atomic Energy Authority,18/01/2014,PROFESSIONAL SUBSCRIPTION,FUSION,EMPLOYEE EXPENSES,100710675,192.3
United Kingdom Atomic Energy Authority,United Kingdom Atomic Energy Authority,18/01/2014,PROFESSIONAL SUBSCRIPTION,FUSION,EMPLOYEE EXPENSES,100710682,118
United Kingdom Atomic Energy Authority,United Kingdom Atomic Energy Authority,16/01/2014,PROFESSIONAL SUBSCRIPTION,FUSION,EMPLOYEE EXPENSES,100710569,131.4
United Kingdom Atomic Energy Authority,United Kingdom Atomic Energy Authority,16/01/2014,PROFESSIONAL SUBSCRIPTION,FUSION,EMPLOYEE EXPENSES,100710576,137
United Kingdom Atomic Energy Authority,United Kingdom Atomic Energy Authority,09/01/2014,SUBSISTENCE,FUSION,EMPLOYEE EXPENSES,100710459,592.54
United Kingdom Atomic Energy Authority,United Kingdom Atomic Energy Authority,09/01/2014,ROAD TRAVEL,FUSION,EMPLOYEE EXPENSES,100710459,10.22
United Kingdom Atomic Energy Authority,United Kingdom Atomic Energy Authority,18/01/2014,PROFESSIONAL SUBSCRIPTION,FUSION,EMPLOYEE EXPENSES,100710686,68
United Kingdom Atomic Energy Authority,United Kingdom Atomic Energy Authority,09/01/2014,SUBSISTENCE,FUSION,EMPLOYEE EXPENSES,100710443,5
United Kingdom Atomic Energy Authority,United Kingdom Atomic Energy Authority,09/01/2014,SUBSISTENCE,FUSION,EMPLOYEE EXPENSES,100710443,87.55
United Kingdom Atomic Energy Authority,United Kingdom Atomic Energy Authority,09/01/2014,CAR HIRE,FUSION,EMPLOYEE EXPENSES,100710434,130.83
United Kingdom Atomic Energy Authority,United Kingdom Atomic Energy Authority,09/01/2014,SUBSISTENCE,FUSION,EMPLOYEE EXPENSES,100710434,270.92
United Kingdom Atomic Energy Authority,United Kingdom Atomic Energy Authority,09/01/2014,ROAD TRAVEL,FUSION,EMPLOYEE EXPENSES,100710434,17.28
United Kingdom Atomic Energy Authority,United Kingdom Atomic Energy Authority,23/01/2014,TAXIS,FUSION,EMPLOYEE EXPENSES,100711779,80.19
United Kingdom Atomic Energy Authority,United Kingdom Atomic Energy Authority,23/01/2014,SUBSISTENCE,FUSION,EMPLOYEE EXPENSES,100711779,146.05
United Kingdom Atomic Energy Authority,United Kingdom Atomic Energy Authority,23/01/2014,OTHER EMPLOYEE EXPENSES,FUSION,EMPLOYEE EXPENSES,100711779,4.18
United Kingdom Atomic Energy Authority,United Kingdom Atomic Energy Authority,09/01/2014,ROAD TRAVEL,FUSION,EMPLOYEE EXPENSES,100710451,16.62
United Kingdom Atomic Energy Authority,United Kingdom Atomic Energy Authority,09/01/2014,MILEAGE ALLOWANCE,FUSION,EMPLOYEE EXPENSES,100710453,56.7
United Kingdom Atomic Energy Authority,United Kingdom Atomic Energy Authority,04/01/2014,SUBSISTENCE,FUSION,EMPLOYEE EXPENSES,100709709,304.4
United Kingdom Atomic Energy Authority,United Kingdom Atomic Energy Authority,09/01/2014,SUBSISTENCE,FUSION,EMPLOYEE EXPENSES,100710460,6.93
United Kingdom Atomic Energy Authority,United Kingdom Atomic Energy Authority,09/01/2014,ROAD TRAVEL,FUSION,EMPLOYEE EXPENSES,100710460,43.16
United Kingdom Atomic Energy Authority,United Kingdom Atomic Energy Authority,16/01/2014,SUBSISTENCE,FUSION,EMPLOYEE EXPENSES,100710591,10
United Kingdom Atomic Energy Authority,United Kingdom Atomic Energy Authority,16/01/2014,SUBSISTENCE,FUSION,EMPLOYEE EXPENSES,100710591,138.29
United Kingdom Atomic Energy Authority,United Kingdom Atomic Energy Authority,16/01/2014,ROAD TRAVEL,FUSION,EMPLOYEE EXPENSES,100710591,2
United Kingdom Atomic Energy Authority,United Kingdom Atomic Energy Authority,16/01/2014,ROAD TRAVEL,FUSION,EMPLOYEE EXPENSES,100710591,54.82
United Kingdom Atomic Energy Authority,United Kingdom Atomic Energy Authority,16/01/2014,SUBSISTENCE,FUSION,EMPLOYEE EXPENSES,100710593,5
United Kingdom Atomic Energy Authority,United Kingdom Atomic Energy Authority,16/01/2014,SUBSISTENCE,FUSION,EMPLOYEE EXPENSES,100710593,101.98
United Kingdom Atomic Energy Authority,United Kingdom Atomic Energy Authority,16/01/2014,ROAD TRAVEL,FUSION,EMPLOYEE EXPENSES,100710593,48.47
United Kingdom Atomic Energy Authority,United Kingdom Atomic Energy Authority,23/01/2014,SUBSISTENCE,FUSION,EMPLOYEE EXPENSES,100711793,5
United Kingdom Atomic Energy Authority,United Kingdom Atomic Energy Authority,23/01/2014,SUBSISTENCE,FUSION,EMPLOYEE EXPENSES,100711793,112.39
United Kingdom Atomic Energy Authority,United Kingdom Atomic Energy Authority,04/01/2014,SUBSISTENCE,FUSION,EMPLOYEE EXPENSES,100709710,11.12
United Kingdom Atomic Energy Authority,United Kingdom Atomic Energy Authority,04/01/2014,ROAD TRAVEL,FUSION,EMPLOYEE EXPENSES,100709710,25.08
United Kingdom Atomic Energy Authority,United Kingdom Atomic Energy Authority,09/01/2014,SUBSISTENCE,FUSION,EMPLOYEE EXPENSES,100710431,12.48
United Kingdom Atomic Energy Authority,United Kingdom Atomic Energy Authority,09/01/2014,SUBSISTENCE,FUSION,EMPLOYEE EXPENSES,100710438,10
United Kingdom Atomic Energy Authority,United Kingdom Atomic Energy Authority,09/01/2014,SUBSISTENCE,FUSION,EMPLOYEE EXPENSES,100710439,223.56
United Kingdom Atomic Energy Authority,United Kingdom Atomic Energy Authority,09/01/2014,SUBSISTENCE,FUSION,EMPLOYEE EXPENSES,100710439,14.12
United Kingdom Atomic Energy Authority,United Kingdom Atomic Energy Authority,09/01/2014,ROAD TRAVEL,FUSION,EMPLOYEE EXPENSES,100710439,7.96
United Kingdom Atomic Energy Authority,United Kingdom Atomic Energy Authority,09/01/2014,SUBSISTENCE,FUSION,EMPLOYEE EXPENSES,100710458,10.36
United Kingdom Atomic Energy Authority,United Kingdom Atomic Energy Authority,09/01/2014,ROAD TRAVEL,FUSION,EMPLOYEE EXPENSES,100710458,28.67
United Kingdom Atomic Energy Authority,United Kingdom Atomic Energy Authority,09/01/2014,SUBSISTENCE,FUSION,EMPLOYEE EXPENSES,100710465,5
United Kingdom Atomic Energy Authority,United Kingdom Atomic Energy Authority,09/01/2014,SUBSISTENCE,FUSION,EMPLOYEE EXPENSES,100710465,18.03
United Kingdom Atomic Energy Authority,United Kingdom Atomic Energy Authority,09/01/2014,ROAD TRAVEL,FUSION,EMPLOYEE EXPENSES,100710465,47.11
United Kingdom Atomic Energy Authority,United Kingdom Atomic Energy Authority,16/01/2014,ROAD TRAVEL,FUSION,EMPLOYEE EXPENSES,100710599,10.62
United Kingdom Atomic Energy Authority,United Kingdom Atomic Energy Authority,23/01/2014,SUBSISTENCE,FUSION,EMPLOYEE EXPENSES,100711781,4.78
United Kingdom Atomic Energy Authority,United Kingdom Atomic Energy Authority,23/01/2014,SUBSISTENCE,FUSION,EMPLOYEE EXPENSES,100711781,0.97
United Kingdom Atomic Energy Authority,United Kingdom Atomic Energy Authority,23/01/2014,ROAD TRAVEL,FUSION,EMPLOYEE EXPENSES,100711781,34.69
United Kingdom Atomic Energy Authority,United Kingdom Atomic Energy Authority,23/01/2014,SUBSISTENCE,FUSION,EMPLOYEE EXPENSES,100711789,5
United Kingdom Atomic Energy Authority,United Kingdom Atomic Energy Authority,23/01/2014,SUBSISTENCE,FUSION,EMPLOYEE EXPENSES,100711789,73.95
United Kingdom Atomic Energy Authority,United Kingdom Atomic Energy Authority,23/01/2014,ROAD TRAVEL,FUSION,EMPLOYEE EXPENSES,100711789,4.58
United Kingdom Atomic Energy Authority,United Kingdom Atomic Energy Authority,04/01/2014,SUBSISTENCE,FUSION,EMPLOYEE EXPENSES,100709697,60.58
United Kingdom Atomic Energy Authority,United Kingdom Atomic Energy Authority,04/01/2014,OTHER EMPLOYEE EXPENSES,FUSION,EMPLOYEE EXPENSES,100709697,6.9
United Kingdom Atomic Energy Authority,United Kingdom Atomic Energy Authority,04/01/2014,SUBSISTENCE,FUSION,EMPLOYEE EXPENSES,100709705,292.35
United Kingdom Atomic Energy Authority,United Kingdom Atomic Energy Authority,04/01/2014,RAIL TRAVEL,FUSION,EMPLOYEE EXPENSES,100709705,10.88
United Kingdom Atomic Energy Authority,United Kingdom Atomic Energy Authority,04/01/2014,ROAD TRAVEL,FUSION,EMPLOYEE EXPENSES,100709705,8.44
United Kingdom Atomic Energy Authority,United Kingdom Atomic Energy Authority,04/01/2014,SUBSISTENCE,FUSION,EMPLOYEE EXPENSES,100709713,13.99
United Kingdom Atomic Energy Authority,United Kingdom Atomic Energy Authority,04/01/2014,ROAD TRAVEL,FUSION,EMPLOYEE EXPENSES,100709713,29
United Kingdom Atomic Energy Authority,United Kingdom Atomic Energy Authority,04/01/2014,SUBSISTENCE,FUSION,EMPLOYEE EXPENSES,100709716,3.87
United Kingdom Atomic Energy Authority,United Kingdom Atomic Energy Authority,09/01/2014,SUBSISTENCE,FUSION,EMPLOYEE EXPENSES,100710436,10.54
United Kingdom Atomic Energy Authority,United Kingdom Atomic Energy Authority,09/01/2014,SUBSISTENCE,FUSION,EMPLOYEE EXPENSES,100710437,2.79
United Kingdom Atomic Energy Authority,United Kingdom Atomic Energy Authority,09/01/2014,ROAD TRAVEL,FUSION,EMPLOYEE EXPENSES,100710461,19.17
United Kingdom Atomic Energy Authority,United Kingdom Atomic Energy Authority,09/01/2014,SUBSISTENCE,FUSION,EMPLOYEE EXPENSES,100710462,4.47
United Kingdom Atomic Energy Authority,United Kingdom Atomic Energy Authority,09/01/2014,ROAD TRAVEL,FUSION,EMPLOYEE EXPENSES,100710462,32.29
United Kingdom Atomic Energy Authority,United Kingdom Atomic Energy Authority,16/01/2014,SUBSISTENCE,FUSION,EMPLOYEE EXPENSES,100710572,6.53
United Kingdom Atomic Energy Authority,United Kingdom Atomic Energy Authority,16/01/2014,SUBSISTENCE,FUSION,EMPLOYEE EXPENSES,100710605,89.5
United Kingdom Atomic Energy Authority,United Kingdom Atomic Energy Authority,09/01/2014,SUBSISTENCE,FUSION,EMPLOYEE EXPENSES,100710463,784.58
United Kingdom Atomic Energy Authority,United Kingdom Atomic Energy Authority,09/01/2014,RAIL TRAVEL,FUSION,EMPLOYEE EXPENSES,100710463,5.98
United Kingdom Atomic Energy Authority,United Kingdom Atomic Energy Authority,09/01/2014,OTHER EMPLOYEE EXPENSES,FUSION,EMPLOYEE EXPENSES,100710463,6.84
United Kingdom Atomic Energy Authority,United Kingdom Atomic Energy Authority,16/01/2014,SUBSISTENCE,FUSION,EMPLOYEE EXPENSES,100710580,62.91
United Kingdom Atomic Energy Authority,United Kingdom Atomic Energy Authority,16/01/2014,SUBSISTENCE,FUSION,EMPLOYEE EXPENSES,100710588,385.65
United Kingdom Atomic Energy Authority,United Kingdom Atomic Energy Authority,16/01/2014,SUBSISTENCE,FUSION,EMPLOYEE EXPENSES,100710588,7.29
United Kingdom Atomic Energy Authority,United Kingdom Atomic Energy Authority,16/01/2014,RAIL TRAVEL,FUSION,EMPLOYEE EXPENSES,100710588,20.39
United Kingdom Atomic Energy Authority,United Kingdom Atomic Energy Authority,18/01/2014,SUBSISTENCE,FUSION,EMPLOYEE EXPENSES,100710670,341.19
United Kingdom Atomic Energy Authority,United Kingdom Atomic Energy Authority,18/01/2014,RAIL TRAVEL,FUSION,EMPLOYEE EXPENSES,100710670,18.49
United Kingdom Atomic Energy Authority,United Kingdom Atomic Energy Authority,04/01/2014,TAXIS,FUSION,EMPLOYEE EXPENSES,100709704,13.9
United Kingdom Atomic Energy Authority,United Kingdom Atomic Energy Authority,04/01/2014,SUBSISTENCE,FUSION,EMPLOYEE EXPENSES,100709704,10
United Kingdom Atomic Energy Authority,United Kingdom Atomic Energy Authority,04/01/2014,SUBSISTENCE,FUSION,EMPLOYEE EXPENSES,100709704,11.5
United Kingdom Atomic Energy Authority,United Kingdom Atomic Energy Authority,04/01/2014,ROAD TRAVEL,FUSION,EMPLOYEE EXPENSES,100709704,29
United Kingdom Atomic Energy Authority,United Kingdom Atomic Energy Authority,09/01/2014,TAXIS,FUSION,EMPLOYEE EXPENSES,100710440,12
United Kingdom Atomic Energy Authority,United Kingdom Atomic Energy Authority,23/01/2014,PROFESSIONAL SUBSCRIPTION,FUSION,EMPLOYEE EXPENSES,100711783,137
United Kingdom Atomic Energy Authority,United Kingdom Atomic Energy Authority,23/01/2014,RELOCATION COSTS,FUSION,EMPLOYEE EXPENSES,100711803,1358
United Kingdom Atomic Energy Authority,United Kingdom Atomic Energy Authority,23/01/2014,RELOCATION COSTS,FUSION,EMPLOYEE EXPENSES,100711803,151
United Kingdom Atomic Energy Authority,United Kingdom Atomic Energy Authority,18/01/2014,SUBSISTENCE,FUSION,EMPLOYEE EXPENSES,100710684,472.88
United Kingdom Atomic Energy Authority,United Kingdom Atomic Energy Authority,18/01/2014,SUBSISTENCE,FUSION,EMPLOYEE EXPENSES,100710684,11.21
United Kingdom Atomic Energy Authority,United Kingdom Atomic Energy Authority,18/01/2014,RAIL TRAVEL,FUSION,EMPLOYEE EXPENSES,100710684,24.74
United Kingdom Atomic Energy Authority,United Kingdom Atomic Energy Authority,18/01/2014,ROAD TRAVEL,FUSION,EMPLOYEE EXPENSES,100710684,23.7
United Kingdom Atomic Energy Authority,United Kingdom Atomic Energy Authority,18/01/2014,OTHER EMPLOYEE EXPENSES,FUSION,EMPLOYEE EXPENSES,100710684,7.07
United Kingdom Atomic Energy Authority,United Kingdom Atomic Energy Authority,04/01/2014,SUBSISTENCE,FUSION,EMPLOYEE EXPENSES,100709707,40.85
United Kingdom Atomic Energy Authority,United Kingdom Atomic Energy Authority,09/01/2014,SUBSISTENCE,FUSION,EMPLOYEE EXPENSES,100710454,177
United Kingdom Atomic Energy Authority,United Kingdom Atomic Energy Authority,09/01/2014,SUBSISTENCE,FUSION,EMPLOYEE EXPENSES,100710454,2.42
United Kingdom Atomic Energy Authority,United Kingdom Atomic Energy Authority,09/01/2014,RAIL TRAVEL,FUSION,EMPLOYEE EXPENSES,100710454,1.59
United Kingdom Atomic Energy Authority,United Kingdom Atomic Energy Authority,04/01/2014,SUBSISTENCE,FUSION,EMPLOYEE EXPENSES,100709696,312.09
United Kingdom Atomic Energy Authority,United Kingdom Atomic Energy Authority,04/01/2014,RAIL TRAVEL,FUSION,EMPLOYEE EXPENSES,100709696,9.77
United Kingdom Atomic Energy Authority,United Kingdom Atomic Energy Authority,04/01/2014,ROAD TRAVEL,FUSION,EMPLOYEE EXPENSES,100709696,6.74
United Kingdom Atomic Energy Authority,United Kingdom Atomic Energy Authority,09/01/2014,SUBSISTENCE,FUSION,EMPLOYEE EXPENSES,100710444,40
United Kingdom Atomic Energy Authority,United Kingdom Atomic Energy Authority,09/01/2014,SUBSISTENCE,FUSION,EMPLOYEE EXPENSES,100710445,91.76
United Kingdom Atomic Energy Authority,United Kingdom Atomic Energy Authority,09/01/2014,RAIL TRAVEL,FUSION,EMPLOYEE EXPENSES,100710445,11.8
United Kingdom Atomic Energy Authority,United Kingdom Atomic Energy Authority,18/01/2014,SUBSISTENCE,FUSION,EMPLOYEE EXPENSES,100710680,8.33
United Kingdom Atomic Energy Authority,United Kingdom Atomic Energy Authority,18/01/2014,RAIL TRAVEL,FUSION,EMPLOYEE EXPENSES,100710680,64.5
United Kingdom Atomic Energy Authority,United Kingdom Atomic Energy Authority,18/01/2014,ROAD TRAVEL,FUSION,EMPLOYEE EXPENSES,100710680,4.5
United Kingdom Atomic Energy Authority,United Kingdom Atomic Energy Authority,23/01/2014,PROFESSIONAL SUBSCRIPTION,FUSION,EMPLOYEE EXPENSES,100711785,145
United Kingdom Atomic Energy Authority,United Kingdom Atomic Energy Authority,04/01/2014,MILEAGE ALLOWANCE,FUSION,EMPLOYEE EXPENSES,100709695,5.85
United Kingdom Atomic Energy Authority,United Kingdom Atomic Energy Authority,04/01/2014,ROAD TRAVEL,FUSION,EMPLOYEE EXPENSES,100709695,6.2
United Kingdom Atomic Energy Authority,United Kingdom Atomic Energy Authority,04/01/2014,SUBSISTENCE,FUSION,EMPLOYEE EXPENSES,100709698,8.37
United Kingdom Atomic Energy Authority,United Kingdom Atomic Energy Authority,04/01/2014,MILEAGE ALLOWANCE,FUSION,EMPLOYEE EXPENSES,100709698,54
United Kingdom Atomic Energy Authority,United Kingdom Atomic Energy Authority,09/01/2014,SUBSISTENCE,FUSION,EMPLOYEE EXPENSES,100710446,5
United Kingdom Atomic Energy Authority,United Kingdom Atomic Energy Authority,09/01/2014,SUBSISTENCE,FUSION,EMPLOYEE EXPENSES,100710446,82.08
United Kingdom Atomic Energy Authority,United Kingdom Atomic Energy Authority,09/01/2014,ROAD TRAVEL,FUSION,EMPLOYEE EXPENSES,100710446,41.09
United Kingdom Atomic Energy Authority,United Kingdom Atomic Energy Authority,09/01/2014,PROFESSIONAL SUBSCRIPTION,FUSION,EMPLOYEE EXPENSES,100710464,53
United Kingdom Atomic Energy Authority,United Kingdom Atomic Energy Authority,16/01/2014,PROFESSIONAL SUBSCRIPTION,FUSION,EMPLOYEE EXPENSES,100710567,132
United Kingdom Atomic Energy Authority,United Kingdom Atomic Energy Authority,16/01/2014,SUBSISTENCE,FUSION,EMPLOYEE EXPENSES,100710568,10.05
United Kingdom Atomic Energy Authority,United Kingdom Atomic Energy Authority,16/01/2014,MILEAGE ALLOWANCE,FUSION,EMPLOYEE EXPENSES,100710568,54
United Kingdom Atomic Energy Authority,United Kingdom Atomic Energy Authority,16/01/2014,PROFESSIONAL SUBSCRIPTION,FUSION,EMPLOYEE EXPENSES,100710594,202.5
United Kingdom Atomic Energy Authority,United Kingdom Atomic Energy Authority,16/01/2014,RAIL TRAVEL,FUSION,EMPLOYEE EXPENSES,100710607,4.1
United Kingdom Atomic Energy Authority,United Kingdom Atomic Energy Authority,16/01/2014,SUBSISTENCE,FUSION,EMPLOYEE EXPENSES,100710608,8.35
United Kingdom Atomic Energy Authority,United Kingdom Atomic Energy Authority,16/01/2014,RAIL TRAVEL,FUSION,EMPLOYEE EXPENSES,100710608,28.7
United Kingdom Atomic Energy Authority,United Kingdom Atomic Energy Authority,16/01/2014,ROAD TRAVEL,FUSION,EMPLOYEE EXPENSES,100710608,6.2
United Kingdom Atomic Energy Authority,United Kingdom Atomic Energy Authority,18/01/2014,SUBSISTENCE,FUSION,EMPLOYEE EXPENSES,100710671,5
United Kingdom Atomic Energy Authority,United Kingdom Atomic Energy Authority,18/01/2014,SUBSISTENCE,FUSION,EMPLOYEE EXPENSES,100710671,83.25
United Kingdom Atomic Energy Authority,United Kingdom Atomic Energy Authority,18/01/2014,MILEAGE ALLOWANCE,FUSION,EMPLOYEE EXPENSES,100710671,178.2
United Kingdom Atomic Energy Authority,United Kingdom Atomic Energy Authority,18/01/2014,ROAD TRAVEL,FUSION,EMPLOYEE EXPENSES,100710687,11.67
United Kingdom Atomic Energy Authority,United Kingdom Atomic Energy Authority,23/01/2014,SUBSISTENCE,FUSION,EMPLOYEE EXPENSES,100711778,3.59
United Kingdom Atomic Energy Authority,United Kingdom Atomic Energy Authority,23/01/2014,MILEAGE ALLOWANCE,FUSION,EMPLOYEE EXPENSES,100711778,8.1
United Kingdom Atomic Energy Authority,United Kingdom Atomic Energy Authority,23/01/2014,RAIL TRAVEL,FUSION,EMPLOYEE EXPENSES,100711778,58
United Kingdom Atomic Energy Authority,United Kingdom Atomic Energy Authority,23/01/2014,ROAD TRAVEL,FUSION,EMPLOYEE EXPENSES,100711778,5.17
United Kingdom Atomic Energy Authority,United Kingdom Atomic Energy Authority,23/01/2014,PROFESSIONAL SUBSCRIPTION,FUSION,EMPLOYEE EXPENSES,100711791,202.5
United Kingdom Atomic Energy Authority,United Kingdom Atomic Energy Authority,23/01/2014,RELOCATION COSTS,FUSION,EMPLOYEE EXPENSES,100711801,256.99
United Kingdom Atomic Energy Authority,United Kingdom Atomic Energy Authority,04/01/2014,SUBSISTENCE,FUSION,EMPLOYEE EXPENSES,100709702,1189.59
United Kingdom Atomic Energy Authority,United Kingdom Atomic Energy Authority,04/01/2014,SUBSISTENCE,FUSION,EMPLOYEE EXPENSES,100709702,2.08
United Kingdom Atomic Energy Authority,United Kingdom Atomic Energy Authority,04/01/2014,MILEAGE ALLOWANCE,FUSION,EMPLOYEE EXPENSES,100709702,55.8
United Kingdom Atomic Energy Authority,United Kingdom Atomic Energy Authority,04/01/2014,ROAD TRAVEL,FUSION,EMPLOYEE EXPENSES,100709702,62.4
United Kingdom Atomic Energy Authority,United Kingdom Atomic Energy Authority,04/01/2014,ROAD TRAVEL,FUSION,EMPLOYEE EXPENSES,100709702,104.33
United Kingdom Atomic Energy Authority,United Kingdom Atomic Energy Authority,04/01/2014,SUBSISTENCE,FUSION,EMPLOYEE EXPENSES,100709703,315.57
United Kingdom Atomic Energy Authority,United Kingdom Atomic Energy Authority,04/01/2014,SUBSISTENCE,FUSION,EMPLOYEE EXPENSES,100709703,5.08
United Kingdom Atomic Energy Authority,United Kingdom Atomic Energy Authority,04/01/2014,MILEAGE ALLOWANCE,FUSION,EMPLOYEE EXPENSES,100709703,55.35
United Kingdom Atomic Energy Authority,United Kingdom Atomic Energy Authority,04/01/2014,ROAD TRAVEL,FUSION,EMPLOYEE EXPENSES,100709703,17.42
United Kingdom Atomic Energy Authority,United Kingdom Atomic Energy Authority,04/01/2014,ROAD TRAVEL,FUSION,EMPLOYEE EXPENSES,100709703,47
United Kingdom Atomic Energy Authority,United Kingdom Atomic Energy Authority,23/01/2014,SUBSISTENCE,FUSION,EMPLOYEE EXPENSES,100711782,15.49
United Kingdom Atomic Energy Authority,United Kingdom Atomic Energy Authority,23/01/2014,SUBSISTENCE,FUSION,EMPLOYEE EXPENSES,100711782,75.42
United Kingdom Atomic Energy Authority,United Kingdom Atomic Energy Authority,23/01/2014,MILEAGE ALLOWANCE,FUSION,EMPLOYEE EXPENSES,100711782,173.7
United Kingdom Atomic Energy Authority,United Kingdom Atomic Energy Authority,04/01/2014,OTHER EMPLOYEE EXPENSES,FUSION,EMPLOYEE EXPENSES,100709711,18.76
United Kingdom Atomic Energy Authority,United Kingdom Atomic Energy Authority,04/01/2014,RELOCATION COSTS,FUSION,EMPLOYEE EXPENSES,100709706,8000
United Kingdom Atomic Energy Authority,United Kingdom Atomic Energy Authority,09/01/2014,PROFESSIONAL SUBSCRIPTION,FUSION,EMPLOYEE EXPENSES,100710433,117.75
United Kingdom Atomic Energy Authority,United Kingdom Atomic Energy Authority,18/01/2014,PROFESSIONAL SUBSCRIPTION,FUSION,EMPLOYEE EXPENSES,100710679,132
United Kingdom Atomic Energy Authority,United Kingdom Atomic Energy Authority,23/01/2014,MILEAGE ALLOWANCE,FUSION,EMPLOYEE EXPENSES,100711786,4.5
United Kingdom Atomic Energy Authority,United Kingdom Atomic Energy Authority,23/01/2014,ROAD TRAVEL,FUSION,EMPLOYEE EXPENSES,100711786,2.4
United Kingdom Atomic Energy Authority,United Kingdom Atomic Energy Authority,23/01/2014,ROAD TRAVEL,FUSION,EMPLOYEE EXPENSES,100711786,2
United Kingdom Atomic Energy Authority,United Kingdom Atomic Energy Authority,23/01/2014,RAIL TRAVEL,FUSION,EMPLOYEE EXPENSES,100711787,4.5
United Kingdom Atomic Energy Authority,United Kingdom Atomic Energy Authority,23/01/2014,TAXIS,FUSION,EMPLOYEE EXPENSES,100711790,32.57
United Kingdom Atomic Energy Authority,United Kingdom Atomic Energy Authority,23/01/2014,SUBSISTENCE,FUSION,EMPLOYEE EXPENSES,100711790,212.63
United Kingdom Atomic Energy Authority,United Kingdom Atomic Energy Authority,23/01/2014,SUBSISTENCE,FUSION,EMPLOYEE EXPENSES,100711790,17.3
United Kingdom Atomic Energy Authority,United Kingdom Atomic Energy Authority,23/01/2014,RAIL TRAVEL,FUSION,EMPLOYEE EXPENSES,100711790,4.57
United Kingdom Atomic Energy Authority,United Kingdom Atomic Energy Authority,23/01/2014,ROAD TRAVEL,FUSION,EMPLOYEE EXPENSES,100711790,29
United Kingdom Atomic Energy Authority,United Kingdom Atomic Energy Authority,04/01/2014,RELOCATION COSTS,FUSION,EMPLOYEE EXPENSES,100709708,452.83
United Kingdom Atomic Energy Authority,United Kingdom Atomic Energy Authority,04/01/2014,RELOCATION COSTS,FUSION,EMPLOYEE EXPENSES,100709708,595.22
United Kingdom Atomic Energy Authority,United Kingdom Atomic Energy Authority,09/01/2014,OTHER EMPLOYEE EXPENSES,FUSION,EMPLOYEE EXPENSES,100710432,175.5
United Kingdom Atomic Energy Authority,United Kingdom Atomic Energy Authority,09/01/2014,SUBSISTENCE,FUSION,EMPLOYEE EXPENSES,100710455,182.9
United Kingdom Atomic Energy Authority,United Kingdom Atomic Energy Authority,09/01/2014,RAIL TRAVEL,FUSION,EMPLOYEE EXPENSES,100710455,38
United Kingdom Atomic Energy Authority,United Kingdom Atomic Energy Authority,09/01/2014,RAIL TRAVEL,FUSION,EMPLOYEE EXPENSES,100710455,10.38
United Kingdom Atomic Energy Authority,United Kingdom Atomic Energy Authority,18/01/2014,PROFESSIONAL SUBSCRIPTION,FUSION,EMPLOYEE EXPENSES,100710683,20
United Kingdom Atomic Energy Authority,United Kingdom Atomic Energy Authority,23/01/2014,SUBSISTENCE,FUSION,EMPLOYEE EXPENSES,100711788,649.42
United Kingdom Atomic Energy Authority,United Kingdom Atomic Energy Authority,23/01/2014,SUBSISTENCE,FUSION,EMPLOYEE EXPENSES,100711788,4.46
United Kingdom Atomic Energy Authority,United Kingdom Atomic Energy Authority,23/01/2014,ROAD TRAVEL,FUSION,EMPLOYEE EXPENSES,100711788,24
United Kingdom Atomic Energy Authority,United Kingdom Atomic Energy Authority,23/01/2014,OTHER EMPLOYEE EXPENSES,FUSION,EMPLOYEE EXPENSES,100711788,18.27
United Kingdom Atomic Energy Authority,United Kingdom Atomic Energy Authority,04/01/2014,TAXIS,FUSION,EMPLOYEE EXPENSES,100709713,32.45
United Kingdom Atomic Energy Authority,United Kingdom Atomic Energy Authority,04/01/2014,SUBSISTENCE,FUSION,EMPLOYEE EXPENSES,100709713,154.81
United Kingdom Atomic Energy Authority,United Kingdom Atomic Energy Authority,04/01/2014,ROAD TRAVEL,FUSION,EMPLOYEE EXPENSES,100709713,2.2
United Kingdom Atomic Energy Authority,United Kingdom Atomic Energy Authority,04/01/2014,SUBSISTENCE,FUSION,EMPLOYEE EXPENSES,100709714,77.64
United Kingdom Atomic Energy Authority,United Kingdom Atomic Energy Authority,04/01/2014,SUBSISTENCE,FUSION,EMPLOYEE EXPENSES,100709714,6.92
United Kingdom Atomic Energy Authority,United Kingdom Atomic Energy Authority,04/01/2014,SUBSISTENCE,FUSION,EMPLOYEE EXPENSES,100709715,82.69
United Kingdom Atomic Energy Authority,United Kingdom Atomic Energy Authority,04/01/2014,SUBSISTENCE,FUSION,EMPLOYEE EXPENSES,100709716,94.85
United Kingdom Atomic Energy Authority,United Kingdom Atomic Energy Authority,09/01/2014,SUBSISTENCE,FUSION,EMPLOYEE EXPENSES,100710436,204.28
United Kingdom Atomic Energy Authority,United Kingdom Atomic Energy Authority,09/01/2014,RAIL TRAVEL,FUSION,EMPLOYEE EXPENSES,100710436,3.48
United Kingdom Atomic Energy Authority,United Kingdom Atomic Energy Authority,09/01/2014,OTHER EMPLOYEE EXPENSES,FUSION,EMPLOYEE EXPENSES,100710436,1.88
United Kingdom Atomic Energy Authority,United Kingdom Atomic Energy Authority,09/01/2014,SUBSISTENCE,FUSION,EMPLOYEE EXPENSES,100710437,218.48
United Kingdom Atomic Energy Authority,United Kingdom Atomic Energy Authority,09/01/2014,RAIL TRAVEL,FUSION,EMPLOYEE EXPENSES,100710437,3.48
United Kingdom Atomic Energy Authority,United Kingdom Atomic Energy Authority,09/01/2014,TAXIS,FUSION,EMPLOYEE EXPENSES,100710440,14.16
United Kingdom Atomic Energy Authority,United Kingdom Atomic Energy Authority,09/01/2014,SUBSISTENCE,FUSION,EMPLOYEE EXPENSES,100710440,4943.03
United Kingdom Atomic Energy Authority,United Kingdom Atomic Energy Authority,09/01/2014,SUBSISTENCE,FUSION,EMPLOYEE EXPENSES,100710440,21.67
United Kingdom Atomic Energy Authority,United Kingdom Atomic Energy Authority,09/01/2014,RAIL TRAVEL,FUSION,EMPLOYEE EXPENSES,100710440,148.46
United Kingdom Atomic Energy Authority,United Kingdom Atomic Energy Authority,09/01/2014,ROAD TRAVEL,FUSION,EMPLOYEE EXPENSES,100710440,29
United Kingdom Atomic Energy Authority,United Kingdom Atomic Energy Authority,09/01/2014,OTHER EMPLOYEE EXPENSES,FUSION,EMPLOYEE EXPENSES,100710440,89.8
United Kingdom Atomic Energy Authority,United Kingdom Atomic Energy Authority,09/01/2014,SUBSISTENCE,FUSION,EMPLOYEE EXPENSES,100710461,172.04
United Kingdom Atomic Energy Authority,United Kingdom Atomic Energy Authority,09/01/2014,ROAD TRAVEL,FUSION,EMPLOYEE EXPENSES,100710461,6.57
United Kingdom Atomic Energy Authority,United Kingdom Atomic Energy Authority,16/01/2014,SUBSISTENCE,FUSION,EMPLOYEE EXPENSES,100710572,97.15
United Kingdom Atomic Energy Authority,United Kingdom Atomic Energy Authority,16/01/2014,RAIL TRAVEL,FUSION,EMPLOYEE EXPENSES,100710572,1.1
United Kingdom Atomic Energy Authority,United Kingdom Atomic Energy Authority,16/01/2014,SUBSISTENCE,FUSION,EMPLOYEE EXPENSES,100710590,102.7
United Kingdom Atomic Energy Authority,United Kingdom Atomic Energy Authority,16/01/2014,RAIL TRAVEL,FUSION,EMPLOYEE EXPENSES,100710590,79.13
United Kingdom Atomic Energy Authority,United Kingdom Atomic Energy Authority,18/01/2014,SUBSISTENCE,FUSION,EMPLOYEE EXPENSES,100710685,70.41
United Kingdom Atomic Energy Authority,United Kingdom Atomic Energy Authority,09/01/2014,TAXIS,FUSION,EMPLOYEE EXPENSES,100710457,8.7
United Kingdom Atomic Energy Authority,United Kingdom Atomic Energy Authority,09/01/2014,ROAD TRAVEL,FUSION,EMPLOYEE EXPENSES,100710457,5.1
United Kingdom Atomic Energy Authority,United Kingdom Atomic Energy Authority,09/01/2014,ROAD TRAVEL,FUSION,EMPLOYEE EXPENSES,100710457,6
United Kingdom Atomic Energy Authority,United Kingdom Atomic Energy Authority,16/01/2014,PROFESSIONAL SUBSCRIPTION,FUSION,EMPLOYEE EXPENSES,100710565,192.3
United Kingdom Atomic Energy Authority,United Kingdom Atomic Energy Authority,16/01/2014,PROFESSIONAL SUBSCRIPTION,FUSION,EMPLOYEE EXPENSES,100710574,118
United Kingdom Atomic Energy Authority,United Kingdom Atomic Energy Authority,16/01/2014,PROFESSIONAL SUBSCRIPTION,FUSION,EMPLOYEE EXPENSES,100710575,275.5
United Kingdom Atomic Energy Authority,United Kingdom Atomic Energy Authority,16/01/2014,MILEAGE ALLOWANCE,FUSION,EMPLOYEE EXPENSES,100710587,60.3
United Kingdom Atomic Energy Authority,United Kingdom Atomic Energy Authority,16/01/2014,PROFESSIONAL SUBSCRIPTION,FUSION,EMPLOYEE EXPENSES,100710606,137
United Kingdom Atomic Energy Authority,United Kingdom Atomic Energy Authority,16/01/2014,PROFESSIONAL SUBSCRIPTION,FUSION,EMPLOYEE EXPENSES,100710609,137
United Kingdom Atomic Energy Authority,United Kingdom Atomic Energy Authority,16/01/2014,PROFESSIONAL SUBSCRIPTION,FUSION,EMPLOYEE EXPENSES,100710610,236
United Kingdom Atomic Energy Authority,United Kingdom Atomic Energy Authority,18/01/2014,MILEAGE ALLOWANCE,FUSION,EMPLOYEE EXPENSES,100710669,12.6
United Kingdom Atomic Energy Authority,United Kingdom Atomic Energy Authority,18/01/2014,RAIL TRAVEL,FUSION,EMPLOYEE EXPENSES,100710669,10.6
United Kingdom Atomic Energy Authority,United Kingdom Atomic Energy Authority,18/01/2014,ROAD TRAVEL,FUSION,EMPLOYEE EXPENSES,100710669,5.17
United Kingdom Atomic Energy Authority,United Kingdom Atomic Energy Authority,18/01/2014,PROFESSIONAL SUBSCRIPTION,FUSION,EMPLOYEE EXPENSES,100710681,236
United Kingdom Atomic Energy Authority,United Kingdom Atomic Energy Authority,23/01/2014,MILEAGE ALLOWANCE,FUSION,EMPLOYEE EXPENSES,100711792,60.3
United Kingdom Atomic Energy Authority,United Kingdom Atomic Energy Authority,23/01/2014,PROFESSIONAL SUBSCRIPTION,FUSION,EMPLOYEE EXPENSES,100711795,236
United Kingdom Atomic Energy Authority,United Kingdom Atomic Energy Authority,23/01/2014,PROFESSIONAL SUBSCRIPTION,FUSION,EMPLOYEE EXPENSES,100711798,202.5
United Kingdom Atomic Energy Authority,United Kingdom Atomic Energy Authority,23/01/2014,PROFESSIONAL SUBSCRIPTION,FUSION,EMPLOYEE EXPENSES,100711799,216
United Kingdom Atomic Energy Authority,United Kingdom Atomic Energy Authority,23/01/2014,PROFESSIONAL SUBSCRIPTION,FUSION,EMPLOYEE EXPENSES,100711800,48
United Kingdom Atomic Energy Authority,United Kingdom Atomic Energy Authority,23/01/2014,PROFESSIONAL SUBSCRIPTION,FUSION,EMPLOYEE EXPENSES,100711802,137
United Kingdom Atomic Energy Authority,United Kingdom Atomic Energy Authority,16/01/2014,MILEAGE ALLOWANCE,FUSION,EMPLOYEE EXPENSES,100710566,9
United Kingdom Atomic Energy Authority,United Kingdom Atomic Energy Authority,09/01/2014,ROAD TRAVEL,FUSION,EMPLOYEE EXPENSES,100710446,17.61
United Kingdom Atomic Energy Authority,United Kingdom Atomic Energy Authority,09/01/2014,SUBSISTENCE,FUSION,EMPLOYEE EXPENSES,100710456,110.62
United Kingdom Atomic Energy Authority,United Kingdom Atomic Energy Authority,09/01/2014,SUBSISTENCE,FUSION,EMPLOYEE EXPENSES,100710456,1.66
United Kingdom Atomic Energy Authority,United Kingdom Atomic Energy Authority,09/01/2014,OTHER EMPLOYEE EXPENSES,FUSION,EMPLOYEE EXPENSES,100710456,6
United Kingdom Atomic Energy Authority,United Kingdom Atomic Energy Authority,18/01/2014,SUBSISTENCE,FUSION,EMPLOYEE EXPENSES,100710685,10
United Kingdom Atomic Energy Authority,United Kingdom Atomic Energy Authority,18/01/2014,RAIL TRAVEL,FUSION,EMPLOYEE EXPENSES,100710685,9.37
United Kingdom Atomic Energy Authority,United Kingdom Atomic Energy Authority,18/01/2014,ROAD TRAVEL,FUSION,EMPLOYEE EXPENSES,100710685,18
United Kingdom Atomic Energy Authority,United Kingdom Atomic Energy Authority,09/01/2014,MILEAGE ALLOWANCE,FUSION,EMPLOYEE EXPENSES,100710448,3.15
United Kingdom Atomic Energy Authority,United Kingdom Atomic Energy Authority,09/01/2014,MILEAGE ALLOWANCE,FUSION,EMPLOYEE EXPENSES,100710449,3.15
United Kingdom Atomic Energy Authority,United Kingdom Atomic Energy Authority,09/01/2014,MILEAGE ALLOWANCE,FUSION,EMPLOYEE EXPENSES,100710450,3.15
United Kingdom Atomic Energy Authority,United Kingdom Atomic Energy Authority,16/01/2014,MILEAGE ALLOWANCE,FUSION,EMPLOYEE EXPENSES,100710564,23.4
United Kingdom Atomic Energy Authority,United Kingdom Atomic Energy Authority,16/01/2014,MILEAGE ALLOWANCE,FUSION,EMPLOYEE EXPENSES,100710573,7.2
United Kingdom Atomic Energy Authority,United Kingdom Atomic Energy Authority,23/01/2014,MILEAGE ALLOWANCE,FUSION,EMPLOYEE EXPENSES,100711777,7.2
United Kingdom Atomic Energy Authority,United Kingdom Atomic Energy Authority,23/01/2014,TAXIS,,EMPLOYEE EXPENSES,100711784,8
United Kingdom Atomic Energy Authority,United Kingdom Atomic Energy Authority,23/01/2014,SUBSISTENCE,,EMPLOYEE EXPENSES,100711784,8.08
United Kingdom Atomic Energy Authority,United Kingdom Atomic Energy Authority,23/01/2014,RAIL TRAVEL,,EMPLOYEE EXPENSES,100711784,55
United Kingdom Atomic Energy Authority,United Kingdom Atomic Energy Authority,23/01/2014,ROAD TRAVEL,,EMPLOYEE EXPENSES,100711784,2
United Kingdom Atomic Energy Authority,United Kingdom Atomic Energy Authority,09/01/2014,BUSINESS ENTERTAINMENT,FUSION,EMPLOYEE EXPENSES,100710441,168.9
United Kingdom Atomic Energy Authority,United Kingdom Atomic Energy Authority,16/01/2014,SUBSISTENCE,FUSION,EMPLOYEE EXPENSES,100710598,5
United Kingdom Atomic Energy Authority,United Kingdom Atomic Energy Authority,16/01/2014,SUBSISTENCE,FUSION,EMPLOYEE EXPENSES,100710598,166.51
United Kingdom Atomic Energy Authority,United Kingdom Atomic Energy Authority,16/01/2014,ROAD TRAVEL,FUSION,EMPLOYEE EXPENSES,100710598,104.94
United Kingdom Atomic Energy Authority,United Kingdom Atomic Energy Authority,23/01/2014,OTHER EMPLOYEE EXPENSES,FUSION,EMPLOYEE EXPENSES,100711796,24.99
United Kingdom Atomic Energy Authority,United Kingdom Atomic Energy Authority,23/01/2014,SUBSISTENCE,FUSION,EMPLOYEE EXPENSES,100711797,10
United Kingdom Atomic Energy Authority,United Kingdom Atomic Energy Authority,23/01/2014,SUBSISTENCE,FUSION,EMPLOYEE EXPENSES,100711797,144.62
United Kingdom Atomic Energy Authority,United Kingdom Atomic Energy Authority,23/01/2014,ROAD TRAVEL,FUSION,EMPLOYEE EXPENSES,100711797,60.46
United Kingdom Atomic Energy Authority,United Kingdom Atomic Energy Authority,16/01/2014,ROAD TRAVEL,FUSION,EMPLOYEE EXPENSES,100710592,17.84
United Kingdom Atomic Energy Authority,United Kingdom Atomic Energy Authority,16/01/2014,SUBSISTENCE,FUSION,EMPLOYEE EXPENSES,100710602,87
United Kingdom Atomic Energy Authority,United Kingdom Atomic Energy Authority,16/01/2014,SUBSISTENCE,FUSION,EMPLOYEE EXPENSES,100710602,7.9
United Kingdom Atomic Energy Authority,United Kingdom Atomic Energy Authority,16/01/2014,ROAD TRAVEL,FUSION,EMPLOYEE EXPENSES,100710602,4.58
United Kingdom Atomic Energy Authority,United Kingdom Atomic Energy Authority,04/01/2014,SUBSISTENCE,SUPPORT SERVICES,EMPLOYEE EXPENSES,100709712,65.83
United Kingdom Atomic Energy Authority,United Kingdom Atomic Energy Authority,04/01/2014,MILEAGE ALLOWANCE,SUPPORT SERVICES,EMPLOYEE EXPENSES,100709712,161.1
United Kingdom Atomic Energy Authority,United Kingdom Atomic Energy Authority,04/01/2014,RAIL TRAVEL,SUPPORT SERVICES,EMPLOYEE EXPENSES,100709699,0.85
United Kingdom Atomic Energy Authority,United Kingdom Atomic Energy Authority,04/01/2014,RAIL TRAVEL,SUPPORT SERVICES,EMPLOYEE EXPENSES,100709699,31.65
United Kingdom Atomic Energy Authority,United Kingdom Atomic Energy Authority,04/01/2014,ROAD TRAVEL,SUPPORT SERVICES,EMPLOYEE EXPENSES,100709699,0.34
United Kingdom Atomic Energy Authority,United Kingdom Atomic Energy Authority,04/01/2014,ROAD TRAVEL,SUPPORT SERVICES,EMPLOYEE EXPENSES,100709699,12.66
United Kingdom Atomic Energy Authority,United Kingdom Atomic Energy Authority,04/01/2014,PROFESSIONAL SUBSCRIPTION,SUPPORT SERVICES,EMPLOYEE EXPENSES,100709699,5.33
United Kingdom Atomic Energy Authority,United Kingdom Atomic Energy Authority,04/01/2014,PROFESSIONAL SUBSCRIPTION,SUPPORT SERVICES,EMPLOYEE EXPENSES,100709699,199.67
United Kingdom Atomic Energy Authority,United Kingdom Atomic Energy Authority,09/01/2014,PROFESSIONAL SUBSCRIPTION,SUPPORT SERVICES,EMPLOYEE EXPENSES,100710466,205
United Kingdom Atomic Energy Authority,United Kingdom Atomic Energy Authority,06/01/2014,PROFESSIONAL SERVICES,FUSION,ENERGY SAFETY AND RISK CONSULTANTS,5100298083,8399
United Kingdom Atomic Energy Authority,United Kingdom Atomic Energy Authority,20/01/2014,TRAINING COSTS,FUSION,ENGINEERING DEVELOPMENT TRUST,5100298801,2500
United Kingdom Atomic Energy Authority,United Kingdom Atomic Energy Authority,08/01/2014,OTHER EXTERNAL COSTS,FUSION,Environment Agency,1900059274,950
United Kingdom Atomic Energy Authority,United Kingdom Atomic Energy Authority,06/01/2014,PROFESSIONAL SERVICES,FUSION,ESR TECHNOLOGY LTD,5100297869,1150
United Kingdom Atomic Energy Authority,United Kingdom Atomic Energy Authority,06/01/2014,MATERIALS & SPARES,FUSION,ETS CABLE COMPONENTS,5100296834,308
United Kingdom Atomic Energy Authority,United Kingdom Atomic Energy Authority,06/01/2014,MATERIALS & SPARES,FUSION,ETS CABLE COMPONENTS,5100298379,-308
United Kingdom Atomic Energy Authority,United Kingdom Atomic Energy Authority,06/01/2014,REPAIRS & MAINTENANCE,PROPERTY,EURO DISMANTLING SERVICES,5100298206,4654.05
United Kingdom Atomic Energy Authority,United Kingdom Atomic Energy Authority,21/01/2014,OTHER EXTERNAL COSTS,FUSION,European Physical Society,1900059357,1040.63
United Kingdom Atomic Energy Authority,United Kingdom Atomic Energy Authority,06/01/2014,CONSUMABLES,FUSION,EUROTHERM LTD,5100297994,410
United Kingdom Atomic Energy Authority,United Kingdom Atomic Energy Authority,22/01/2014,SITE SUPPORT SERVICES,FUSION,EVERSON TESLA INC,5100298711,15039.45
United Kingdom Atomic Energy Authority,United Kingdom Atomic Energy Authority,13/01/2014,REPAIRS & MAINTENANCE,FUSION,FACTAIR LTD,5100298097,26372
United Kingdom Atomic Energy Authority,United Kingdom Atomic Energy Authority,13/01/2014,PROFESSIONAL SERVICES,FUSION,FAITHFUL & GOULD,5100297073,49455
United Kingdom Atomic Energy Authority,United Kingdom Atomic Energy Authority,13/01/2014,PROFESSIONAL SERVICES,FUSION,FAITHFUL & GOULD,5100298005,63399
United Kingdom Atomic Energy Authority,United Kingdom Atomic Energy Authority,20/01/2014,MATERIALS & SPARES,FUSION,FARNELL ELECTRONIC,5100298718,98.67
United Kingdom Atomic Energy Authority,United Kingdom Atomic Energy Authority,06/01/2014,MATERIALS & SPARES,FUSION,FARNELL ELECTRONIC,5100298245,87.9
United Kingdom Atomic Energy Authority,United Kingdom Atomic Energy Authority,06/01/2014,MATERIALS & SPARES,FUSION,FARNELL ELECTRONIC,5100297966,-220.12
United Kingdom Atomic Energy Authority,United Kingdom Atomic Energy Authority,06/01/2014,MATERIALS & SPARES,FUSION,FARNELL ELECTRONIC,5100298244,153.83
United Kingdom Atomic Energy Authority,United Kingdom Atomic Energy Authority,13/01/2014,MATERIALS & SPARES,FUSION,FARNELL ELECTRONIC,5100298284,14.19
United Kingdom Atomic Energy Authority,United Kingdom Atomic Energy Authority,20/01/2014,MATERIALS & SPARES,FUSION,FARNELL ELECTRONIC,5100298692,119.23
United Kingdom Atomic Energy Authority,United Kingdom Atomic Energy Authority,20/01/2014,MATERIALS & SPARES,FUSION,FARNELL ELECTRONIC,5100298696,25.44
United Kingdom Atomic Energy Authority,United Kingdom Atomic Energy Authority,08/01/2014,MATERIALS & SPARES,FUSION,FARNELL ELECTRONIC,5100296981,61.7
United Kingdom Atomic Energy Authority,United Kingdom Atomic Energy Authority,06/01/2014,MATERIALS & SPARES,FUSION,FARNELL ELECTRONIC,5100298230,203.57
United Kingdom Atomic Energy Authority,United Kingdom Atomic Energy Authority,06/01/2014,MATERIALS & SPARES,FUSION,FARNELL ELECTRONIC,5100298283,337.33
United Kingdom Atomic Energy Authority,United Kingdom Atomic Energy Authority,06/01/2014,MATERIALS & SPARES,FUSION,FARNELL ELECTRONIC,5100298285,190.69
United Kingdom Atomic Energy Authority,United Kingdom Atomic Energy Authority,06/01/2014,MATERIALS & SPARES,FUSION,FARNELL ELECTRONIC,5100298326,79.01
United Kingdom Atomic Energy Authority,United Kingdom Atomic Energy Authority,06/01/2014,MATERIALS & SPARES,FUSION,FARNELL ELECTRONIC,5100298328,40.42
United Kingdom Atomic Energy Authority,United Kingdom Atomic Energy Authority,20/01/2014,MATERIALS & SPARES,FUSION,FARNELL ELECTRONIC,5100298832,170.8
United Kingdom Atomic Energy Authority,United Kingdom Atomic Energy Authority,20/01/2014,MATERIALS & SPARES,FUSION,FARNELL ELECTRONIC,5100298834,40.31
United Kingdom Atomic Energy Authority,United Kingdom Atomic Energy Authority,20/01/2014,MATERIALS & SPARES,FUSION,FARNELL ELECTRONIC,5100298835,53.68
United Kingdom Atomic Energy Authority,United Kingdom Atomic Energy Authority,06/01/2014,MATERIALS & SPARES,FUSION,FARNELL ELECTRONIC,5100298243,128.74
United Kingdom Atomic Energy Authority,United Kingdom Atomic Energy Authority,20/01/2014,MATERIALS & SPARES,FUSION,FARNELL ELECTRONIC,5100298697,42.9
United Kingdom Atomic Energy Authority,United Kingdom Atomic Energy Authority,20/01/2014,MATERIALS & SPARES,FUSION,FARNELL ELECTRONIC,5100298721,27.36
United Kingdom Atomic Energy Authority,United Kingdom Atomic Energy Authority,06/01/2014,MATERIALS & SPARES,FUSION,FARNELL ELECTRONIC,5100298236,5407.83
United Kingdom Atomic Energy Authority,United Kingdom Atomic Energy Authority,20/01/2014,MATERIALS & SPARES,FUSION,FARNELL ELECTRONIC,5100298717,124
United Kingdom Atomic Energy Authority,United Kingdom Atomic Energy Authority,06/01/2014,MATERIALS & SPARES,FUSION,FARNELL ELECTRONIC,5100298227,130.24
United Kingdom Atomic Energy Authority,United Kingdom Atomic Energy Authority,08/01/2014,MATERIALS & SPARES,FUSION,FARNELL ELECTRONIC,5100298287,46.76
United Kingdom Atomic Energy Authority,United Kingdom Atomic Energy Authority,06/01/2014,MATERIALS & SPARES,FUSION,FARNELL ELECTRONIC,5100296844,827.17
United Kingdom Atomic Energy Authority,United Kingdom Atomic Energy Authority,08/01/2014,MATERIALS & SPARES,FUSION,FARNELL ELECTRONIC,5100297584,83.97
United Kingdom Atomic Energy Authority,United Kingdom Atomic Energy Authority,06/01/2014,MATERIALS & SPARES,FUSION,FARNELL ELECTRONIC,5100297967,146.4
United Kingdom Atomic Energy Authority,United Kingdom Atomic Energy Authority,06/01/2014,MATERIALS & SPARES,FUSION,FARNELL ELECTRONIC,5100297975,-292.8
United Kingdom Atomic Energy Authority,United Kingdom Atomic Energy Authority,06/01/2014,MATERIALS & SPARES,FUSION,FARNELL ELECTRONIC,5100298055,-292.8
United Kingdom Atomic Energy Authority,United Kingdom Atomic Energy Authority,06/01/2014,MATERIALS & SPARES,FUSION,FARNELL ELECTRONIC,5100298225,11.54
United Kingdom Atomic Energy Authority,United Kingdom Atomic Energy Authority,06/01/2014,MATERIALS & SPARES,FUSION,FARNELL ELECTRONIC,5100298246,207.19
United Kingdom Atomic Energy Authority,United Kingdom Atomic Energy Authority,20/01/2014,MATERIALS & SPARES,FUSION,FARNELL ELECTRONIC,5100298833,501.64
United Kingdom Atomic Energy Authority,United Kingdom Atomic Energy Authority,06/01/2014,MATERIALS & SPARES,FUSION,FARNELL ELECTRONIC,5100297585,118.35
United Kingdom Atomic Energy Authority,United Kingdom Atomic Energy Authority,06/01/2014,MATERIALS & SPARES,FUSION,FARNELL ELECTRONIC,5100297593,614.05
United Kingdom Atomic Energy Authority,United Kingdom Atomic Energy Authority,06/01/2014,MATERIALS & SPARES,FUSION,FARNELL ELECTRONIC,5100298232,28.8
United Kingdom Atomic Energy Authority,United Kingdom Atomic Energy Authority,06/01/2014,MATERIALS & SPARES,FUSION,FARNELL ELECTRONIC,5100298234,5.8
United Kingdom Atomic Energy Authority,United Kingdom Atomic Energy Authority,06/01/2014,MATERIALS & SPARES,FUSION,FARNELL ELECTRONIC,5100298327,8.15
United Kingdom Atomic Energy Authority,United Kingdom Atomic Energy Authority,06/01/2014,MATERIALS & SPARES,FUSION,FARNELL ELECTRONIC,5100297110,509.37
United Kingdom Atomic Energy Authority,United Kingdom Atomic Energy Authority,06/01/2014,MATERIALS & SPARES,FUSION,FARNELL ELECTRONIC,5100298223,-40
United Kingdom Atomic Energy Authority,United Kingdom Atomic Energy Authority,06/01/2014,MATERIALS & SPARES,FUSION,FARNELL ELECTRONIC,5100298286,340.08
United Kingdom Atomic Energy Authority,United Kingdom Atomic Energy Authority,20/01/2014,MATERIALS & SPARES,FUSION,FARNELL ELECTRONIC,5100298701,8.52
United Kingdom Atomic Energy Authority,United Kingdom Atomic Energy Authority,20/01/2014,MATERIALS & SPARES,FUSION,FARNELL ELECTRONIC,5100298836,219.06
United Kingdom Atomic Energy Authority,United Kingdom Atomic Energy Authority,20/01/2014,MATERIALS & SPARES,FUSION,FARNELL ELECTRONIC,5100298719,1.75
United Kingdom Atomic Energy Authority,United Kingdom Atomic Energy Authority,06/01/2014,MATERIALS & SPARES,FUSION,FARNELL ELECTRONIC,5100298242,21.19
United Kingdom Atomic Energy Authority,United Kingdom Atomic Energy Authority,20/01/2014,MATERIALS & SPARES,FUSION,FARNELL ELECTRONIC,5100298694,25.44
United Kingdom Atomic Energy Authority,United Kingdom Atomic Energy Authority,20/01/2014,MATERIALS & SPARES,FUSION,FARNELL ELECTRONIC,5100298698,1839.4
United Kingdom Atomic Energy Authority,United Kingdom Atomic Energy Authority,20/01/2014,MATERIALS & SPARES,FUSION,FARNELL ELECTRONIC,5100298720,141.96
United Kingdom Atomic Energy Authority,United Kingdom Atomic Energy Authority,06/01/2014,MATERIALS & SPARES,FUSION,FASTFIX,5100298181,53
United Kingdom Atomic Energy Authority,United Kingdom Atomic Energy Authority,06/01/2014,STATIONERY,FUSION,FINE PRINT SERVICES,5100297760,635
United Kingdom Atomic Energy Authority,United Kingdom Atomic Energy Authority,20/01/2014,MATERIALS & SPARES,FUSION,FISHER SCIENTIFIC UK LIMITED,5100298686,142.88
United Kingdom Atomic Energy Authority,United Kingdom Atomic Energy Authority,20/01/2014,PLANT & EQUIPMENT,FUSION,FISHER SCIENTIFIC UK LTD,5100298811,57.62
United Kingdom Atomic Energy Authority,United Kingdom Atomic Energy Authority,13/01/2014,PLANT & EQUIPMENT,FUSION,FISHER SCIENTIFIC UK LTD,5100298465,701.86
United Kingdom Atomic Energy Authority,United Kingdom Atomic Energy Authority,13/01/2014,PLANT & EQUIPMENT,FUSION,FISHER SCIENTIFIC UK LTD,5100298408,395.75
United Kingdom Atomic Energy Authority,United Kingdom Atomic Energy Authority,13/01/2014,PLANT & EQUIPMENT,FUSION,FISHER SCIENTIFIC UK LTD,5100298464,504.93
United Kingdom Atomic Energy Authority,United Kingdom Atomic Energy Authority,13/01/2014,PLANT & EQUIPMENT,FUSION,FISHER SCIENTIFIC UK LTD,5100298466,2648.4
United Kingdom Atomic Energy Authority,United Kingdom Atomic Energy Authority,13/01/2014,PLANT & EQUIPMENT,FUSION,FISHER SCIENTIFIC UK LTD,5100298467,620.45
United Kingdom Atomic Energy Authority,United Kingdom Atomic Energy Authority,13/01/2014,PLANT & EQUIPMENT,FUSION,FISHER SCIENTIFIC UK LTD,5100298575,303.48
United Kingdom Atomic Energy Authority,United Kingdom Atomic Energy Authority,20/01/2014,PLANT & EQUIPMENT,FUSION,FISHER SCIENTIFIC UK LTD,5100298751,142
United Kingdom Atomic Energy Authority,United Kingdom Atomic Energy Authority,08/01/2014,PLANT & EQUIPMENT,FUSION,FISHER SCIENTIFIC UK LTD,5100298108,37.59
United Kingdom Atomic Energy Authority,United Kingdom Atomic Energy Authority,06/01/2014,STATIONERY,FUSION,FLAPS ENVELOPES LTD,5100298273,183.24
United Kingdom Atomic Energy Authority,United Kingdom Atomic Energy Authority,06/01/2014,STATIONERY,FUSION,FLAPS ENVELOPES LTD,5100298353,724.3
United Kingdom Atomic Energy Authority,United Kingdom Atomic Energy Authority,13/01/2014,MATERIALS & SPARES,FUSION,FLEXIBLE REINFORCEMENT LIMITED,5100298042,1875.5
United Kingdom Atomic Energy Authority,United Kingdom Atomic Energy Authority,08/01/2014,MATERIALS & SPARES,FUSION,FORGEWELD LTD,5100298016,465
United Kingdom Atomic Energy Authority,United Kingdom Atomic Energy Authority,08/01/2014,MATERIALS & SPARES,FUSION,FORGEWELD LTD,5100298017,304.47
United Kingdom Atomic Energy Authority,United Kingdom Atomic Energy Authority,06/01/2014,MATERIALS & SPARES,FUSION,FORGEWELD LTD,5100298018,414.95
United Kingdom Atomic Energy Authority,United Kingdom Atomic Energy Authority,20/01/2014,MATERIALS & SPARES,FUSION,FORWARD 2000 LTD,5100298746,255
United Kingdom Atomic Energy Authority,United Kingdom Atomic Energy Authority,13/01/2014,OTHER EXTERNAL COSTS,FUSION,Freudenberg Filtration,1900059294,315.5
United Kingdom Atomic Energy Authority,United Kingdom Atomic Energy Authority,20/01/2014,MATERIALS & SPARES,FUSION,FTI LTD,5100298840,254.9
United Kingdom Atomic Energy Authority,United Kingdom Atomic Energy Authority,20/01/2014,MATERIALS & SPARES,FUSION,FTI LTD,5100298841,114.3
United Kingdom Atomic Energy Authority,United Kingdom Atomic Energy Authority,13/01/2014,STATIONERY,FUSION,FULTON PAPER,5100296567,2200
United Kingdom Atomic Energy Authority,United Kingdom Atomic Energy Authority,06/01/2014,STATIONERY,FUSION,FULTON PAPER,5100298272,3500
United Kingdom Atomic Energy Authority,United Kingdom Atomic Energy Authority,20/01/2014,PLANT & EQUIPMENT,FUSION,GARDNER DENVER ALTON LTD,5100298863,946.5
United Kingdom Atomic Energy Authority,United Kingdom Atomic Energy Authority,13/01/2014,MATERIALS & SPARES,FUSION,GARLOCK GREAT BRITAIN LTD,5100298405,7052.21
United Kingdom Atomic Energy Authority,United Kingdom Atomic Energy Authority,15/01/2014,HIRED STAFF,FUSION,GENTLE ASSOCIATES LTD,5100298470,5582.96
United Kingdom Atomic Energy Authority,United Kingdom Atomic Energy Authority,13/01/2014,OTHER EXTERNAL COSTS,FUSION,George Sips,1900059295,437.84
United Kingdom Atomic Energy Authority,United Kingdom Atomic Energy Authority,06/01/2014,IT EQUIPMENT NON CAPITAL,FUSION,GIGASTREAM,5100297932,500
United Kingdom Atomic Energy Authority,United Kingdom Atomic Energy Authority,20/01/2014,PROFESSIONAL SERVICES,FUSION,GLANVILLE CONSULTANTS,5100298827,1140.79
United Kingdom Atomic Energy Authority,United Kingdom Atomic Energy Authority,20/01/2014,PROFESSIONAL SERVICES,FUSION,GLANVILLE CONSULTANTS,5100298743,1268.75
United Kingdom Atomic Energy Authority,United Kingdom Atomic Energy Authority,06/01/2014,PLANT & EQUIPMENT,FUSION,GOODFELLOW CAMBRIDGE LTD,5100297839,139
United Kingdom Atomic Energy Authority,United Kingdom Atomic Energy Authority,15/01/2014,PLANT & EQUIPMENT,FUSION,GOODFELLOW CAMBRIDGE LTD,5100298577,139
United Kingdom Atomic Energy Authority,United Kingdom Atomic Energy Authority,20/01/2014,PLANT & EQUIPMENT,FUSION,GOODFELLOW CAMBRIDGE LTD,5100298645,59
United Kingdom Atomic Energy Authority,United Kingdom Atomic Energy Authority,06/01/2014,PROFESSIONAL SERVICES,PROPERTY,GRUNDON WASTE MANAGEMENT LTD,5100297748,771.9
United Kingdom Atomic Energy Authority,United Kingdom Atomic Energy Authority,06/01/2014,PROFESSIONAL SERVICES,PROPERTY,GRUNDON WASTE MANAGEMENT LTD,5100297749,112.65
United Kingdom Atomic Energy Authority,United Kingdom Atomic Energy Authority,06/01/2014,PROFESSIONAL SERVICES,PROPERTY,GRUNDON WASTE MANAGEMENT LTD,5100297751,249.3
United Kingdom Atomic Energy Authority,United Kingdom Atomic Energy Authority,06/01/2014,PROFESSIONAL SERVICES,PROPERTY,GRUNDON WASTE MANAGEMENT LTD,5100297752,249.3
United Kingdom Atomic Energy Authority,United Kingdom Atomic Energy Authority,06/01/2014,PROFESSIONAL SERVICES,PROPERTY,GRUNDON WASTE MANAGEMENT LTD,5100297756,450.6
United Kingdom Atomic Energy Authority,United Kingdom Atomic Energy Authority,22/01/2014,PROFESSIONAL SERVICES,PROPERTY,GRUNDON WASTE MANAGEMENT LTD,5100298732,804.05
United Kingdom Atomic Energy Authority,United Kingdom Atomic Energy Authority,22/01/2014,PROFESSIONAL SERVICES,PROPERTY,GRUNDON WASTE MANAGEMENT LTD,5100298736,125
United Kingdom Atomic Energy Authority,United Kingdom Atomic Energy Authority,22/01/2014,PROFESSIONAL SERVICES,PROPERTY,GRUNDON WASTE MANAGEMENT LTD,5100298737,125
United Kingdom Atomic Energy Authority,United Kingdom Atomic Energy Authority,22/01/2014,PROFESSIONAL SERVICES,PROPERTY,GRUNDON WASTE MANAGEMENT LTD,5100298738,474.6
United Kingdom Atomic Energy Authority,United Kingdom Atomic Energy Authority,22/01/2014,PROFESSIONAL SERVICES,PROPERTY,GRUNDON WASTE MANAGEMENT LTD,5100298739,237.3
United Kingdom Atomic Energy Authority,United Kingdom Atomic Energy Authority,22/01/2014,PROFESSIONAL SERVICES,PROPERTY,GRUNDON WASTE MANAGEMENT LTD,5100298740,118.65
United Kingdom Atomic Energy Authority,United Kingdom Atomic Energy Authority,06/01/2014,PROFESSIONAL SERVICES,PROPERTY,GRUNDON WASTE MANAGEMENT LTD,5100297753,100
United Kingdom Atomic Energy Authority,United Kingdom Atomic Energy Authority,06/01/2014,PROFESSIONAL SERVICES,PROPERTY,GRUNDON WASTE MANAGEMENT LTD,5100297754,100
United Kingdom Atomic Energy Authority,United Kingdom Atomic Energy Authority,06/01/2014,PROFESSIONAL SERVICES,PROPERTY,GRUNDON WASTE MANAGEMENT LTD,5100297758,225.3
United Kingdom Atomic Energy Authority,United Kingdom Atomic Energy Authority,06/01/2014,PROFESSIONAL SERVICES,PROPERTY,GRUNDON WASTE MANAGEMENT LTD,5100297759,112.65
United Kingdom Atomic Energy Authority,United Kingdom Atomic Energy Authority,22/01/2014,PROFESSIONAL SERVICES,PROPERTY,GRUNDON WASTE MANAGEMENT LTD,5100298733,118.65
United Kingdom Atomic Energy Authority,United Kingdom Atomic Energy Authority,22/01/2014,PROFESSIONAL SERVICES,PROPERTY,GRUNDON WASTE MANAGEMENT LTD,5100298734,267.3
United Kingdom Atomic Energy Authority,United Kingdom Atomic Energy Authority,22/01/2014,PROFESSIONAL SERVICES,PROPERTY,GRUNDON WASTE MANAGEMENT LTD,5100298735,267.3
United Kingdom Atomic Energy Authority,United Kingdom Atomic Energy Authority,06/01/2014,TAXIS,FUSION,HAROLDS CARS,5100298260,5026.26
United Kingdom Atomic Energy Authority,United Kingdom Atomic Energy Authority,22/01/2014,TAXIS,FUSION,HAROLDS CARS,5100299004,61.32
United Kingdom Atomic Energy Authority,United Kingdom Atomic Energy Authority,06/01/2014,PROFESSIONAL SERVICES,SUPPORT SERVICES,HAYS RECRUITMENT,5100298174,3500
United Kingdom Atomic Energy Authority,United Kingdom Atomic Energy Authority,20/01/2014,PLANT & EQUIPMENT,FUSION,HEWDEN,5100297835,750
United Kingdom Atomic Energy Authority,United Kingdom Atomic Energy Authority,22/01/2014,PROFESSIONAL SERVICES,FUSION,HILLS WASTE SOLUTIONS LTD,5100298819,21.77
United Kingdom Atomic Energy Authority,United Kingdom Atomic Energy Authority,22/01/2014,PROFESSIONAL SERVICES,FUSION,HILLS WASTE SOLUTIONS LTD,5100298821,28.06
United Kingdom Atomic Energy Authority,United Kingdom Atomic Energy Authority,22/01/2014,PROFESSIONAL SERVICES,FUSION,HILLS WASTE SOLUTIONS LTD,5100298822,9.35
United Kingdom Atomic Energy Authority,United Kingdom Atomic Energy Authority,15/01/2014,PLANT SPARES,FUSION,HILTI GB LTD,5100298010,61
United Kingdom Atomic Energy Authority,United Kingdom Atomic Energy Authority,22/01/2014,STATIONERY,FUSION,HOBS REPROGRAPHICS PLC,5100298972,259.62
United Kingdom Atomic Energy Authority,United Kingdom Atomic Energy Authority,22/01/2014,STATIONERY,FUSION,HOBS REPROGRAPHICS PLC,5100298973,227.7
United Kingdom Atomic Energy Authority,United Kingdom Atomic Energy Authority,13/01/2014,TRAVEL,,Hogg Robinson(Travel)Ltd T/A HRG UK,5100298567,10172.84
United Kingdom Atomic Energy Authority,United Kingdom Atomic Energy Authority,20/01/2014,MATERIALS & SPARES,FUSION,Hoverdale (UK) Ltd,5100298753,4900
United Kingdom Atomic Energy Authority,United Kingdom Atomic Energy Authority,15/01/2014,PROFESSIONAL SERVICES,FUSION,HSE - FINANCIAL OPERATIONS,5100296962,154
United Kingdom Atomic Energy Authority,United Kingdom Atomic Energy Authority,15/01/2014,PLANT & EQUIPMENT,FUSION,HT SERVO LTD,5100298573,12076
United Kingdom Atomic Energy Authority,United Kingdom Atomic Energy Authority,08/01/2014,CLEANING,FUSION,HYDROBLAST,5100298176,410
United Kingdom Atomic Energy Authority,United Kingdom Atomic Energy Authority,20/01/2014,CLEANING,FUSION,HYDROBLAST,5100298578,205
United Kingdom Atomic Energy Authority,United Kingdom Atomic Energy Authority,20/01/2014,CLEANING,FUSION,HYDROBLAST,5100298579,390
United Kingdom Atomic Energy Authority,United Kingdom Atomic Energy Authority,06/01/2014,MEDICAL EXPENSES,FUSION,IMASS LTD,5100298111,1500
United Kingdom Atomic Energy Authority,United Kingdom Atomic Energy Authority,06/01/2014,MEDICAL EXPENSES,FUSION,IMASS LTD,5100298113,1500
United Kingdom Atomic Energy Authority,United Kingdom Atomic Energy Authority,06/01/2014,UNIVERSITY PLACEMENT,FUSION,IMPERIAL COLLEGE,5100298205,7680
United Kingdom Atomic Energy Authority,United Kingdom Atomic Energy Authority,13/01/2014,UNIVERSITY PLACEMENT,FUSION,IMPERIAL COLLEGE,5100298525,1646
United Kingdom Atomic Energy Authority,United Kingdom Atomic Energy Authority,20/01/2014,SITE SUPPORT SERVICES,PROPERTY,INFOCASH LTD,5100298565,150
United Kingdom Atomic Energy Authority,United Kingdom Atomic Energy Authority,08/01/2014,PLANT & EQUIPMENT,FUSION,INSIGHT DIRECT LTD,5100298489,389.97
United Kingdom Atomic Energy Authority,United Kingdom Atomic Energy Authority,08/01/2014,PLANT & EQUIPMENT,FUSION,INSIGHT DIRECT LTD,5100298488,-389.97
United Kingdom Atomic Energy Authority,United Kingdom Atomic Energy Authority,06/01/2014,PLANT & EQUIPMENT,FUSION,INSIGHT DIRECT LTD,5100298184,1747.96
United Kingdom Atomic Energy Authority,United Kingdom Atomic Energy Authority,08/01/2014,PLANT & EQUIPMENT,FUSION,INSIGHT DIRECT LTD,5100298295,2367.61
United Kingdom Atomic Energy Authority,United Kingdom Atomic Energy Authority,06/01/2014,PLANT & EQUIPMENT,FUSION,INSIGHT DIRECT LTD,5100298110,638.99
United Kingdom Atomic Energy Authority,United Kingdom Atomic Energy Authority,06/01/2014,PLANT & EQUIPMENT,FUSION,INSIGHT DIRECT LTD,5100298279,957.5
United Kingdom Atomic Energy Authority,United Kingdom Atomic Energy Authority,13/01/2014,PLANT & EQUIPMENT,FUSION,INSIGHT DIRECT LTD,5100298022,39.98
United Kingdom Atomic Energy Authority,United Kingdom Atomic Energy Authority,08/01/2014,PROFESSIONAL SERVICES,,Institute of Plasma Physics,5100298106,2912.39
United Kingdom Atomic Energy Authority,United Kingdom Atomic Energy Authority,20/01/2014,PLANT & EQUIPMENT,FUSION,INSTRUMENT TECHNOLOGY LTD,5100298668,157
United Kingdom Atomic Energy Authority,United Kingdom Atomic Energy Authority,20/01/2014,PLANT & EQUIPMENT,FUSION,INSTRUMENT TECHNOLOGY LTD,5100298745,48.2
United Kingdom Atomic Energy Authority,United Kingdom Atomic Energy Authority,02/01/2014,INTERVIEW EXPENSES,SUPPORT SERVICES,INTERVIEW EXPENSES,1900059240,36
United Kingdom Atomic Energy Authority,United Kingdom Atomic Energy Authority,03/01/2014,INTERVIEW EXPENSES,FUSION,INTERVIEW EXPENSES,1900059265,75.15
United Kingdom Atomic Energy Authority,United Kingdom Atomic Energy Authority,15/01/2014,PLANT SPARES,FUSION,IPT-Albrecht,5100297444,53137.35
United Kingdom Atomic Energy Authority,United Kingdom Atomic Energy Authority,13/01/2014,TRAINING COSTS,FUSION,ISIS TRAINING SERVICES LTD,5100298446,155
United Kingdom Atomic Energy Authority,United Kingdom Atomic Energy Authority,22/01/2014,SECONDED STAFF,,IST,5100298372,55980.71
United Kingdom Atomic Energy Authority,United Kingdom Atomic Energy Authority,16/01/2014,OTHER EXTERNAL COSTS,FUSION,Itel Electronics Ltd,1900059327,228
United Kingdom Atomic Energy Authority,United Kingdom Atomic Energy Authority,06/01/2014,PLANT & EQUIPMENT,FUSION,J & J PNEUMATICS LTD,5100298186,593.95
United Kingdom Atomic Energy Authority,United Kingdom Atomic Energy Authority,13/01/2014,PLANT & EQUIPMENT,FUSION,J & J PNEUMATICS LTD,5100298499,576.78
United Kingdom Atomic Energy Authority,United Kingdom Atomic Energy Authority,13/01/2014,PLANT & EQUIPMENT,FUSION,J & J PNEUMATICS LTD,5100298506,440.46
United Kingdom Atomic Energy Authority,United Kingdom Atomic Energy Authority,20/01/2014,PLANT & EQUIPMENT,FUSION,J & J PNEUMATICS LTD,5100298741,-1055.25
United Kingdom Atomic Energy Authority,United Kingdom Atomic Energy Authority,20/01/2014,PLANT & EQUIPMENT,FUSION,J & J PNEUMATICS LTD,5100298742,1055.25
United Kingdom Atomic Energy Authority,United Kingdom Atomic Energy Authority,13/01/2014,MATERIALS & SPARES,FUSION,J DARBYSHIRE,5100298407,5990
United Kingdom Atomic Energy Authority,United Kingdom Atomic Energy Authority,20/01/2014,MATERIALS & SPARES,FUSION,JAC TOOLS LTD,5100295606,46.8
United Kingdom Atomic Energy Authority,United Kingdom Atomic Energy Authority,22/01/2014,PLANT SPARES,FUSION,Jacobsen Analytics Ltd,5100296813,9662.5
United Kingdom Atomic Energy Authority,United Kingdom Atomic Energy Authority,06/01/2014,MATERIALS & SPARES,FUSION,JEWSON LTD,5100298196,208.1
United Kingdom Atomic Energy Authority,United Kingdom Atomic Energy Authority,15/01/2014,PLANT & EQUIPMENT,FUSION,KAISER & KRAFT LTD,5100297541,716.4
United Kingdom Atomic Energy Authority,United Kingdom Atomic Energy Authority,06/01/2014,PROFESSIONAL SERVICES,PROPERTY,KEMP & KEMP,5100297921,3378
United Kingdom Atomic Energy Authority,United Kingdom Atomic Energy Authority,06/01/2014,LEGAL FEES,SUPPORT SERVICES,KEOGHS,5100298391,464
United Kingdom Atomic Energy Authority,United Kingdom Atomic Energy Authority,06/01/2014,LEGAL FEES,SUPPORT SERVICES,KEOGHS,5100298392,672
United Kingdom Atomic Energy Authority,United Kingdom Atomic Energy Authority,15/01/2014,LEGAL FEES,SUPPORT SERVICES,KEOGHS,5100298625,176
United Kingdom Atomic Energy Authority,United Kingdom Atomic Energy Authority,15/01/2014,LEGAL FEES,SUPPORT SERVICES,KEOGHS,5100298629,976
United Kingdom Atomic Energy Authority,United Kingdom Atomic Energy Authority,15/01/2014,LEGAL FEES,SUPPORT SERVICES,KEOGHS,5100298679,2460.5
United Kingdom Atomic Energy Authority,United Kingdom Atomic Energy Authority,20/01/2014,LEGAL FEES,SUPPORT SERVICES,KEOGHS,5100298864,176
United Kingdom Atomic Energy Authority,United Kingdom Atomic Energy Authority,20/01/2014,LEGAL FEES,SUPPORT SERVICES,KEOGHS,5100298865,608
United Kingdom Atomic Energy Authority,United Kingdom Atomic Energy Authority,20/01/2014,LEGAL FEES,SUPPORT SERVICES,KEOGHS,5100298866,192
United Kingdom Atomic Energy Authority,United Kingdom Atomic Energy Authority,20/01/2014,LEGAL FEES,SUPPORT SERVICES,KEOGHS,5100298867,224
United Kingdom Atomic Energy Authority,United Kingdom Atomic Energy Authority,22/01/2014,LEGAL FEES,SUPPORT SERVICES,KEOGHS,5100298899,1360
United Kingdom Atomic Energy Authority,United Kingdom Atomic Energy Authority,22/01/2014,LEGAL FEES,SUPPORT SERVICES,KEOGHS,5100298900,1296
United Kingdom Atomic Energy Authority,United Kingdom Atomic Energy Authority,15/01/2014,LEGAL FEES,SUPPORT SERVICES,KEOGHS,5100298626,480
United Kingdom Atomic Energy Authority,United Kingdom Atomic Energy Authority,15/01/2014,LEGAL FEES,SUPPORT SERVICES,KEOGHS,5100298627,208
United Kingdom Atomic Energy Authority,United Kingdom Atomic Energy Authority,15/01/2014,LEGAL FEES,SUPPORT SERVICES,KEOGHS,5100298628,848
United Kingdom Atomic Energy Authority,United Kingdom Atomic Energy Authority,15/01/2014,LEGAL FEES,SUPPORT SERVICES,KEOGHS,5100298630,208
United Kingdom Atomic Energy Authority,United Kingdom Atomic Energy Authority,20/01/2014,LEGAL FEES,SUPPORT SERVICES,KEOGHS,5100298868,720
United Kingdom Atomic Energy Authority,United Kingdom Atomic Energy Authority,20/01/2014,MATERIALS & SPARES,FUSION,KEY INDUSTRIAL EQUIPMENT LTD,5100298646,189.05
United Kingdom Atomic Energy Authority,United Kingdom Atomic Energy Authority,20/01/2014,MATERIALS & SPARES,FUSION,KEY INDUSTRIAL EQUIPMENT LTD,5100298851,436
United Kingdom Atomic Energy Authority,United Kingdom Atomic Energy Authority,20/01/2014,BUILDING REPAIRS,SUPPORT SERVICES,KNOWLES & SONS (OXFORD) LTD,5100298133,5288.05
United Kingdom Atomic Energy Authority,United Kingdom Atomic Energy Authority,06/01/2014,BUILDING REPAIRS,SUPPORT SERVICES,KNOWLES & SONS (OXFORD) LTD,5100298156,82.03
United Kingdom Atomic Energy Authority,United Kingdom Atomic Energy Authority,06/01/2014,BUILDING REPAIRS,SUPPORT SERVICES,KNOWLES & SONS (OXFORD) LTD,5100298157,26.19
United Kingdom Atomic Energy Authority,United Kingdom Atomic Energy Authority,06/01/2014,BUILDING REPAIRS,SUPPORT SERVICES,KNOWLES & SONS (OXFORD) LTD,5100298159,26.19
United Kingdom Atomic Energy Authority,United Kingdom Atomic Energy Authority,06/01/2014,BUILDING REPAIRS,SUPPORT SERVICES,KNOWLES & SONS (OXFORD) LTD,5100298160,26.19
United Kingdom Atomic Energy Authority,United Kingdom Atomic Energy Authority,06/01/2014,BUILDING REPAIRS,SUPPORT SERVICES,KNOWLES & SONS (OXFORD) LTD,5100298161,26.19
United Kingdom Atomic Energy Authority,United Kingdom Atomic Energy Authority,06/01/2014,BUILDING REPAIRS,SUPPORT SERVICES,KNOWLES & SONS (OXFORD) LTD,5100298162,26.19
United Kingdom Atomic Energy Authority,United Kingdom Atomic Energy Authority,06/01/2014,BUILDING REPAIRS,SUPPORT SERVICES,KNOWLES & SONS (OXFORD) LTD,5100298163,25.01
United Kingdom Atomic Energy Authority,United Kingdom Atomic Energy Authority,06/01/2014,BUILDING REPAIRS,SUPPORT SERVICES,KNOWLES & SONS (OXFORD) LTD,5100298166,128.4
United Kingdom Atomic Energy Authority,United Kingdom Atomic Energy Authority,06/01/2014,BUILDING REPAIRS,SUPPORT SERVICES,KNOWLES & SONS (OXFORD) LTD,5100298167,345.27
United Kingdom Atomic Energy Authority,United Kingdom Atomic Energy Authority,06/01/2014,BUILDING REPAIRS,SUPPORT SERVICES,KNOWLES & SONS (OXFORD) LTD,5100298169,31.55
United Kingdom Atomic Energy Authority,United Kingdom Atomic Energy Authority,06/01/2014,BUILDING REPAIRS,SUPPORT SERVICES,KNOWLES & SONS (OXFORD) LTD,5100298170,116.81
United Kingdom Atomic Energy Authority,United Kingdom Atomic Energy Authority,06/01/2014,BUILDING REPAIRS,FUSION,KNOWLES & SONS (OXFORD) LTD,5100298195,78.47
United Kingdom Atomic Energy Authority,United Kingdom Atomic Energy Authority,06/01/2014,BUILDING REPAIRS,FUSION,KNOWLES & SONS (OXFORD) LTD,5100298193,2832.68
United Kingdom Atomic Energy Authority,United Kingdom Atomic Energy Authority,06/01/2014,BUILDING REPAIRS,FUSION,KNOWLES & SONS (OXFORD) LTD,5100298150,28.14
United Kingdom Atomic Energy Authority,United Kingdom Atomic Energy Authority,06/01/2014,BUILDING REPAIRS,FUSION,KNOWLES & SONS (OXFORD) LTD,5100298152,41.33
United Kingdom Atomic Energy Authority,United Kingdom Atomic Energy Authority,06/01/2014,BUILDING REPAIRS,FUSION,KNOWLES & SONS (OXFORD) LTD,5100298153,26.19
United Kingdom Atomic Energy Authority,United Kingdom Atomic Energy Authority,06/01/2014,BUILDING REPAIRS,PROPERTY,KNOWLES & SONS (OXFORD) LTD,5100298154,297.99
United Kingdom Atomic Energy Authority,United Kingdom Atomic Energy Authority,22/01/2014,BUILDING REPAIRS,PROPERTY,KNOWLES & SONS (OXFORD) LTD,5100298688,29180.17
United Kingdom Atomic Energy Authority,United Kingdom Atomic Energy Authority,22/01/2014,BUILDING REPAIRS,PROPERTY,KNOWLES & SONS (OXFORD) LTD,5100298693,754.58
United Kingdom Atomic Energy Authority,United Kingdom Atomic Energy Authority,20/01/2014,BUILDING REPAIRS,PROPERTY,KNOWLES & SONS (OXFORD) LTD,5100298695,646.59
United Kingdom Atomic Energy Authority,United Kingdom Atomic Energy Authority,20/01/2014,BUILDING REPAIRS,PROPERTY,KNOWLES & SONS (OXFORD) LTD,5100298925,-524.69
United Kingdom Atomic Energy Authority,United Kingdom Atomic Energy Authority,20/01/2014,BUILDING REPAIRS,PROPERTY,KNOWLES & SONS (OXFORD) LTD,5100298927,524.69
United Kingdom Atomic Energy Authority,United Kingdom Atomic Energy Authority,20/01/2014,BUILDING REPAIRS,PROPERTY,KNOWLES & SONS (OXFORD) LTD,5100298691,4269.92
United Kingdom Atomic Energy Authority,United Kingdom Atomic Energy Authority,22/01/2014,BUILDING REPAIRS,PROPERTY,KNOWLES & SONS (OXFORD) LTD,5100297924,2197.36
United Kingdom Atomic Energy Authority,United Kingdom Atomic Energy Authority,20/01/2014,BUILDING REPAIRS,PROPERTY,KNOWLES & SONS (OXFORD) LTD,5100298690,11513.24
United Kingdom Atomic Energy Authority,United Kingdom Atomic Energy Authority,20/01/2014,BUILDING REPAIRS,PROPERTY,KNOWLES & SONS (OXFORD) LTD,5100298699,696.74
United Kingdom Atomic Energy Authority,United Kingdom Atomic Energy Authority,20/01/2014,BUILDING REPAIRS,PROPERTY,KNOWLES & SONS (OXFORD) LTD,5100298700,898.65
United Kingdom Atomic Energy Authority,United Kingdom Atomic Energy Authority,20/01/2014,BUILDING REPAIRS,PROPERTY,KNOWLES & SONS (OXFORD) LTD,5100298929,-11513.24
United Kingdom Atomic Energy Authority,United Kingdom Atomic Energy Authority,20/01/2014,BUILDING REPAIRS,PROPERTY,KNOWLES & SONS (OXFORD) LTD,5100298930,11513.24
United Kingdom Atomic Energy Authority,United Kingdom Atomic Energy Authority,20/01/2014,RENT OF VEHICLE & EQUIPMENT,FUSION,KONSTRUCTA SITE ACCOMMODATION HIRE,5100298744,402
United Kingdom Atomic Energy Authority,United Kingdom Atomic Energy Authority,15/01/2014,MATERIALS & SPARES,FUSION,K-TECH SUPPLIES LTD,5100297927,88.17
United Kingdom Atomic Energy Authority,United Kingdom Atomic Energy Authority,20/01/2014,MATERIALS & SPARES,FUSION,LAMBDA PHOTOMETRICS LTD,5100298810,7656
United Kingdom Atomic Energy Authority,United Kingdom Atomic Energy Authority,15/01/2014,CAR HIRE,SUPPORT SERVICES,LEASEDRIVE VELO,5100297496,82.14
United Kingdom Atomic Energy Authority,United Kingdom Atomic Energy Authority,06/01/2014,CAR HIRE,SUPPORT SERVICES,LEASEDRIVE VELO,5100298347,48.43
United Kingdom Atomic Energy Authority,United Kingdom Atomic Energy Authority,13/01/2014,CAR HIRE,FUSION,LEASEDRIVE VELO,5100298034,68.32
United Kingdom Atomic Energy Authority,United Kingdom Atomic Energy Authority,13/01/2014,CAR HIRE,FUSION,LEASEDRIVE VELO,5100298398,63.13
United Kingdom Atomic Energy Authority,United Kingdom Atomic Energy Authority,08/01/2014,CAR HIRE,FUSION,LEASEDRIVE VELO,5100298344,72.88
United Kingdom Atomic Energy Authority,United Kingdom Atomic Energy Authority,08/01/2014,CAR HIRE,FUSION,LEASEDRIVE VELO,5100298346,36.44
United Kingdom Atomic Energy Authority,United Kingdom Atomic Energy Authority,15/01/2014,CAR HIRE,FUSION,LEASEDRIVE VELO,5100297990,34.39
United Kingdom Atomic Energy Authority,United Kingdom Atomic Energy Authority,06/01/2014,CAR HIRE,FUSION,LEASEDRIVE VELO,5100298027,71.51
United Kingdom Atomic Energy Authority,United Kingdom Atomic Energy Authority,06/01/2014,CAR HIRE,FUSION,LEASEDRIVE VELO,5100298343,36.44
United Kingdom Atomic Energy Authority,United Kingdom Atomic Energy Authority,06/01/2014,CAR HIRE,FUSION,LEASEDRIVE VELO,5100298348,34.39
United Kingdom Atomic Energy Authority,United Kingdom Atomic Energy Authority,06/01/2014,CAR HIRE,FUSION,LEASEDRIVE VELO,5100298349,48.08
United Kingdom Atomic Energy Authority,United Kingdom Atomic Energy Authority,13/01/2014,CAR HIRE,FUSION,LEASEDRIVE VELO,5100298387,36.44
United Kingdom Atomic Energy Authority,United Kingdom Atomic Energy Authority,13/01/2014,CAR HIRE,FUSION,LEASEDRIVE VELO,5100298388,63.24
United Kingdom Atomic Energy Authority,United Kingdom Atomic Energy Authority,13/01/2014,CAR HIRE,FUSION,LEASEDRIVE VELO,5100298389,72.88
United Kingdom Atomic Energy Authority,United Kingdom Atomic Energy Authority,15/01/2014,CAR HIRE,FUSION,LEASEDRIVE VELO,5100298390,34.39
United Kingdom Atomic Energy Authority,United Kingdom Atomic Energy Authority,13/01/2014,CAR HIRE,FUSION,LEASEDRIVE VELO,5100298397,36.44
United Kingdom Atomic Energy Authority,United Kingdom Atomic Energy Authority,13/01/2014,CAR HIRE,FUSION,LEASEDRIVE VELO,5100298521,61.73
United Kingdom Atomic Energy Authority,United Kingdom Atomic Energy Authority,22/01/2014,CAR HIRE,FUSION,LEASEDRIVE VELO,5100297993,72.88
United Kingdom Atomic Energy Authority,United Kingdom Atomic Energy Authority,22/01/2014,CAR HIRE,FUSION,LEASEDRIVE VELO,5100295435,96.12
United Kingdom Atomic Energy Authority,United Kingdom Atomic Energy Authority,22/01/2014,CAR HIRE,FUSION,LEASEDRIVE VELO,5100298814,-24.03
United Kingdom Atomic Energy Authority,United Kingdom Atomic Energy Authority,13/01/2014,CAR HIRE,FUSION,LEASEDRIVE VELO,5100298386,166.88
United Kingdom Atomic Energy Authority,United Kingdom Atomic Energy Authority,13/01/2014,CAR HIRE,FUSION,LEASEDRIVE VELO,5100298519,24.09
United Kingdom Atomic Energy Authority,United Kingdom Atomic Energy Authority,13/01/2014,CAR HIRE,,LEASEDRIVE VELO,5100298345,31.62
United Kingdom Atomic Energy Authority,United Kingdom Atomic Energy Authority,13/01/2014,MATERIALS & SPARES,FUSION,Lee Dickens Ltd  ,5100298403,846
United Kingdom Atomic Energy Authority,United Kingdom Atomic Energy Authority,06/01/2014,IT EQUIPMENT NON CAPITAL,FUSION,LINDY ELECTRONICS LTD,5100298198,9.65
United Kingdom Atomic Energy Authority,United Kingdom Atomic Energy Authority,08/01/2014,PROFESSIONAL SERVICES,SUPPORT SERVICES,LOGICA CMG UK LTD,5100298256,2037.44
United Kingdom Atomic Energy Authority,United Kingdom Atomic Energy Authority,06/01/2014,BUILDING REPAIRS,SUPPORT SERVICES,LORNE STEWART PLC,5100297821,83.72
United Kingdom Atomic Energy Authority,United Kingdom Atomic Energy Authority,06/01/2014,BUILDING REPAIRS,FUSION,LORNE STEWART PLC,5100297814,739.96
United Kingdom Atomic Energy Authority,United Kingdom Atomic Energy Authority,06/01/2014,BUILDING REPAIRS,FUSION,LORNE STEWART PLC,5100297823,140.8
United Kingdom Atomic Energy Authority,United Kingdom Atomic Energy Authority,22/01/2014,BUILDING REPAIRS,FUSION,LORNE STEWART PLC,5100298791,9172.26
United Kingdom Atomic Energy Authority,United Kingdom Atomic Energy Authority,22/01/2014,BUILDING REPAIRS,FUSION,LORNE STEWART PLC,5100298785,1293.18
United Kingdom Atomic Energy Authority,United Kingdom Atomic Energy Authority,22/01/2014,BUILDING REPAIRS,FUSION,LORNE STEWART PLC,5100297801,15.14
United Kingdom Atomic Energy Authority,United Kingdom Atomic Energy Authority,22/01/2014,BUILDING REPAIRS,FUSION,LORNE STEWART PLC,5100297808,287.71
United Kingdom Atomic Energy Authority,United Kingdom Atomic Energy Authority,22/01/2014,BUILDING REPAIRS,FUSION,LORNE STEWART PLC,5100297828,726.43
United Kingdom Atomic Energy Authority,United Kingdom Atomic Energy Authority,22/01/2014,BUILDING REPAIRS,FUSION,LORNE STEWART PLC,5100298781,19606.1
United Kingdom Atomic Energy Authority,United Kingdom Atomic Energy Authority,22/01/2014,BUILDING REPAIRS,FUSION,LORNE STEWART PLC,5100298782,2416.73
United Kingdom Atomic Energy Authority,United Kingdom Atomic Energy Authority,22/01/2014,BUILDING REPAIRS,FUSION,LORNE STEWART PLC,5100298803,965.22
United Kingdom Atomic Energy Authority,United Kingdom Atomic Energy Authority,22/01/2014,BUILDING REPAIRS,FUSION,LORNE STEWART PLC,5100298807,26346.41
United Kingdom Atomic Energy Authority,United Kingdom Atomic Energy Authority,22/01/2014,BUILDING REPAIRS,FUSION,LORNE STEWART PLC,5100298808,9734.63
United Kingdom Atomic Energy Authority,United Kingdom Atomic Energy Authority,06/01/2014,BUILDING REPAIRS,FUSION,LORNE STEWART PLC,5100297812,8305.66
United Kingdom Atomic Energy Authority,United Kingdom Atomic Energy Authority,06/01/2014,BUILDING REPAIRS,FUSION,LORNE STEWART PLC,5100297813,4526.69
United Kingdom Atomic Energy Authority,United Kingdom Atomic Energy Authority,06/01/2014,BUILDING REPAIRS,FUSION,LORNE STEWART PLC,5100297819,621.24
United Kingdom Atomic Energy Authority,United Kingdom Atomic Energy Authority,06/01/2014,BUILDING REPAIRS,FUSION,LORNE STEWART PLC,5100297820,130.45
United Kingdom Atomic Energy Authority,United Kingdom Atomic Energy Authority,06/01/2014,BUILDING REPAIRS,FUSION,LORNE STEWART PLC,5100297822,1226.9
United Kingdom Atomic Energy Authority,United Kingdom Atomic Energy Authority,22/01/2014,BUILDING REPAIRS,FUSION,LORNE STEWART PLC,5100298787,9066.41
United Kingdom Atomic Energy Authority,United Kingdom Atomic Energy Authority,22/01/2014,BUILDING REPAIRS,FUSION,LORNE STEWART PLC,5100298788,4207.75
United Kingdom Atomic Energy Authority,United Kingdom Atomic Energy Authority,22/01/2014,BUILDING REPAIRS,FUSION,LORNE STEWART PLC,5100298789,2128.35
United Kingdom Atomic Energy Authority,United Kingdom Atomic Energy Authority,06/01/2014,BUILDING REPAIRS,FUSION,LORNE STEWART PLC,5100296280,2930.58
United Kingdom Atomic Energy Authority,United Kingdom Atomic Energy Authority,22/01/2014,BUILDING REPAIRS,PROPERTY,LORNE STEWART PLC,5100298779,13301.58
United Kingdom Atomic Energy Authority,United Kingdom Atomic Energy Authority,22/01/2014,BUILDING REPAIRS,PROPERTY,LORNE STEWART PLC,5100298783,690.49
United Kingdom Atomic Energy Authority,United Kingdom Atomic Energy Authority,22/01/2014,BUILDING REPAIRS,PROPERTY,LORNE STEWART PLC,5100298797,37.82
United Kingdom Atomic Energy Authority,United Kingdom Atomic Energy Authority,22/01/2014,BUILDING REPAIRS,PROPERTY,LORNE STEWART PLC,5100298799,18934.22
United Kingdom Atomic Energy Authority,United Kingdom Atomic Energy Authority,22/01/2014,BUILDING REPAIRS,PROPERTY,LORNE STEWART PLC,5100298780,3748.52
United Kingdom Atomic Energy Authority,United Kingdom Atomic Energy Authority,22/01/2014,BUILDING REPAIRS,PROPERTY,LORNE STEWART PLC,5100298784,345.24
United Kingdom Atomic Energy Authority,United Kingdom Atomic Energy Authority,22/01/2014,BUILDING REPAIRS,PROPERTY,LORNE STEWART PLC,5100298786,3321.13
United Kingdom Atomic Energy Authority,United Kingdom Atomic Energy Authority,22/01/2014,BUILDING REPAIRS,PROPERTY,LORNE STEWART PLC,5100298790,1410.2
United Kingdom Atomic Energy Authority,United Kingdom Atomic Energy Authority,22/01/2014,BUILDING REPAIRS,PROPERTY,LORNE STEWART PLC,5100298795,373.67
United Kingdom Atomic Energy Authority,United Kingdom Atomic Energy Authority,22/01/2014,BUILDING REPAIRS,PROPERTY,LORNE STEWART PLC,5100298796,1390.8
United Kingdom Atomic Energy Authority,United Kingdom Atomic Energy Authority,06/01/2014,BUILDING REPAIRS,PROPERTY,LORNE STEWART PLC,5100297817,645.31
United Kingdom Atomic Energy Authority,United Kingdom Atomic Energy Authority,06/01/2014,BUILDING REPAIRS,PROPERTY,LORNE STEWART PLC,5100297818,814.03
United Kingdom Atomic Energy Authority,United Kingdom Atomic Energy Authority,22/01/2014,BUILDING REPAIRS,PROPERTY,LORNE STEWART PLC,5100298793,1347.76
United Kingdom Atomic Energy Authority,United Kingdom Atomic Energy Authority,22/01/2014,BUILDING REPAIRS,PROPERTY,LORNE STEWART PLC,5100298794,1956.68
United Kingdom Atomic Energy Authority,United Kingdom Atomic Energy Authority,06/01/2014,BUILDING REPAIRS,PROPERTY,LORNE STEWART PLC,5100297816,370.36
United Kingdom Atomic Energy Authority,United Kingdom Atomic Energy Authority,06/01/2014,BUILDING REPAIRS,SUPPORT SERVICES,LORNE STEWART PLC,5100297815,2808.22
United Kingdom Atomic Energy Authority,United Kingdom Atomic Energy Authority,20/01/2014,PLANT & EQUIPMENT,FUSION,LOT ORIEL LTD,5100297706,1359
United Kingdom Atomic Energy Authority,United Kingdom Atomic Energy Authority,08/01/2014,PLANT & EQUIPMENT,FUSION,LOT ORIEL LTD,5100298307,9771
United Kingdom Atomic Energy Authority,United Kingdom Atomic Energy Authority,20/01/2014,PLANT & EQUIPMENT,FUSION,LSW SUPPLIES,5100298638,232.45
United Kingdom Atomic Energy Authority,United Kingdom Atomic Energy Authority,20/01/2014,PLANT SPARES,FUSION,Lymington Precision Engineers Co Ltd,5100298643,250
United Kingdom Atomic Energy Authority,United Kingdom Atomic Energy Authority,06/01/2014,STATIONERY,FUSION,LYRECO UK LIMITED,5100298278,266.82
United Kingdom Atomic Energy Authority,United Kingdom Atomic Energy Authority,20/01/2014,STATIONERY,FUSION,LYRECO UK LIMITED,5100298749,367.82
United Kingdom Atomic Energy Authority,United Kingdom Atomic Energy Authority,20/01/2014,STATIONERY,FUSION,LYRECO UK LIMITED,5100298750,85.52
United Kingdom Atomic Energy Authority,United Kingdom Atomic Energy Authority,06/01/2014,IT EQUIPMENT NON CAPITAL,FUSION,MAAINTECH,5100298252,4065
United Kingdom Atomic Energy Authority,United Kingdom Atomic Energy Authority,06/01/2014,IT EQUIPMENT NON CAPITAL,FUSION,MAAINTECH,5100298249,6277
United Kingdom Atomic Energy Authority,United Kingdom Atomic Energy Authority,06/01/2014,PROFESSIONAL SERVICES,FUSION,MACHINING TECHNOLOGY (MACH-TECH),5100297379,6551.5
United Kingdom Atomic Energy Authority,United Kingdom Atomic Energy Authority,06/01/2014,PROFESSIONAL SERVICES,FUSION,MACHINING TECHNOLOGY (MACH-TECH),5100297429,4299.5
United Kingdom Atomic Energy Authority,United Kingdom Atomic Energy Authority,13/01/2014,PROFESSIONAL SERVICES,FUSION,MACHINING TECHNOLOGY (MACH-TECH),5100298396,15625
United Kingdom Atomic Energy Authority,United Kingdom Atomic Energy Authority,06/01/2014,PROFESSIONAL SERVICES,FUSION,MATERIAL MEASUREMENTS LTD.,5100298268,212.25
United Kingdom Atomic Energy Authority,United Kingdom Atomic Energy Authority,06/01/2014,PROFESSIONAL SERVICES,FUSION,MATERIAL MEASUREMENTS LTD.,5100298269,125.25
United Kingdom Atomic Energy Authority,United Kingdom Atomic Energy Authority,06/01/2014,PROFESSIONAL SERVICES,FUSION,MATERIAL MEASUREMENTS LTD.,5100298270,114.8
United Kingdom Atomic Energy Authority,United Kingdom Atomic Energy Authority,06/01/2014,PROFESSIONAL SERVICES,FUSION,MATERIAL MEASUREMENTS LTD.,5100298271,114.8
United Kingdom Atomic Energy Authority,United Kingdom Atomic Energy Authority,13/01/2014,PROFESSIONAL SERVICES,PROPERTY,MCBAINS COOPER,5100298263,128.16
United Kingdom Atomic Energy Authority,United Kingdom Atomic Energy Authority,06/01/2014,PLANT SPARES,FUSION,MERSEN UK PORTSLADE LTD,5100298255,12682.33
United Kingdom Atomic Energy Authority,United Kingdom Atomic Energy Authority,06/01/2014,MATERIALS & SPARES,FUSION,METALFAST (A DIVISION OF,5100298057,204.8
United Kingdom Atomic Energy Authority,United Kingdom Atomic Energy Authority,13/01/2014,MATERIALS & SPARES,FUSION,METALFAST (A DIVISION OF,5100298580,19.5
United Kingdom Atomic Energy Authority,United Kingdom Atomic Energy Authority,20/01/2014,MATERIALS & SPARES,FUSION,METALFAST (A DIVISION OF,5100298777,1504.51
United Kingdom Atomic Energy Authority,United Kingdom Atomic Energy Authority,08/01/2014,MATERIALS & SPARES,FUSION,METALFAST (A DIVISION OF,5100298247,162.7
United Kingdom Atomic Energy Authority,United Kingdom Atomic Energy Authority,06/01/2014,PROFESSIONAL SERVICES,FUSION,METRO ENGINEERING AND PLATING WORKS,5100298054,100
United Kingdom Atomic Energy Authority,United Kingdom Atomic Energy Authority,13/01/2014,PROFESSIONAL SERVICES,FUSION,METRO ENGINEERING AND PLATING WORKS,5100298490,200
United Kingdom Atomic Energy Authority,United Kingdom Atomic Energy Authority,13/01/2014,PROFESSIONAL SERVICES,FUSION,METRO ENGINEERING AND PLATING WORKS,5100298491,100
United Kingdom Atomic Energy Authority,United Kingdom Atomic Energy Authority,06/01/2014,MATERIALS & SPARES,FUSION,METSPIN LTD,5100297402,315.5
United Kingdom Atomic Energy Authority,United Kingdom Atomic Energy Authority,06/01/2014,MATERIALS & SPARES,FUSION,METSPIN LTD,5100298340,1285.5
United Kingdom Atomic Energy Authority,United Kingdom Atomic Energy Authority,13/01/2014,PLANT & EQUIPMENT,FUSION,MF HYDRAULICS LTD,5100298540,134.58
United Kingdom Atomic Energy Authority,United Kingdom Atomic Energy Authority,21/01/2014,OTHER EXTERNAL COSTS,FUSION,Micrometric Ltd,1900059356,2769.06
United Kingdom Atomic Energy Authority,United Kingdom Atomic Energy Authority,20/01/2014,PLANT SPARES,FUSION,Microwave Amplifiers Ltd,5100298770,2135
United Kingdom Atomic Energy Authority,United Kingdom Atomic Energy Authority,20/01/2014,PLANT & EQUIPMENT,FUSION,MILLHILL TOOLS LTD,5100298707,54.67
United Kingdom Atomic Energy Authority,United Kingdom Atomic Energy Authority,20/01/2014,PLANT & EQUIPMENT,FUSION,MILLHILL TOOLS LTD,5100298706,60.48
United Kingdom Atomic Energy Authority,United Kingdom Atomic Energy Authority,06/01/2014,PROFESSIONAL SERVICES,FUSION,MKS INSTRUMENT UK LIMITED,5100298259,760
United Kingdom Atomic Energy Authority,United Kingdom Atomic Energy Authority,13/01/2014,HIRED STAFF,FUSION,MORSON INTERNATIONAL,5100298400,317386.38
United Kingdom Atomic Energy Authority,United Kingdom Atomic Energy Authority,20/01/2014,MATERIALS & SPARES,FUSION,MOUSER ELECTRONICS,5100298604,65.04
United Kingdom Atomic Energy Authority,United Kingdom Atomic Energy Authority,20/01/2014,MATERIALS & SPARES,FUSION,MOUSER ELECTRONICS,5100298804,92.88
United Kingdom Atomic Energy Authority,United Kingdom Atomic Energy Authority,20/01/2014,MATERIALS & SPARES,FUSION,MOUSER ELECTRONICS,5100298880,-92.88
United Kingdom Atomic Energy Authority,United Kingdom Atomic Energy Authority,06/01/2014,STATIONERY,FUSION,MPS SERVICES LTD,5100298280,139
United Kingdom Atomic Energy Authority,United Kingdom Atomic Energy Authority,06/01/2014,ELECTRICITY,FUSION,NATIONAL GRID TRANSCO,5100298262,3298.73
United Kingdom Atomic Energy Authority,United Kingdom Atomic Energy Authority,07/01/2014,CONFERENCES/MEETINGS,FUSION,National Nuclear Laboratory,1900059267,37.5
United Kingdom Atomic Energy Authority,United Kingdom Atomic Energy Authority,06/01/2014,SAFETY STORES,FUSION,NETWORK SIGNS,5100298200,117
United Kingdom Atomic Energy Authority,United Kingdom Atomic Energy Authority,06/01/2014,SAFETY STORES,FUSION,NETWORK SIGNS,5100298202,320
United Kingdom Atomic Energy Authority,United Kingdom Atomic Energy Authority,13/01/2014,PLANT & EQUIPMENT,FUSION,NEW PIG LTD,5100298555,2345.92
United Kingdom Atomic Energy Authority,United Kingdom Atomic Energy Authority,13/01/2014,MATERIALS & SPARES,FUSION,NEWBURY ELECTRONICS,5100298566,254.8
United Kingdom Atomic Energy Authority,United Kingdom Atomic Energy Authority,20/01/2014,MATERIALS & SPARES,FUSION,NEWBURY ELECTRONICS,5100298850,88.56
United Kingdom Atomic Energy Authority,United Kingdom Atomic Energy Authority,06/01/2014,PLANT & EQUIPMENT,FUSION,NEWPORT SPECTRA-PHYSICS LTD,5100297095,251
United Kingdom Atomic Energy Authority,United Kingdom Atomic Energy Authority,06/01/2014,PLANT & EQUIPMENT,FUSION,NEWPORT SPECTRA-PHYSICS LTD,5100297553,401
United Kingdom Atomic Energy Authority,United Kingdom Atomic Energy Authority,15/01/2014,PLANT & EQUIPMENT,FUSION,NEWPORT SPECTRA-PHYSICS LTD,5100296320,27
United Kingdom Atomic Energy Authority,United Kingdom Atomic Energy Authority,22/01/2014,MATERIALS & SPARES,FUSION,Nexans Deutschland GmbH,5100297831,33891.14
United Kingdom Atomic Energy Authority,United Kingdom Atomic Energy Authority,17/01/2014,MATERIALS & SPARES,FUSION,Nexans Deutschland GmbH,5100298842,-33480.14
United Kingdom Atomic Energy Authority,United Kingdom Atomic Energy Authority,17/01/2014,MATERIALS & SPARES,FUSION,Nexans Deutschland GmbH,5100298843,33480.14
United Kingdom Atomic Energy Authority,United Kingdom Atomic Energy Authority,21/01/2014,MATERIALS & SPARES,FUSION,Nexans Deutschland GmbH,5100299000,-33541.46
United Kingdom Atomic Energy Authority,United Kingdom Atomic Energy Authority,21/01/2014,MATERIALS & SPARES,FUSION,Nexans Deutschland GmbH,5100299001,33541.46
United Kingdom Atomic Energy Authority,United Kingdom Atomic Energy Authority,16/01/2014,OTHER EXTERNAL COSTS,FUSION,Nicotra Gebhardt Ltd,1900059314,938.4
United Kingdom Atomic Energy Authority,United Kingdom Atomic Energy Authority,15/01/2014,PROFESSIONAL SERVICES,PROPERTY,NOVUS ENVIRONMENTAL,5100298048,-110
United Kingdom Atomic Energy Authority,United Kingdom Atomic Energy Authority,15/01/2014,PROFESSIONAL SERVICES,PROPERTY,NOVUS ENVIRONMENTAL,5100298515,152.5
United Kingdom Atomic Energy Authority,United Kingdom Atomic Energy Authority,22/01/2014,PROFESSIONAL SERVICES,PROPERTY,NOVUS ENVIRONMENTAL,5100299019,110
United Kingdom Atomic Energy Authority,United Kingdom Atomic Energy Authority,22/01/2014,PROFESSIONAL SERVICES,PROPERTY,NOVUS ENVIRONMENTAL,5100299020,-110
United Kingdom Atomic Energy Authority,United Kingdom Atomic Energy Authority,22/01/2014,PROFESSIONAL SERVICES,PROPERTY,NOVUS ENVIRONMENTAL,5100299024,110
United Kingdom Atomic Energy Authority,United Kingdom Atomic Energy Authority,22/01/2014,PROFESSIONAL SERVICES,PROPERTY,NOVUS ENVIRONMENTAL,5100299026,-110
United Kingdom Atomic Energy Authority,United Kingdom Atomic Energy Authority,06/01/2014,HEALTH PHYSICS,FUSION,NUVIA LIMITED,5100298179,21958.2
United Kingdom Atomic Energy Authority,United Kingdom Atomic Energy Authority,22/01/2014,PROFESSIONAL SERVICES,FUSION,OHES ENNVIRONMENTAL LTD,5100298177,3479
United Kingdom Atomic Energy Authority,United Kingdom Atomic Energy Authority,06/01/2014,PLANT SPARES,FUSION,Oldham Engineering,5100298311,1962
United Kingdom Atomic Energy Authority,United Kingdom Atomic Energy Authority,13/01/2014,IT EQUIPMENT NON CAPITAL,FUSION,ORACLE,5100298332,3099.65
United Kingdom Atomic Energy Authority,United Kingdom Atomic Energy Authority,15/01/2014,MATERIALS & SPARES,FUSION,OUTOKUMPU STAINLESS,5100298037,34252.75
United Kingdom Atomic Energy Authority,United Kingdom Atomic Energy Authority,20/01/2014,MATERIALS & SPARES,FUSION,OXFORD BOLTS & BEARINGS,5100298557,627.99
United Kingdom Atomic Energy Authority,United Kingdom Atomic Energy Authority,13/01/2014,MATERIALS & SPARES,FUSION,OXFORD BOLTS & BEARINGS,5100298406,63
United Kingdom Atomic Energy Authority,United Kingdom Atomic Energy Authority,20/01/2014,MATERIALS & SPARES,FUSION,OXFORD BOLTS & BEARINGS,5100298635,193.81
United Kingdom Atomic Energy Authority,United Kingdom Atomic Energy Authority,20/01/2014,MATERIALS & SPARES,FUSION,OXFORD BOLTS & BEARINGS,5100298644,526.7
United Kingdom Atomic Energy Authority,United Kingdom Atomic Energy Authority,13/01/2014,MATERIALS & SPARES,FUSION,OXFORD BOLTS & BEARINGS,5100298377,115.96
United Kingdom Atomic Energy Authority,United Kingdom Atomic Energy Authority,06/01/2014,MATERIALS & SPARES,FUSION,OXFORD BOLTS & BEARINGS,5100298191,113
United Kingdom Atomic Energy Authority,United Kingdom Atomic Energy Authority,20/01/2014,MATERIALS & SPARES,FUSION,OXFORD BOLTS & BEARINGS,5100298637,365.15
United Kingdom Atomic Energy Authority,United Kingdom Atomic Energy Authority,15/01/2014,MATERIALS & SPARES,FUSION,OXFORD BOLTS & BEARINGS,5100298556,765.15
United Kingdom Atomic Energy Authority,United Kingdom Atomic Energy Authority,13/01/2014,MATERIALS & SPARES,FUSION,OXFORD BOLTS & BEARINGS,5100298558,43.91
United Kingdom Atomic Energy Authority,United Kingdom Atomic Energy Authority,08/01/2014,MATERIALS & SPARES,FUSION,OXFORD ENGINEERING LTD,5100298254,16180
United Kingdom Atomic Energy Authority,United Kingdom Atomic Energy Authority,20/01/2014,OTHER EXTERNAL COSTS,FUSION,Parity Medical,1900059347,1466.4
United Kingdom Atomic Energy Authority,United Kingdom Atomic Energy Authority,08/01/2014,CONFERENCES/MEETINGS,FUSION,Pearces Private Hire,1900059273,400
United Kingdom Atomic Energy Authority,United Kingdom Atomic Energy Authority,13/01/2014,MATERIALS & SPARES,FUSION,PEI-GENISIS UK LTD,5100298401,1768.95
United Kingdom Atomic Energy Authority,United Kingdom Atomic Energy Authority,20/01/2014,HIRED STAFF,FUSION,PELICAN SOFTWARE LTD,5100298000,5994.37
United Kingdom Atomic Energy Authority,United Kingdom Atomic Energy Authority,08/01/2014,PROFESSIONAL SERVICES,FUSION,PERKIN ELMER LAS UK LTD,5100298188,50
United Kingdom Atomic Energy Authority,United Kingdom Atomic Energy Authority,13/01/2014,PROFESSIONAL SERVICES,FUSION,PERKIN ELMER LAS UK LTD,5100298468,485.16
United Kingdom Atomic Energy Authority,United Kingdom Atomic Energy Authority,20/01/2014,PROFESSIONAL SERVICES,FUSION,PERKIN ELMER LAS UK LTD,5100298569,2844
United Kingdom Atomic Energy Authority,United Kingdom Atomic Energy Authority,15/01/2014,TRAINING COURSE FEES,SUPPORT SERVICES,PETER METCALF MANAGEMENT COACH,5100298404,1100
United Kingdom Atomic Energy Authority,United Kingdom Atomic Energy Authority,20/01/2014,PLANT & EQUIPMENT,FUSION,PFEIFFER VACUUM UK,5100298812,344.86
United Kingdom Atomic Energy Authority,United Kingdom Atomic Energy Authority,20/01/2014,PLANT & EQUIPMENT,FUSION,PFEIFFER VACUUM UK,5100298703,118.92
United Kingdom Atomic Energy Authority,United Kingdom Atomic Energy Authority,20/01/2014,PLANT & EQUIPMENT,FUSION,PFEIFFER VACUUM UK,5100298813,3747.06
United Kingdom Atomic Energy Authority,United Kingdom Atomic Energy Authority,06/01/2014,SOFTWARE,FUSION,PHOENIX SOFTWARE LTD,5100298297,322.56
United Kingdom Atomic Energy Authority,United Kingdom Atomic Energy Authority,06/01/2014,SOFTWARE,FUSION,PHOENIX SOFTWARE LTD,5100298330,4397.88
United Kingdom Atomic Energy Authority,United Kingdom Atomic Energy Authority,06/01/2014,PLANT & EQUIPMENT,FUSION,PHS GROUP PLC,5100297683,75
United Kingdom Atomic Energy Authority,United Kingdom Atomic Energy Authority,08/01/2014,PLANT & EQUIPMENT,FUSION,PHS GROUP PLC,5100298277,70.55
United Kingdom Atomic Energy Authority,United Kingdom Atomic Energy Authority,06/01/2014,DESIGN & CONSTRUCTION,FUSION,PIPAWAY ENGINEERING LTD,5100298248,495
United Kingdom Atomic Energy Authority,United Kingdom Atomic Energy Authority,06/01/2014,DESIGN & CONSTRUCTION,FUSION,PIPAWAY ENGINEERING LTD,5100298250,120
United Kingdom Atomic Energy Authority,United Kingdom Atomic Energy Authority,06/01/2014,DESIGN & CONSTRUCTION,FUSION,PIPAWAY ENGINEERING LTD,5100298251,319.98
United Kingdom Atomic Energy Authority,United Kingdom Atomic Energy Authority,06/01/2014,DESIGN & CONSTRUCTION,FUSION,PIPAWAY ENGINEERING LTD,5100298253,3790
United Kingdom Atomic Energy Authority,United Kingdom Atomic Energy Authority,08/01/2014,MATERIALS & SPARES,FUSION,PIRTEK OXFORD,5100297836,203.77
United Kingdom Atomic Energy Authority,United Kingdom Atomic Energy Authority,20/01/2014,PLANT SPARES,FUSION,PLANSEE METALS LTD,5100298815,2619.9
United Kingdom Atomic Energy Authority,United Kingdom Atomic Energy Authority,13/01/2014,MATERIALS & SPARES,FUSION,PMD (UK) LTD,5100298528,41.9
United Kingdom Atomic Energy Authority,United Kingdom Atomic Energy Authority,08/01/2014,F&F,FUSION,POSTURITE UK LTD,5100298341,227.44
United Kingdom Atomic Energy Authority,United Kingdom Atomic Energy Authority,06/01/2014,PLANT & EQUIPMENT,FUSION,POWELL & CO,5100298304,1303.9
United Kingdom Atomic Energy Authority,United Kingdom Atomic Energy Authority,20/01/2014,PLANT & EQUIPMENT,FUSION,POWELL & CO,5100298870,404.6
United Kingdom Atomic Energy Authority,United Kingdom Atomic Energy Authority,08/01/2014,PLANT & EQUIPMENT,FUSION,POWELL & CO,5100298207,136
United Kingdom Atomic Energy Authority,United Kingdom Atomic Energy Authority,06/01/2014,PLANT & EQUIPMENT,FUSION,PRECISION TOOLS,5100298258,71.2
United Kingdom Atomic Energy Authority,United Kingdom Atomic Energy Authority,13/01/2014,STATIONERY,FUSION,PREMIER PAPER GROUP LTD,5100298434,285.14
United Kingdom Atomic Energy Authority,United Kingdom Atomic Energy Authority,06/01/2014,CONSUMABLES,FUSION,PRITCHARD SHEET METAL,5100298209,110.8
United Kingdom Atomic Energy Authority,United Kingdom Atomic Energy Authority,15/01/2014,CONSUMABLES,FUSION,PRITCHARD SHEET METAL,5100298554,326
United Kingdom Atomic Energy Authority,United Kingdom Atomic Energy Authority,08/01/2014,IT EQUIPMENT NON CAPITAL,FUSION,Probrand Limited,5100298065,118.88
United Kingdom Atomic Energy Authority,United Kingdom Atomic Energy Authority,08/01/2014,IT EQUIPMENT NON CAPITAL,FUSION,Probrand Limited,5100298319,356.64
United Kingdom Atomic Energy Authority,United Kingdom Atomic Energy Authority,13/01/2014,IT EQUIPMENT NON CAPITAL,FUSION,Probrand Limited,5100298570,903.36
United Kingdom Atomic Energy Authority,United Kingdom Atomic Energy Authority,20/01/2014,PLANT & EQUIPMENT,FUSION,PULSE POWER AND MEASUREMENT LTD,5100298574,5091
United Kingdom Atomic Energy Authority,United Kingdom Atomic Energy Authority,08/01/2014,SOFTWARE,FUSION,Q ASSOCIATES LTD,5100298301,1703.16
United Kingdom Atomic Energy Authority,United Kingdom Atomic Energy Authority,22/01/2014,UNIVERSITY PLACEMENT,FUSION,QUEEN MARY UNIVERSITY OF LONDON,5100298664,1645
United Kingdom Atomic Energy Authority,United Kingdom Atomic Energy Authority,20/01/2014,CONSUMABLES,FUSION,REAGENT,5100298509,106.39
United Kingdom Atomic Energy Authority,United Kingdom Atomic Energy Authority,20/01/2014,PLANT & EQUIPMENT,FUSION,REECE SAFETY PRODUCTS LTD,5100298702,895
United Kingdom Atomic Energy Authority,United Kingdom Atomic Energy Authority,06/01/2014,SECURITY & EMERGENCY,PROPERTY,RELIANCE SECURITY GROUP PLC,5100298275,93476.67
United Kingdom Atomic Energy Authority,United Kingdom Atomic Energy Authority,06/01/2014,SECURITY & EMERGENCY,PROPERTY,RELIANCE SECURITY GROUP PLC,5100298276,-1500
United Kingdom Atomic Energy Authority,United Kingdom Atomic Energy Authority,06/01/2014,SECURITY & EMERGENCY,PROPERTY,RELIANCE SECURITY GROUP PLC,5100298361,93476.67
United Kingdom Atomic Energy Authority,United Kingdom Atomic Energy Authority,20/01/2014,SECURITY & EMERGENCY,PROPERTY,RELIANCE SECURITY GROUP PLC,5100298649,4654.89
United Kingdom Atomic Energy Authority,United Kingdom Atomic Energy Authority,06/01/2014,CONSUMABLES,FUSION,Repropoint Ltd,5100298354,2102.86
United Kingdom Atomic Energy Authority,United Kingdom Atomic Energy Authority,06/01/2014,CONSUMABLES,FUSION,Repropoint Ltd,5100298355,347.5
United Kingdom Atomic Energy Authority,United Kingdom Atomic Energy Authority,06/01/2014,CONSUMABLES,FUSION,Repropoint Ltd,5100298274,106.86
United Kingdom Atomic Energy Authority,United Kingdom Atomic Energy Authority,15/01/2014,PROFESSIONAL SERVICES,PROPERTY,RIDGE AND PARTNERS L,5100294564,5779
United Kingdom Atomic Energy Authority,United Kingdom Atomic Energy Authority,15/01/2014,PROFESSIONAL SERVICES,PROPERTY,RIDGE AND PARTNERS L,5100298730,-5779
United Kingdom Atomic Energy Authority,United Kingdom Atomic Energy Authority,20/01/2014,PROFESSIONAL SERVICES,PROPERTY,RIDGE AND PARTNERS L,5100298731,4785
United Kingdom Atomic Energy Authority,United Kingdom Atomic Energy Authority,08/01/2014,MATERIALS & SPARES,FUSION,RITTAL,5100298342,48.78
United Kingdom Atomic Energy Authority,United Kingdom Atomic Energy Authority,13/01/2014,MATERIALS & SPARES,FUSION,RITTAL,5100298553,152.56
United Kingdom Atomic Energy Authority,United Kingdom Atomic Energy Authority,06/01/2014,SOFTWARE,FUSION,RIVO SOFTWARE LIMITED,5100298172,13068.75
United Kingdom Atomic Energy Authority,United Kingdom Atomic Energy Authority,06/01/2014,MATERIALS & SPARES,SUPPORT SERVICES,RS COMPONENTS LTD,5100298228,30.58
United Kingdom Atomic Energy Authority,United Kingdom Atomic Energy Authority,06/01/2014,MATERIALS & SPARES,SUPPORT SERVICES,RS COMPONENTS LTD,5100298359,16.31
United Kingdom Atomic Energy Authority,United Kingdom Atomic Energy Authority,13/01/2014,MATERIALS & SPARES,SUPPORT SERVICES,RS COMPONENTS LTD,5100298418,50.97
United Kingdom Atomic Energy Authority,United Kingdom Atomic Energy Authority,13/01/2014,MATERIALS & SPARES,SUPPORT SERVICES,RS COMPONENTS LTD,5100298419,65.24
United Kingdom Atomic Energy Authority,United Kingdom Atomic Energy Authority,13/01/2014,MATERIALS & SPARES,FUSION,RS COMPONENTS LTD,5100298352,9.13
United Kingdom Atomic Energy Authority,United Kingdom Atomic Energy Authority,06/01/2014,MATERIALS & SPARES,FUSION,RS COMPONENTS LTD,5100298211,317.7
United Kingdom Atomic Energy Authority,United Kingdom Atomic Energy Authority,06/01/2014,MATERIALS & SPARES,FUSION,RS COMPONENTS LTD,5100298217,202.12
United Kingdom Atomic Energy Authority,United Kingdom Atomic Energy Authority,13/01/2014,MATERIALS & SPARES,FUSION,RS COMPONENTS LTD,5100298421,324
United Kingdom Atomic Energy Authority,United Kingdom Atomic Energy Authority,20/01/2014,MATERIALS & SPARES,FUSION,RS COMPONENTS LTD,5100298612,87.15
United Kingdom Atomic Energy Authority,United Kingdom Atomic Energy Authority,20/01/2014,MATERIALS & SPARES,FUSION,RS COMPONENTS LTD,5100298614,146.37
United Kingdom Atomic Energy Authority,United Kingdom Atomic Energy Authority,20/01/2014,MATERIALS & SPARES,FUSION,RS COMPONENTS LTD,5100298877,37.27
United Kingdom Atomic Energy Authority,United Kingdom Atomic Energy Authority,06/01/2014,MATERIALS & SPARES,FUSION,RS COMPONENTS LTD,5100298219,12.61
United Kingdom Atomic Energy Authority,United Kingdom Atomic Energy Authority,13/01/2014,MATERIALS & SPARES,FUSION,RS COMPONENTS LTD,5100298409,336.95
United Kingdom Atomic Energy Authority,United Kingdom Atomic Energy Authority,13/01/2014,MATERIALS & SPARES,FUSION,RS COMPONENTS LTD,5100298410,59.73
United Kingdom Atomic Energy Authority,United Kingdom Atomic Energy Authority,13/01/2014,MATERIALS & SPARES,FUSION,RS COMPONENTS LTD,5100298420,227.82
United Kingdom Atomic Energy Authority,United Kingdom Atomic Energy Authority,13/01/2014,MATERIALS & SPARES,FUSION,RS COMPONENTS LTD,5100298422,171.19
United Kingdom Atomic Energy Authority,United Kingdom Atomic Energy Authority,20/01/2014,MATERIALS & SPARES,FUSION,RS COMPONENTS LTD,5100298607,223.12
United Kingdom Atomic Energy Authority,United Kingdom Atomic Energy Authority,20/01/2014,MATERIALS & SPARES,FUSION,RS COMPONENTS LTD,5100298610,19.03
United Kingdom Atomic Energy Authority,United Kingdom Atomic Energy Authority,20/01/2014,MATERIALS & SPARES,FUSION,RS COMPONENTS LTD,5100298619,186.18
United Kingdom Atomic Energy Authority,United Kingdom Atomic Energy Authority,20/01/2014,MATERIALS & SPARES,FUSION,RS COMPONENTS LTD,5100298622,80.5
United Kingdom Atomic Energy Authority,United Kingdom Atomic Energy Authority,20/01/2014,MATERIALS & SPARES,FUSION,RS COMPONENTS LTD,5100298858,44.66
United Kingdom Atomic Energy Authority,United Kingdom Atomic Energy Authority,06/01/2014,MATERIALS & SPARES,FUSION,RS COMPONENTS LTD,5100298221,326.81
United Kingdom Atomic Energy Authority,United Kingdom Atomic Energy Authority,20/01/2014,MATERIALS & SPARES,FUSION,RS COMPONENTS LTD,5100298618,164.94
United Kingdom Atomic Energy Authority,United Kingdom Atomic Energy Authority,20/01/2014,MATERIALS & SPARES,FUSION,RS COMPONENTS LTD,5100298631,121.84
United Kingdom Atomic Energy Authority,United Kingdom Atomic Energy Authority,20/01/2014,MATERIALS & SPARES,FUSION,RS COMPONENTS LTD,5100298859,35.87
United Kingdom Atomic Energy Authority,United Kingdom Atomic Energy Authority,20/01/2014,MATERIALS & SPARES,FUSION,RS COMPONENTS LTD,5100298620,79.15
United Kingdom Atomic Energy Authority,United Kingdom Atomic Energy Authority,08/01/2014,MATERIALS & SPARES,FUSION,RS COMPONENTS LTD,5100298351,209.87
United Kingdom Atomic Energy Authority,United Kingdom Atomic Energy Authority,06/01/2014,MATERIALS & SPARES,FUSION,RS COMPONENTS LTD,5100298360,102.37
United Kingdom Atomic Energy Authority,United Kingdom Atomic Energy Authority,13/01/2014,MATERIALS & SPARES,FUSION,RS COMPONENTS LTD,5100298430,181.78
United Kingdom Atomic Energy Authority,United Kingdom Atomic Energy Authority,20/01/2014,MATERIALS & SPARES,FUSION,RS COMPONENTS LTD,5100298861,199.24
United Kingdom Atomic Energy Authority,United Kingdom Atomic Energy Authority,20/01/2014,MATERIALS & SPARES,FUSION,RS COMPONENTS LTD,5100298862,257.99
United Kingdom Atomic Energy Authority,United Kingdom Atomic Energy Authority,08/01/2014,MATERIALS & SPARES,FUSION,RS COMPONENTS LTD,5100298350,524.12
United Kingdom Atomic Energy Authority,United Kingdom Atomic Energy Authority,20/01/2014,MATERIALS & SPARES,FUSION,RS COMPONENTS LTD,5100298857,106.9
United Kingdom Atomic Energy Authority,United Kingdom Atomic Energy Authority,20/01/2014,MATERIALS & SPARES,FUSION,RS COMPONENTS LTD,5100295793,154.1
United Kingdom Atomic Energy Authority,United Kingdom Atomic Energy Authority,20/01/2014,MATERIALS & SPARES,FUSION,RS COMPONENTS LTD,5100298617,105.65
United Kingdom Atomic Energy Authority,United Kingdom Atomic Energy Authority,22/01/2014,MATERIALS & SPARES,FUSION,RS COMPONENTS LTD,5100298853,54.97
United Kingdom Atomic Energy Authority,United Kingdom Atomic Energy Authority,20/01/2014,MATERIALS & SPARES,FUSION,RS COMPONENTS LTD,5100298855,188.99
United Kingdom Atomic Energy Authority,United Kingdom Atomic Energy Authority,08/01/2014,MATERIALS & SPARES,FUSION,RS COMPONENTS LTD,5100292769,74.95
United Kingdom Atomic Energy Authority,United Kingdom Atomic Energy Authority,06/01/2014,MATERIALS & SPARES,FUSION,RS COMPONENTS LTD,5100298364,73.25
United Kingdom Atomic Energy Authority,United Kingdom Atomic Energy Authority,13/01/2014,MATERIALS & SPARES,FUSION,RS COMPONENTS LTD,5100298370,106.04
United Kingdom Atomic Energy Authority,United Kingdom Atomic Energy Authority,13/01/2014,MATERIALS & SPARES,FUSION,RS COMPONENTS LTD,5100298417,105.36
United Kingdom Atomic Energy Authority,United Kingdom Atomic Energy Authority,20/01/2014,MATERIALS & SPARES,FUSION,RS COMPONENTS LTD,5100298616,55.99
United Kingdom Atomic Energy Authority,United Kingdom Atomic Energy Authority,20/01/2014,MATERIALS & SPARES,FUSION,RS COMPONENTS LTD,5100297786,237.53
United Kingdom Atomic Energy Authority,United Kingdom Atomic Energy Authority,08/01/2014,MATERIALS & SPARES,FUSION,RS COMPONENTS LTD,5100298214,29.12
United Kingdom Atomic Energy Authority,United Kingdom Atomic Energy Authority,15/01/2014,MATERIALS & SPARES,FUSION,RS COMPONENTS LTD,5100298362,137.8
United Kingdom Atomic Energy Authority,United Kingdom Atomic Energy Authority,06/01/2014,MATERIALS & SPARES,FUSION,RS COMPONENTS LTD,5100298367,164.77
United Kingdom Atomic Energy Authority,United Kingdom Atomic Energy Authority,13/01/2014,MATERIALS & SPARES,FUSION,RS COMPONENTS LTD,5100298427,45.5
United Kingdom Atomic Energy Authority,United Kingdom Atomic Energy Authority,20/01/2014,MATERIALS & SPARES,FUSION,RS COMPONENTS LTD,5100298608,12.1
United Kingdom Atomic Energy Authority,United Kingdom Atomic Energy Authority,20/01/2014,MATERIALS & SPARES,FUSION,RS COMPONENTS LTD,5100298609,93.31
United Kingdom Atomic Energy Authority,United Kingdom Atomic Energy Authority,20/01/2014,MATERIALS & SPARES,FUSION,RS COMPONENTS LTD,5100298615,161.12
United Kingdom Atomic Energy Authority,United Kingdom Atomic Energy Authority,20/01/2014,MATERIALS & SPARES,FUSION,RS COMPONENTS LTD,5100298623,99.49
United Kingdom Atomic Energy Authority,United Kingdom Atomic Energy Authority,06/01/2014,MATERIALS & SPARES,FUSION,RS COMPONENTS LTD,5100298216,101.83
United Kingdom Atomic Energy Authority,United Kingdom Atomic Energy Authority,13/01/2014,MATERIALS & SPARES,FUSION,RS COMPONENTS LTD,5100298424,346.37
United Kingdom Atomic Energy Authority,United Kingdom Atomic Energy Authority,13/01/2014,MATERIALS & SPARES,FUSION,RS COMPONENTS LTD,5100298426,762.07
United Kingdom Atomic Energy Authority,United Kingdom Atomic Energy Authority,06/01/2014,MATERIALS & SPARES,FUSION,RS COMPONENTS LTD,5100298229,29.8
United Kingdom Atomic Energy Authority,United Kingdom Atomic Energy Authority,20/01/2014,MATERIALS & SPARES,FUSION,RS COMPONENTS LTD,5100298613,131.78
United Kingdom Atomic Energy Authority,United Kingdom Atomic Energy Authority,08/01/2014,MATERIALS & SPARES,FUSION,RS COMPONENTS LTD,5100298366,81.01
United Kingdom Atomic Energy Authority,United Kingdom Atomic Energy Authority,20/01/2014,MATERIALS & SPARES,FUSION,RS COMPONENTS LTD,5100298852,26.06
United Kingdom Atomic Energy Authority,United Kingdom Atomic Energy Authority,08/01/2014,MATERIALS & SPARES,FUSION,RS COMPONENTS LTD,5100298356,96.99
United Kingdom Atomic Energy Authority,United Kingdom Atomic Energy Authority,08/01/2014,MATERIALS & SPARES,FUSION,RS COMPONENTS LTD,5100298365,163.33
United Kingdom Atomic Energy Authority,United Kingdom Atomic Energy Authority,13/01/2014,MATERIALS & SPARES,FUSION,RS COMPONENTS LTD,5100298368,60.41
United Kingdom Atomic Energy Authority,United Kingdom Atomic Energy Authority,13/01/2014,MATERIALS & SPARES,FUSION,RS COMPONENTS LTD,5100298432,143.92
United Kingdom Atomic Energy Authority,United Kingdom Atomic Energy Authority,22/01/2014,MATERIALS & SPARES,FUSION,RS COMPONENTS LTD,5100298860,225.24
United Kingdom Atomic Energy Authority,United Kingdom Atomic Energy Authority,13/01/2014,MATERIALS & SPARES,FUSION,RS COMPONENTS LTD,5100294924,326.19
United Kingdom Atomic Energy Authority,United Kingdom Atomic Energy Authority,20/01/2014,MATERIALS & SPARES,FUSION,RS COMPONENTS LTD,5100297151,193.28
United Kingdom Atomic Energy Authority,United Kingdom Atomic Energy Authority,20/01/2014,MATERIALS & SPARES,FUSION,RS COMPONENTS LTD,5100297455,61.92
United Kingdom Atomic Energy Authority,United Kingdom Atomic Energy Authority,20/01/2014,MATERIALS & SPARES,FUSION,RS COMPONENTS LTD,5100297514,178.92
United Kingdom Atomic Energy Authority,United Kingdom Atomic Energy Authority,08/01/2014,MATERIALS & SPARES,FUSION,RS COMPONENTS LTD,5100297524,832.74
United Kingdom Atomic Energy Authority,United Kingdom Atomic Energy Authority,08/01/2014,MATERIALS & SPARES,FUSION,RS COMPONENTS LTD,5100297782,159.05
United Kingdom Atomic Energy Authority,United Kingdom Atomic Energy Authority,08/01/2014,MATERIALS & SPARES,FUSION,RS COMPONENTS LTD,5100297856,252.78
United Kingdom Atomic Energy Authority,United Kingdom Atomic Energy Authority,08/01/2014,MATERIALS & SPARES,FUSION,RS COMPONENTS LTD,5100297862,26.82
United Kingdom Atomic Energy Authority,United Kingdom Atomic Energy Authority,06/01/2014,MATERIALS & SPARES,FUSION,RS COMPONENTS LTD,5100298215,27.18
United Kingdom Atomic Energy Authority,United Kingdom Atomic Energy Authority,06/01/2014,MATERIALS & SPARES,FUSION,RS COMPONENTS LTD,5100298231,44.91
United Kingdom Atomic Energy Authority,United Kingdom Atomic Energy Authority,06/01/2014,MATERIALS & SPARES,FUSION,RS COMPONENTS LTD,5100298358,35.44
United Kingdom Atomic Energy Authority,United Kingdom Atomic Energy Authority,13/01/2014,MATERIALS & SPARES,FUSION,RS COMPONENTS LTD,5100298411,64.7
United Kingdom Atomic Energy Authority,United Kingdom Atomic Energy Authority,15/01/2014,MATERIALS & SPARES,FUSION,RS COMPONENTS LTD,5100298416,305.62
United Kingdom Atomic Energy Authority,United Kingdom Atomic Energy Authority,13/01/2014,MATERIALS & SPARES,FUSION,RS COMPONENTS LTD,5100298433,82.68
United Kingdom Atomic Energy Authority,United Kingdom Atomic Energy Authority,13/01/2014,MATERIALS & SPARES,FUSION,RS COMPONENTS LTD,5100298502,-260.95
United Kingdom Atomic Energy Authority,United Kingdom Atomic Energy Authority,20/01/2014,MATERIALS & SPARES,FUSION,RS COMPONENTS LTD,5100298624,60.72
United Kingdom Atomic Energy Authority,United Kingdom Atomic Energy Authority,20/01/2014,MATERIALS & SPARES,FUSION,RS COMPONENTS LTD,5100298854,647.5
United Kingdom Atomic Energy Authority,United Kingdom Atomic Energy Authority,20/01/2014,MATERIALS & SPARES,FUSION,RS COMPONENTS LTD,5100298856,43.6
United Kingdom Atomic Energy Authority,United Kingdom Atomic Energy Authority,06/01/2014,MATERIALS & SPARES,FUSION,RS COMPONENTS LTD,5100297460,233.62
United Kingdom Atomic Energy Authority,United Kingdom Atomic Energy Authority,13/01/2014,MATERIALS & SPARES,FUSION,RS COMPONENTS LTD,5100297520,128.71
United Kingdom Atomic Energy Authority,United Kingdom Atomic Energy Authority,13/01/2014,MATERIALS & SPARES,FUSION,RS COMPONENTS LTD,5100298539,-32.02
United Kingdom Atomic Energy Authority,United Kingdom Atomic Energy Authority,06/01/2014,MATERIALS & SPARES,FUSION,RS COMPONENTS LTD,5100295830,422.77
United Kingdom Atomic Energy Authority,United Kingdom Atomic Energy Authority,06/01/2014,MATERIALS & SPARES,FUSION,RS COMPONENTS LTD,5100298212,16.31
United Kingdom Atomic Energy Authority,United Kingdom Atomic Energy Authority,06/01/2014,MATERIALS & SPARES,FUSION,RS COMPONENTS LTD,5100298224,18.9
United Kingdom Atomic Energy Authority,United Kingdom Atomic Energy Authority,06/01/2014,MATERIALS & SPARES,FUSION,RS COMPONENTS LTD,5100298226,32.25
United Kingdom Atomic Energy Authority,United Kingdom Atomic Energy Authority,20/01/2014,MATERIALS & SPARES,FUSION,RS COMPONENTS LTD,5100298621,111.65
United Kingdom Atomic Energy Authority,United Kingdom Atomic Energy Authority,20/01/2014,MATERIALS & SPARES,FUSION,RS COMPONENTS LTD,5100297785,30.75
United Kingdom Atomic Energy Authority,United Kingdom Atomic Energy Authority,08/01/2014,MATERIALS & SPARES,FUSION,RS COMPONENTS LTD,5100298363,22.83
United Kingdom Atomic Energy Authority,United Kingdom Atomic Energy Authority,20/01/2014,MATERIALS & SPARES,FUSION,RS COMPONENTS LTD,5100298357,499.17
United Kingdom Atomic Energy Authority,United Kingdom Atomic Energy Authority,20/01/2014,MATERIALS & SPARES,FUSION,RS COMPONENTS LTD,5100298412,225.58
United Kingdom Atomic Energy Authority,United Kingdom Atomic Energy Authority,20/01/2014,MATERIALS & SPARES,FUSION,RS COMPONENTS LTD,5100298611,26.91
United Kingdom Atomic Energy Authority,United Kingdom Atomic Energy Authority,20/01/2014,MATERIALS & SPARES,FUSION,RS COMPONENTS LTD,5100297518,28.31
United Kingdom Atomic Energy Authority,United Kingdom Atomic Energy Authority,06/01/2014,MATERIALS & SPARES,FUSION,RS COMPONENTS LTD,5100298222,45.69
United Kingdom Atomic Energy Authority,United Kingdom Atomic Energy Authority,06/01/2014,MATERIALS & SPARES,FUSION,RS COMPONENTS LTD,5100298233,19.62
United Kingdom Atomic Energy Authority,United Kingdom Atomic Energy Authority,13/01/2014,MATERIALS & SPARES,FUSION,SAFETYKLEEN UK LIMITED,5100298443,343.42
United Kingdom Atomic Energy Authority,United Kingdom Atomic Energy Authority,20/01/2014,IT MANAGED SERVICE,FUSION,SAMUI DESIGN & MANAGEMENT,5100298650,75
United Kingdom Atomic Energy Authority,United Kingdom Atomic Energy Authority,06/01/2014,MATERIALS & SPARES,FUSION,SANTON SWITCHGEAR LTD,5100298267,18593.75
United Kingdom Atomic Energy Authority,United Kingdom Atomic Energy Authority,08/01/2014,IT EQUIPMENT NON CAPITAL,FUSION,SCAN COMPUTERS INTERNATIONAL LTD,5100297109,4963.41
United Kingdom Atomic Energy Authority,United Kingdom Atomic Energy Authority,08/01/2014,IT EQUIPMENT NON CAPITAL,FUSION,SCAN COMPUTERS INTERNATIONAL LTD,5100298158,6835.06
United Kingdom Atomic Energy Authority,United Kingdom Atomic Energy Authority,08/01/2014,IT EQUIPMENT NON CAPITAL,FUSION,SCAN COMPUTERS INTERNATIONAL LTD,5100298310,4232.14
United Kingdom Atomic Energy Authority,United Kingdom Atomic Energy Authority,13/01/2014,IT EQUIPMENT NON CAPITAL,FUSION,SCAN COMPUTERS INTERNATIONAL LTD,5100298309,848.94
United Kingdom Atomic Energy Authority,United Kingdom Atomic Energy Authority,15/01/2014,MATERIALS & SPARES,FUSION,SCHROFF UK LTD,5100298582,137.05
United Kingdom Atomic Energy Authority,United Kingdom Atomic Energy Authority,22/01/2014,MATERIALS & SPARES,FUSION,SCHROFF UK LTD,5100298768,212.8
United Kingdom Atomic Energy Authority,United Kingdom Atomic Energy Authority,06/01/2014,MATERIALS & SPARES,FUSION,SCHROFF UK LTD,5100298082,1364.3
United Kingdom Atomic Energy Authority,United Kingdom Atomic Energy Authority,06/01/2014,PROFESSIONAL SERVICES,FUSION,SCIENTIFICS LTD,5100298204,316
United Kingdom Atomic Energy Authority,United Kingdom Atomic Energy Authority,08/01/2014,PROFESSIONAL SERVICES,FUSION,SCIENTIFICS LTD,5100298203,270
United Kingdom Atomic Energy Authority,United Kingdom Atomic Energy Authority,08/01/2014,PROFESSIONAL SERVICES,FUSION,SCIENTIFICS LTD,5100298264,900
United Kingdom Atomic Energy Authority,United Kingdom Atomic Energy Authority,20/01/2014,PROFESSIONAL SERVICES,FUSION,SCIENTIFICS LTD,5100298767,270
United Kingdom Atomic Energy Authority,United Kingdom Atomic Energy Authority,13/01/2014,SITE SUPPORT SERVICES,SUPPORT SERVICES,SCION ESTATES,5100298473,280
United Kingdom Atomic Energy Authority,United Kingdom Atomic Energy Authority,13/01/2014,SITE SUPPORT SERVICES,PROPERTY,SCION ESTATES,5100298602,137.6
United Kingdom Atomic Energy Authority,United Kingdom Atomic Energy Authority,13/01/2014,SITE SUPPORT SERVICES,PROPERTY,SCION ESTATES,5100298597,1300
United Kingdom Atomic Energy Authority,United Kingdom Atomic Energy Authority,13/01/2014,SITE SUPPORT SERVICES,PROPERTY,SCION ESTATES,5100298598,455.4
United Kingdom Atomic Energy Authority,United Kingdom Atomic Energy Authority,13/01/2014,SITE SUPPORT SERVICES,PROPERTY,SCION ESTATES,5100298599,63.8
United Kingdom Atomic Energy Authority,United Kingdom Atomic Energy Authority,13/01/2014,SITE SUPPORT SERVICES,PROPERTY,SCION ESTATES,5100298600,1035.8
United Kingdom Atomic Energy Authority,United Kingdom Atomic Energy Authority,13/01/2014,SITE SUPPORT SERVICES,PROPERTY,SCION ESTATES,5100298601,10462.67
United Kingdom Atomic Energy Authority,United Kingdom Atomic Energy Authority,13/01/2014,SITE SUPPORT SERVICES,PROPERTY,SCION ESTATES,5100298472,232.8
United Kingdom Atomic Energy Authority,United Kingdom Atomic Energy Authority,13/01/2014,SITE SUPPORT SERVICES,PROPERTY,SCION ESTATES,5100298603,168.4
United Kingdom Atomic Energy Authority,United Kingdom Atomic Energy Authority,06/01/2014,MATERIALS & SPARES,FUSION,SCREWFIX DIRECT LTD,5100298148,89.62
United Kingdom Atomic Energy Authority,United Kingdom Atomic Energy Authority,06/01/2014,MATERIALS & SPARES,FUSION,SCREWFIX DIRECT LTD,5100298317,198.67
United Kingdom Atomic Energy Authority,United Kingdom Atomic Energy Authority,20/01/2014,MATERIALS & SPARES,FUSION,SCREWFIX DIRECT LTD,5100298666,87.48
United Kingdom Atomic Energy Authority,United Kingdom Atomic Energy Authority,20/01/2014,MATERIALS & SPARES,FUSION,SCREWFIX DIRECT LTD,5100298667,73.33
United Kingdom Atomic Energy Authority,United Kingdom Atomic Energy Authority,20/01/2014,PLANT SPARES,FUSION,Selby Engineering & Lifting Safety,5100298809,240.6
United Kingdom Atomic Energy Authority,United Kingdom Atomic Energy Authority,08/01/2014,MATERIALS & SPARES,FUSION,Servo Components & Systems Ltd,5100298450,2112
United Kingdom Atomic Energy Authority,United Kingdom Atomic Energy Authority,20/01/2014,MATERIALS & SPARES,FUSION,SETON,5100298689,31.04
United Kingdom Atomic Energy Authority,United Kingdom Atomic Energy Authority,13/01/2014,MATERIALS & SPARES,SUPPORT SERVICES,SHL GROUP ,5100297956,94
United Kingdom Atomic Energy Authority,United Kingdom Atomic Energy Authority,13/01/2014,MATERIALS & SPARES,SUPPORT SERVICES,SHL GROUP ,5100297957,21
United Kingdom Atomic Energy Authority,United Kingdom Atomic Energy Authority,20/01/2014,SECURITY & EMERGENCY,PROPERTY,SHRED-IT,5100298831,265
United Kingdom Atomic Energy Authority,United Kingdom Atomic Energy Authority,08/01/2014,PROFESSIONAL SERVICES,FUSION,SIGMA - ALDRICH CO LTD,5100298336,187.8
United Kingdom Atomic Energy Authority,United Kingdom Atomic Energy Authority,20/01/2014,TRAINING COURSE FEES,FUSION,Silverlock Training Ltd,5100298837,567.4
United Kingdom Atomic Energy Authority,United Kingdom Atomic Energy Authority,20/01/2014,PLANT SPARES,FUSION,SKEGNESS SPRINGS LTD,5100298849,205.5
United Kingdom Atomic Energy Authority,United Kingdom Atomic Energy Authority,20/01/2014,MATERIALS & SPARES,FUSION,SMITHS METAL CENTRES LTD,5100298647,212
United Kingdom Atomic Energy Authority,United Kingdom Atomic Energy Authority,20/01/2014,MATERIALS & SPARES,FUSION,SMITHS METAL CENTRES LTD,5100298541,768
United Kingdom Atomic Energy Authority,United Kingdom Atomic Energy Authority,22/01/2014,MATERIALS & SPARES,FUSION,SP SERVICES UK LTD,5100298800,221.68
United Kingdom Atomic Energy Authority,United Kingdom Atomic Energy Authority,13/01/2014,PLANT & EQUIPMENT,FUSION,SPANOPTIC LTD,5100296334,3371
United Kingdom Atomic Energy Authority,United Kingdom Atomic Energy Authority,13/01/2014,PROFESSIONAL SERVICES,FUSION,SPECIALIST WELDING SERVICES,5100298423,215
United Kingdom Atomic Energy Authority,United Kingdom Atomic Energy Authority,15/01/2014,SOFTWARE,FUSION,SPIDEX SOFTWARE LTD,5100298548,91.49
United Kingdom Atomic Energy Authority,United Kingdom Atomic Energy Authority,16/01/2014,TRAINING COURSE FEES,FUSION,Sprachenschule Doppelpunkt,1900059315,765.26
United Kingdom Atomic Energy Authority,United Kingdom Atomic Energy Authority,09/01/2014,TRAINING COURSE FEES,FUSION,Sprachenschule Doppelpunkt,1900059291,348.78
United Kingdom Atomic Energy Authority,United Kingdom Atomic Energy Authority,17/01/2014,TRAINING COURSE FEES,FUSION,Sprachenschule Doppelpunkt,1900059338,349.01
United Kingdom Atomic Energy Authority,United Kingdom Atomic Energy Authority,13/01/2014,CONFERENCES ,FUSION,ST EDMUND HALL,5100298445,3035.89
United Kingdom Atomic Energy Authority,United Kingdom Atomic Energy Authority,06/01/2014,MATERIALS & SPARES,FUSION,STEMMER IMAGING LTD,5100298240,5056.2
United Kingdom Atomic Energy Authority,United Kingdom Atomic Energy Authority,22/01/2014,PROFESSIONAL SERVICES,FUSION,Structural Soils Ltd,5100296791,16694
United Kingdom Atomic Energy Authority,United Kingdom Atomic Energy Authority,08/01/2014,TRAINING COSTS,SUPPORT SERVICES,SWETS INFORMATION SERVICES LTD,5100298266,19265.04
United Kingdom Atomic Energy Authority,United Kingdom Atomic Energy Authority,20/01/2014,MATERIALS & SPARES,FUSION,TDK-LAMBDA UK LTD,5100298632,1081.25
United Kingdom Atomic Energy Authority,United Kingdom Atomic Energy Authority,22/01/2014,EFDA SECONDEE CONTRACT,,TECHNICAL RESEARCH CENTRE,5100298762,25750.4
United Kingdom Atomic Energy Authority,United Kingdom Atomic Energy Authority,20/01/2014,PLANT & EQUIPMENT,FUSION,TELONIC INSTRUMENTS LTD,5100298583,309.2
United Kingdom Atomic Energy Authority,United Kingdom Atomic Energy Authority,13/01/2014,HIRED STAFF,FUSION,TESSELLA PLC,5100298481,4850.3
United Kingdom Atomic Energy Authority,United Kingdom Atomic Energy Authority,13/01/2014,HIRED STAFF,FUSION,TESSELLA PLC,5100298482,7899.4
United Kingdom Atomic Energy Authority,United Kingdom Atomic Energy Authority,13/01/2014,HIRED STAFF,FUSION,TESSELLA PLC,5100298483,9095.85
United Kingdom Atomic Energy Authority,United Kingdom Atomic Energy Authority,08/01/2014,MATERIALS & SPARES,FUSION,THALES ELECTRON DEVICES SA,5100298099,131323.22
United Kingdom Atomic Energy Authority,United Kingdom Atomic Energy Authority,08/01/2014,MATERIALS & SPARES,FUSION,THALES ELECTRON DEVICES SA,5100298100,1001.17
United Kingdom Atomic Energy Authority,United Kingdom Atomic Energy Authority,06/01/2014,UTILITIES/WATER,PROPERTY,THAMES WATER UTILITIES,5100298369,5188.16
United Kingdom Atomic Energy Authority,United Kingdom Atomic Energy Authority,06/01/2014,UTILITIES/WATER,PROPERTY,THAMES WATER UTILITIES,5100298371,14095.51
United Kingdom Atomic Energy Authority,United Kingdom Atomic Energy Authority,20/01/2014,PRINTING & GRAPHICS,FUSION,THE ABBEY PRESS GROUP,5100298538,20
United Kingdom Atomic Energy Authority,United Kingdom Atomic Energy Authority,08/01/2014,BOOKS & PUBLICATIONS,SUPPORT SERVICES,THE BRITISH LIBRARY,5100298448,4.15
United Kingdom Atomic Energy Authority,United Kingdom Atomic Energy Authority,08/01/2014,BOOKS & PUBLICATIONS,SUPPORT SERVICES,THE BRITISH LIBRARY,5100298449,74.7
United Kingdom Atomic Energy Authority,United Kingdom Atomic Energy Authority,24/01/2014,OTHER EXTERNAL COSTS,FUSION,The Image Works (UK) Ltd,1900059375,426
United Kingdom Atomic Energy Authority,United Kingdom Atomic Energy Authority,22/01/2014,SOFTWARE,FUSION,THE MATHWORKS,5100299071,1920
United Kingdom Atomic Energy Authority,United Kingdom Atomic Energy Authority,22/01/2014,SOFTWARE,FUSION,THE MATHWORKS,5100299072,-1920
United Kingdom Atomic Energy Authority,United Kingdom Atomic Energy Authority,20/01/2014,OTHER EXTERNAL COSTS,FUSION,The Plastic Shop,1900059346,355.98
United Kingdom Atomic Energy Authority,United Kingdom Atomic Energy Authority,16/01/2014,TRAINING COURSE FEES,FUSION,The PR Academy,1900059312,2100
United Kingdom Atomic Energy Authority,United Kingdom Atomic Energy Authority,20/01/2014,MATERIALS & SPARES,FUSION,THORLABS LTD,5100298705,941.22
United Kingdom Atomic Energy Authority,United Kingdom Atomic Energy Authority,20/01/2014,BUILDING REPAIRS,FUSION,TILL & WHITEHEAD LTD,5100298429,31.7
United Kingdom Atomic Energy Authority,United Kingdom Atomic Energy Authority,13/01/2014,BUILDING REPAIRS,FUSION,TILL & WHITEHEAD LTD,5100298431,99.86
United Kingdom Atomic Energy Authority,United Kingdom Atomic Energy Authority,13/01/2014,BUILDING REPAIRS,FUSION,TILL & WHITEHEAD LTD,5100298435,103.42
United Kingdom Atomic Energy Authority,United Kingdom Atomic Energy Authority,13/01/2014,BUILDING REPAIRS,FUSION,TILL & WHITEHEAD LTD,5100298436,25.5
United Kingdom Atomic Energy Authority,United Kingdom Atomic Energy Authority,13/01/2014,BUILDING REPAIRS,FUSION,TILL & WHITEHEAD LTD,5100298437,24
United Kingdom Atomic Energy Authority,United Kingdom Atomic Energy Authority,13/01/2014,BUILDING REPAIRS,FUSION,TILL & WHITEHEAD LTD,5100298438,171.13
United Kingdom Atomic Energy Authority,United Kingdom Atomic Energy Authority,20/01/2014,MATERIALS & SPARES,FUSION,TR FASTENINGS LTD,5100298802,379.39
United Kingdom Atomic Energy Authority,United Kingdom Atomic Energy Authority,06/01/2014,PROFESSIONAL SERVICES,FUSION,TRADEBE,5100297251,17030
United Kingdom Atomic Energy Authority,United Kingdom Atomic Energy Authority,06/01/2014,PROFESSIONAL SERVICES,FUSION,TRADEBE,5100297254,30708.04
United Kingdom Atomic Energy Authority,United Kingdom Atomic Energy Authority,06/01/2014,PROFESSIONAL SERVICES,FUSION,TRADEBE,5100298294,9103
United Kingdom Atomic Energy Authority,United Kingdom Atomic Energy Authority,22/01/2014,HIRED STAFF,FUSION,TRASYS,5100298665,540.75
United Kingdom Atomic Energy Authority,United Kingdom Atomic Energy Authority,22/01/2014,HIRED STAFF,FUSION,TRASYS,5100298816,9328.45
United Kingdom Atomic Energy Authority,United Kingdom Atomic Energy Authority,22/01/2014,HIRED STAFF,FUSION,TRASYS,5100298817,10815
United Kingdom Atomic Energy Authority,United Kingdom Atomic Energy Authority,22/01/2014,HIRED STAFF,FUSION,TRASYS,5100298818,8205
United Kingdom Atomic Energy Authority,United Kingdom Atomic Energy Authority,22/01/2014,HIRED STAFF,FUSION,TRASYS,5100298820,6888
United Kingdom Atomic Energy Authority,United Kingdom Atomic Energy Authority,22/01/2014,PLANT SPARES,FUSION,TRENZ ELECTRONIC GMBH,5100298907,395.68
United Kingdom Atomic Energy Authority,United Kingdom Atomic Energy Authority,13/01/2014,SECURITY & EMERGENCY,PROPERTY,TRINITY PROTETION SYSTEMS,5100298425,900
United Kingdom Atomic Energy Authority,United Kingdom Atomic Energy Authority,20/01/2014,SECURITY & EMERGENCY,PROPERTY,TRINITY PROTETION SYSTEMS,5100297882,1000
United Kingdom Atomic Energy Authority,United Kingdom Atomic Energy Authority,13/01/2014,SECURITY & EMERGENCY,PROPERTY,TRINITY PROTETION SYSTEMS,5100298288,133.44
United Kingdom Atomic Energy Authority,United Kingdom Atomic Energy Authority,20/01/2014,SECURITY & EMERGENCY,PROPERTY,TRINITY PROTETION SYSTEMS,5100298756,-180
United Kingdom Atomic Energy Authority,United Kingdom Atomic Energy Authority,08/01/2014,MATERIALS & SPARES,FUSION,TVH,5100297611,2313.67
United Kingdom Atomic Energy Authority,United Kingdom Atomic Energy Authority,06/01/2014,MATERIALS & SPARES,FUSION,UNDERWOODS ELECTRICAL DISTRIBUTORS,5100298334,1415.65
United Kingdom Atomic Energy Authority,United Kingdom Atomic Energy Authority,06/01/2014,MATERIALS & SPARES,FUSION,UNDERWOODS ELECTRICAL DISTRIBUTORS,5100298375,3998.4
United Kingdom Atomic Energy Authority,United Kingdom Atomic Energy Authority,20/01/2014,MATERIALS & SPARES,FUSION,UNDERWOODS ELECTRICAL DISTRIBUTORS,5100298640,618.25
United Kingdom Atomic Energy Authority,United Kingdom Atomic Energy Authority,20/01/2014,MATERIALS & SPARES,FUSION,UNIVERSAL ACCESS & POWER PLANT LTD,5100298758,78.14
United Kingdom Atomic Energy Authority,United Kingdom Atomic Energy Authority,20/01/2014,UNIVERSITY PLACEMENT,FUSION,UNIVERSITY OF YORK,5100298571,30000
United Kingdom Atomic Energy Authority,United Kingdom Atomic Energy Authority,15/01/2014,UNIVERSITY PLACEMENT,FUSION,UNIVERSITY OF YORK,5100296433,2357
United Kingdom Atomic Energy Authority,United Kingdom Atomic Energy Authority,15/01/2014,UNIVERSITY PLACEMENT,FUSION,UNIVERSITY OF YORK,5100296435,3146.29
United Kingdom Atomic Energy Authority,United Kingdom Atomic Energy Authority,06/01/2014,UNIVERSITY PLACEMENT,FUSION,UNIVERSITY OF YORK,5100296436,3059.65
United Kingdom Atomic Energy Authority,United Kingdom Atomic Energy Authority,15/01/2014,UNIVERSITY PLACEMENT,FUSION,UNIVERSITY OF YORK,5100296438,2012.62
United Kingdom Atomic Energy Authority,United Kingdom Atomic Energy Authority,15/01/2014,UNIVERSITY PLACEMENT,FUSION,UNIVERSITY OF YORK,5100298572,-667.5
United Kingdom Atomic Energy Authority,United Kingdom Atomic Energy Authority,22/01/2014,UNIVERSITY PLACEMENT,FUSION,UNIVERSITY OF YORK,5100298639,3294
United Kingdom Atomic Energy Authority,United Kingdom Atomic Energy Authority,08/01/2014,MATERIALS & SPARES,FUSION,VARIAN LTD,5100298381,10164
United Kingdom Atomic Energy Authority,United Kingdom Atomic Energy Authority,13/01/2014,MATERIALS & SPARES,FUSION,VARIAN LTD,5100298382,180
United Kingdom Atomic Energy Authority,United Kingdom Atomic Energy Authority,06/01/2014,MATERIALS & SPARES,FUSION,VAT VACUUM PRODUCTS LTD,5100298318,5700
United Kingdom Atomic Energy Authority,United Kingdom Atomic Energy Authority,06/01/2014,IT EQUIPMENT NON CAPITAL,,VIGLEN LIMITED,5100298338,63888.9
United Kingdom Atomic Energy Authority,United Kingdom Atomic Energy Authority,06/01/2014,IT EQUIPMENT NON CAPITAL,FUSION,VIGLEN LIMITED,5100298337,37194.63
United Kingdom Atomic Energy Authority,United Kingdom Atomic Energy Authority,08/01/2014,CONSUMABLES,FUSION,VORTEX,5100295856,895
United Kingdom Atomic Energy Authority,United Kingdom Atomic Energy Authority,22/01/2014,PROFESSIONAL SERVICES,FUSION,VT NUCLEAR SERVICES LTD,5100298561,2169.1
United Kingdom Atomic Energy Authority,United Kingdom Atomic Energy Authority,08/01/2014,MATERIALS & SPARES,FUSION,VWR INTERNATIONAL LTD,5100297834,302.5
United Kingdom Atomic Energy Authority,United Kingdom Atomic Energy Authority,13/01/2014,MATERIALS & SPARES,FUSION,VWR INTERNATIONAL LTD,5100298008,590
United Kingdom Atomic Energy Authority,United Kingdom Atomic Energy Authority,13/01/2014,MATERIALS & SPARES,FUSION,VWR INTERNATIONAL LTD,5100298402,236
United Kingdom Atomic Energy Authority,United Kingdom Atomic Energy Authority,13/01/2014,MATERIALS & SPARES,FUSION,WADSWORTH (A DIVISION OF PRISM DATA,5100298373,138.48
United Kingdom Atomic Energy Authority,United Kingdom Atomic Energy Authority,06/01/2014,MATERIALS & SPARES,FUSION,WELDTEK ENGINEERING LTD,5100298086,2584
United Kingdom Atomic Energy Authority,United Kingdom Atomic Energy Authority,21/01/2014,PRINTING & GRAPHICS,FUSION,Westwood Security Shutters Ltd,1900059355,2325
United Kingdom Atomic Energy Authority,United Kingdom Atomic Energy Authority,08/01/2014,COMPUTER REPAIRS,FUSION,WIND RIVER UK LTD,5100298385,44728
United Kingdom Atomic Energy Authority,United Kingdom Atomic Energy Authority,20/01/2014,MATERIALS & SPARES,FUSION,WOLSELEY UK LIMITED,5100296087,4.86
United Kingdom Atomic Energy Authority,United Kingdom Atomic Energy Authority,13/01/2014,MATERIALS & SPARES,FUSION,WOODSTOCK INDUSTRIAL SUPPLIES LTD,5100298552,32.86
United Kingdom Atomic Energy Authority,United Kingdom Atomic Energy Authority,20/01/2014,MATERIALS & SPARES,FUSION,WTS Weeks Technical Services,5100298769,300
United Kingdom Atomic Energy Authority,United Kingdom Atomic Energy Authority,13/01/2014,MATERIALS & SPARES,FUSION,Wychwood Water Systems Ltd,5100298393,3885
United Kingdom Atomic Energy Authority,United Kingdom Atomic Energy Authority,06/01/2014,MATERIALS & SPARES,FUSION,YKK UK Ltd,5100296628,1277.28
United Kingdom Atomic Energy Authority,United Kingdom Atomic Energy Authority,24/01/2014,OTHER EXTERNAL COSTS,FUSION,PURCHASE CARDS,100711817,1378.99
United Kingdom Atomic Energy Authority,United Kingdom Atomic Energy Authority,24/01/2014,OTHER EXTERNAL COSTS,FUSION,PURCHASE CARDS,100711817,1401.9
United Kingdom Atomic Energy Authority,United Kingdom Atomic Energy Authority,24/01/2014,MATERIALS & SPARES,FUSION,PURCHASE CARDS,100711819,544
United Kingdom Atomic Energy Authority,United Kingdom Atomic Energy Authority,24/01/2014,IT EQUIPMENT: NON CAPITAL,FUSION,PURCHASE CARDS,100711822,1387.34
United Kingdom Atomic Energy Authority,United Kingdom Atomic Energy Authority,24/01/2014,IT EQUIPMENT: NON CAPITAL,FUSION,PURCHASE CARDS,100711822,924.89
United Kingdom Atomic Energy Authority,United Kingdom Atomic Energy Authority,24/01/2014,PLANT & EQUIPMENT,FUSION,PURCHASE CARDS,100711825,683
United Kingdom Atomic Energy Authority,United Kingdom Atomic Energy Authority,24/01/2014,PLANT & EQUIPMENT,FUSION,PURCHASE CARDS,100711825,522.4
United Kingdom Atomic Energy Authority,United Kingdom Atomic Energy Authority,24/01/2014,TRAINING COURSE FEES,FUSION,PURCHASE CARDS,100711829,970
United Kingdom Atomic Energy Authority,United Kingdom Atomic Energy Authority,24/01/2014,CONSUMABLES,FUSION,PURCHASE CARDS,100711831,544.39
United Kingdom Atomic Energy Authority,United Kingdom Atomic Energy Authority,24/01/2014,OTHER EXTERNAL COSTS,FUSION,PURCHASE CARDS,100711832,3778.76
